Workbook

Sheet Notes
A1: Heikin-Ashi Candlestick Oscillator LT.xlsm
A2: Coded 2012-May-13 by Ronald McAllister (rpmac_xltt@sprynet.com)
A4: This Workbook demonstrates an EXCEL version of the ideas presented
A5: by Sylvain Vervoort in an article titled "Long-term Trading Using Exchange Traded Funds"
A6: which appeared in the July 2012 issue of
A7: "Technical Analysis of Stocks and Commodities" magazine.
A9: Data for this EXCEL example was retrieved from Yahoo Finance.
A11: Price history for iShares MSCI Mexico Investable Mkt Idx (EWW) can be retrieved from Yahoo Finance: http://finance.yahoo.com
A12: The Yahoo Finance symbol is "EWW".
A13: Select "Historical Prices" from the left margin.
B14: At the top of the page select the bullet for "Weekly" and then click "Get Prices". The "Get Prices" button sets the type of download for the next step.
A15: Then go to the bottom of the page and click "Download to Spreadsheet".
A16: Use the "Save As" option to save the file to your drive for later input processing. (See "Automated data import" below)
A17: Note: The resulting .csv file is in date-descending sequence (most recent first) and may be used in this spread sheet with out sorting.
A19: Automated data import
A20: The InputPriceData tab now has a button that will automate importing Price History data which you have previously downloaded to your hard drive from Yahoo Finance (.csv format please!)
A21: The VBA macro code behind this button uses the standard EXCEL file open dialog to allow you to navigate to the directory where you have stored the downloaded
A22: history files. You may then select the file you are interested in.
A23: Subsequent processing will adjust the Open, High, Low, and Close prices as indicated by the Adjusted Close values provided in the downloaded file.
A24: Both the Raw and the Adjusted data will be copied to the InputPriceData tab for use in this workbook.
A25: However, YOU must enter the symbol and description in cell A1 of the InputPriceData tab after you use the button: YAHOO history files DO NOT contain the symbol or a description!
A26: Note: After the data has been transferred to this workbook, the source history file will be closed with out saving it so that it remains unchanged for future uses.
A28: Development Notes:
A29: 1 | C29: This workbook contains and uses VBA macros.
A31: 2 | C31: Input Data
B32: A. | C32: The data in this workbook is sorted date descending (most recent date at the top) and the formulas are built accordingly.
B34: B. | C34: I have had a number of inquiries regarding replacing, or just adding data to previous EXCEL based Traders Tips.
C35: In previous versions, adding/changing data was problematic because the formulas were coded in the same rows as the input data and were
C36: inextricably tied to the input data locations and to each other.
C37: In this workbook I have taken steps to facilitate your ability to alter the input data by isolating the calculations from the input data as much as possible.
C38: I strongly suggest that you take advantage of the button on the InputPriceData tab to perform complete replacements as that automates the whole process. However, if you so desire,
C39: you may still freely add data rows to the InputPriceData worksheet at the top, bottom, middle of the data section. Or you may completely replace the data detail rows, as long as
C40: you do not disturb the headings in row 10 or the computations in cells B7 or G7:G8. Do update the symbol and name in InputPriceData cell A1 if you change securities.
C41: The CalculationsAndCharts worksheet obtains it's data from the InputPriceData worksheet using OFFSET references relative to the headings in row 10.
A43: Calculation and Chart Worksheet Usage Comments:
A44: 1 | C44: In General, Items in Bolded BLUE are items you may freely change to play what-if games.
C45: Be sure to have a backup copy of the spreadsheet before you alter anything else.
A46: 2 | C46: Data windowing can be performed by changing cell A11. Positive values logically "Pan" the data window represented by the Calculation sheet down the input sheet and back in time.
C47: This can have two side effects: First, data may fall outside of the fixed Y-axis scales and be clipped or fall well inside the Y-axis scales wasting a lot of chart vertical space.
C48: Second, you may move far enough back that you do not have sufficient data points to fill the left of the chart.
A49: 3 | C49: The VBA macros behind the Green button address these Data Windowing problems and also resizes and vertically aligns all charts on the work sheet to match the Price chart
C50: and then horizontally adjusts the X-axis positions of all charts on the work sheet so that the corresponding data points align vertically.
C51: The macros behind the green button are sensitive to the user control values in cells A11 and A12, and also uses the computed values in cells A8, F11, and F12
A53: Chart Notes:
A54: 1 | C54: The chart presented here attempt to replicate the chart in Figure 6 from the article.
A55: 2 | C55: Price Data plotted on primary axis as candlesticks
A56: 3 | C56: All data plotted in reverse order to get dates/times to read ascending left to right.
A58: Known Problems:
A59: The chart presented here is not an exact match to Figure 6 of the article. In the middle of 2004 there should be a dip the the 50 level. Perhaps this is due to insufficient older history to work up a stable
A60: set of TEMA values. While debugging the workbook I found that I had to add several additional years of back data (as suggested in the article) just to get the dips to 50 which appear in early 2005 and mid 2006.
A61: Unfortunately, this workbook already contains all the back data currently available from YAHOO weekly history. This makes for a large file size for this workbook.

Sheet InputPriceData
A1: iShares MSCI Mexico Investable Mkt Idx (EWW)
B6: Available Input Data Rows | F6: Available Date Range:
B7: =COUNTA(B11:B65000) -> 841 | F7: From | G7: =OFFSET(B10,B7,0,1,1) -> 1996-04-01
F8: To | G8: =OFFSET(B10,1,0,1,1) -> 2012-05-14
B9: Raw Data Values | H9: Adjusted | I9: Adjustment | J9: Adjusted Values
A10: RelRow | B10: Date | C10: Open | D10: High | E10: Low | F10: Close | G10: Volume | H10: Close | I10: Factor | J10: Open | K10: High | L10: Low | M10: Close
A11: 1 | B11: 2012-05-14 | C11: 57.86 | D11: 58.47 | E11: 56.08 | F11: 56.38 | G11: 2521200 | H11: 56.38 | I11: 1 | J11: 57.86 | K11: 58.47 | L11: 56.08 | M11: 56.38
A12: 2 | B12: 2012-05-07 | C12: 61.09 | D12: 62.24 | E12: 58.73 | F12: 58.79 | G12: 2705700 | H12: 58.79 | I12: 1 | J12: 61.09 | K12: 62.24 | L12: 58.73 | M12: 58.79
A13: 3 | B13: 2012-04-30 | C13: 61.9 | D13: 62.95 | E13: 61.04 | F13: 61.17 | G13: 2551300 | H13: 61.17 | I13: 1 | J13: 61.9 | K13: 62.95 | L13: 61.04 | M13: 61.17
A14: 4 | B14: 2012-04-23 | C14: 59.75 | D14: 62.06 | E14: 58.93 | F14: 61.89 | G14: 2265700 | H14: 61.89 | I14: 1 | J14: 59.75 | K14: 62.06 | L14: 58.93 | M14: 61.89
A15: 5 | B15: 2012-04-16 | C15: 60.41 | D15: 61.32 | E15: 59.4 | F15: 61.08 | G15: 2365500 | H15: 61.08 | I15: 1 | J15: 60.41 | K15: 61.32 | L15: 59.4 | M15: 61.08
A16: 6 | B16: 2012-04-09 | C16: 61.11 | D16: 61.74 | E16: 59.86 | F16: 60.1 | G16: 2750500 | H16: 60.1 | I16: 1 | J16: 61.11 | K16: 61.74 | L16: 59.86 | M16: 60.1
A17: 7 | B17: 2012-04-02 | C17: 62.49 | D17: 63.84 | E17: 62 | F17: 62.22 | G17: 2448100 | H17: 62.22 | I17: 1 | J17: 62.49 | K17: 63.84 | L17: 62 | M17: 62.22
A18: 8 | B18: 2012-03-26 | C18: 61.44 | D18: 62.75 | E18: 60.81 | F18: 62.52 | G18: 2514200 | H18: 62.52 | I18: 1 | J18: 61.44 | K18: 62.75 | L18: 60.81 | M18: 62.52
A19: 9 | B19: 2012-03-19 | C19: 61.01 | D19: 61.5 | E19: 60.19 | F19: 60.89 | G19: 2502000 | H19: 60.89 | I19: 1 | J19: 61.01 | K19: 61.5 | L19: 60.19 | M19: 60.89
A20: 10 | B20: 2012-03-12 | C20: 60.14 | D20: 61.41 | E20: 59.7 | F20: 61.06 | G20: 2729100 | H20: 61.06 | I20: 1 | J20: 60.14 | K20: 61.41 | L20: 59.7 | M20: 61.06
A21: 11 | B21: 2012-03-05 | C21: 60.35 | D21: 60.92 | E21: 58.12 | F21: 60.26 | G21: 2768200 | H21: 60.26 | I21: 1 | J21: 60.35 | K21: 60.92 | L21: 58.12 | M21: 60.26
A22: 12 | B22: 2012-02-27 | C22: 59.24 | D22: 60.67 | E22: 58.91 | F22: 60.64 | G22: 3431700 | H22: 60.64 | I22: 1 | J22: 59.24 | K22: 60.67 | L22: 58.91 | M22: 60.64
A23: 13 | B23: 2012-02-21 | C23: 60.8 | D23: 60.94 | E23: 59.4 | F23: 59.63 | G23: 1879300 | H23: 59.63 | I23: 1 | J23: 60.8 | K23: 60.94 | L23: 59.4 | M23: 59.63
A24: 14 | B24: 2012-02-13 | C24: 61.2 | D24: 61.2 | E24: 59.38 | F24: 60.35 | G24: 2402900 | H24: 60.35 | I24: 1 | J24: 61.2 | K24: 61.2 | L24: 59.38 | M24: 60.35
A25: 15 | B25: 2012-02-06 | C25: 60.5 | D25: 61.28 | E25: 59.76 | F25: 60.37 | G25: 3024600 | H25: 60.37 | I25: 1 | J25: 60.5 | K25: 61.28 | L25: 59.76 | M25: 60.37
A26: 16 | B26: 2012-01-30 | C26: 57.42 | D26: 61.09 | E26: 57.11 | F26: 60.96 | G26: 3207800 | H26: 60.96 | I26: 1 | J26: 57.42 | K26: 61.09 | L26: 57.11 | M26: 60.96
A27: 17 | B27: 2012-01-23 | C27: 57.68 | D27: 59.01 | E27: 56.34 | F27: 58.34 | G27: 2151300 | H27: 58.34 | I27: 1 | J27: 57.68 | K27: 59.01 | L27: 56.34 | M27: 58.34
A28: 18 | B28: 2012-01-17 | C28: 55.39 | D28: 58.14 | E28: 54.91 | F28: 57.25 | G28: 2320200 | H28: 57.25 | I28: 1 | J28: 55.39 | K28: 58.14 | L28: 54.91 | M28: 57.25
A29: 19 | B29: 2012-01-09 | C29: 54.54 | D29: 55.89 | E29: 53.93 | F29: 54.45 | G29: 1723100 | H29: 54.45 | I29: 1 | J29: 54.54 | K29: 55.89 | L29: 53.93 | M29: 54.45
A30: 20 | B30: 2012-01-03 | C30: 55.05 | D30: 55.69 | E30: 54.12 | F30: 54.3 | G30: 1994700 | H30: 54.3 | I30: 1 | J30: 55.05 | K30: 55.69 | L30: 54.12 | M30: 54.3
A31: 21 | B31: 2011-12-27 | C31: 53.94 | D31: 54.27 | E31: 52.77 | F31: 53.76 | G31: 1670900 | H31: 53.76 | I31: 1 | J31: 53.94 | K31: 54.27 | L31: 52.77 | M31: 53.76
A32: 22 | B32: 2011-12-19 | C32: 52.94 | D32: 54.43 | E32: 51.98 | F32: 54.25 | G32: 2336900 | H32: 54.25 | I32: 1 | J32: 52.94 | K32: 54.43 | L32: 51.98 | M32: 54.25
A33: 23 | B33: 2011-12-12 | C33: 54.62 | D33: 55.26 | E33: 52.3 | F33: 52.86 | G33: 3130100 | H33: 52.51 | I33: 0.9933787363 | J33: 54.26 | K33: 54.89 | L33: 51.95 | M33: 52.51
A34: 24 | B34: 2011-12-05 | C34: 56.15 | D34: 56.24 | E34: 54.18 | F34: 55.79 | G34: 2713300 | H34: 55.42 | I34: 0.9933679871 | J34: 55.78 | K34: 55.87 | L34: 53.82 | M34: 55.42
A35: 25 | B35: 2011-11-28 | C35: 51.59 | D35: 55.67 | E35: 51.46 | F35: 55.04 | G35: 3311800 | H35: 54.67 | I35: 0.9932776163 | J35: 51.24 | K35: 55.3 | L35: 51.11 | M35: 54.67
A36: 26 | B36: 2011-11-21 | C36: 52.64 | D36: 52.98 | E36: 49.54 | F36: 49.64 | G36: 2849200 | H36: 49.31 | I36: 0.9933521354 | J36: 52.29 | K36: 52.63 | L36: 49.21 | M36: 49.31
A37: 27 | B37: 2011-11-14 | C37: 56.21 | D37: 56.42 | E37: 53.49 | F37: 53.93 | G37: 2360900 | H37: 53.57 | I37: 0.9933246801 | J37: 55.83 | K37: 56.04 | L37: 53.13 | M37: 53.57
A38: 28 | B38: 2011-11-07 | C38: 55.33 | D38: 57.05 | E38: 54.37 | F38: 56.57 | G38: 2632700 | H38: 56.19 | I38: 0.9932826587 | J38: 54.96 | K38: 56.67 | L38: 54 | M38: 56.19
A39: 29 | B39: 2011-10-31 | C39: 56.42 | D39: 56.64 | E39: 52.45 | F39: 55.34 | G39: 2961500 | H39: 54.97 | I39: 0.9933140585 | J39: 56.04 | K39: 56.26 | L39: 52.1 | M39: 54.97
A40: 30 | B40: 2011-10-24 | C40: 52.56 | D40: 57.85 | E40: 52.44 | F40: 57.52 | G40: 2969000 | H40: 57.14 | I40: 0.9933936022 | J40: 52.21 | K40: 57.47 | L40: 52.09 | M40: 57.14
A41: 31 | B41: 2011-10-17 | C41: 53.24 | D41: 53.71 | E41: 50.65 | F41: 52.23 | G41: 3025800 | H41: 51.88 | I41: 0.9932988704 | J41: 52.88 | K41: 53.35 | L41: 50.31 | M41: 51.88
A42: 32 | B42: 2011-10-10 | C42: 51.15 | D42: 53.91 | E42: 50.87 | F42: 53.5 | G42: 2565200 | H42: 53.14 | I42: 0.993271028 | J42: 50.81 | K42: 53.55 | L42: 50.53 | M42: 53.14
A43: 33 | B43: 2011-10-03 | C43: 48.98 | D43: 51.64 | E43: 46.65 | F43: 49.85 | G43: 3789000 | H43: 49.52 | I43: 0.9933801404 | J43: 48.66 | K43: 51.3 | L43: 46.34 | M43: 49.52
A44: 34 | B44: 2011-09-26 | C44: 49.09 | D44: 52.65 | E44: 48.1 | F44: 48.98 | G44: 3444900 | H44: 48.65 | I44: 0.9932625561 | J44: 48.76 | K44: 52.3 | L44: 47.78 | M44: 48.65
A45: 35 | B45: 2011-09-19 | C45: 53.61 | D45: 54.54 | E45: 46.73 | F45: 48.76 | G45: 4229600 | H45: 48.43 | I45: 0.9932321575 | J45: 53.25 | K45: 54.17 | L45: 46.41 | M45: 48.43
A46: 36 | B46: 2011-09-12 | C46: 53.18 | D46: 55.76 | E46: 52.51 | F46: 54.83 | G46: 2739400 | H46: 54.46 | I46: 0.9932518694 | J46: 52.82 | K46: 55.38 | L46: 52.16 | M46: 54.46
A47: 37 | B47: 2011-09-06 | C47: 54.85 | D47: 57.48 | E47: 53.92 | F47: 54.18 | G47: 2976600 | H47: 53.82 | I47: 0.9933554817 | J47: 54.49 | K47: 57.1 | L47: 53.56 | M47: 53.82
A48: 38 | B48: 2011-08-29 | C48: 56.24 | D48: 59.76 | E48: 55.95 | F48: 57.41 | G48: 3078000 | H48: 57.03 | I48: 0.9933809441 | J48: 55.87 | K48: 59.36 | L48: 55.58 | M48: 57.03
A49: 39 | B49: 2011-08-22 | C49: 55.89 | D49: 57.33 | E49: 53.48 | F49: 55.31 | G49: 2937500 | H49: 54.94 | I49: 0.9933104321 | J49: 55.52 | K49: 56.95 | L49: 53.12 | M49: 54.94
A50: 40 | B50: 2011-08-15 | C50: 55.44 | D50: 56.85 | E50: 53.61 | F50: 54.48 | G50: 2639100 | H50: 54.12 | I50: 0.9933920705 | J50: 55.07 | K50: 56.47 | L50: 53.26 | M50: 54.12
A51: 41 | B51: 2011-08-08 | C51: 54.24 | D51: 55.95 | E51: 51.5 | F51: 54.76 | G51: 4932000 | H51: 54.4 | I51: 0.9934258583 | J51: 53.88 | K51: 55.58 | L51: 51.16 | M51: 54.4
A52: 42 | B52: 2011-08-01 | C52: 62.55 | D52: 62.75 | E52: 54.64 | F52: 56.55 | G52: 4471400 | H52: 56.17 | I52: 0.9932802829 | J52: 62.13 | K52: 62.33 | L52: 54.27 | M52: 56.17
A53: 43 | B53: 2011-07-25 | C53: 61.11 | D53: 62.54 | E53: 60.24 | F53: 61.81 | G53: 2880300 | H53: 61.4 | I53: 0.9933667691 | J53: 60.7 | K53: 62.13 | L53: 59.84 | M53: 61.4
A54: 44 | B54: 2011-07-18 | C54: 61.24 | D54: 61.8 | E54: 60.65 | F54: 61.69 | G54: 2190000 | H54: 61.28 | I54: 0.9933538661 | J54: 60.83 | K54: 61.39 | L54: 60.25 | M54: 61.28
A55: 45 | B55: 2011-07-11 | C55: 61.83 | D55: 62.44 | E55: 61.15 | F55: 61.67 | G55: 2940000 | H55: 61.26 | I55: 0.9933517107 | J55: 61.42 | K55: 62.02 | L55: 60.74 | M55: 61.26
A56: 46 | B56: 2011-07-05 | C56: 63.34 | D56: 63.57 | E56: 62.29 | F56: 62.78 | G56: 1932100 | H56: 62.36 | I56: 0.9933099713 | J56: 62.92 | K56: 63.14 | L56: 61.87 | M56: 62.36
A57: 47 | B57: 2011-06-27 | C57: 59.35 | D57: 63.43 | E57: 59.2 | F57: 63.26 | G57: 2300900 | H57: 62.84 | I57: 0.9933607335 | J57: 58.96 | K57: 63.01 | L57: 58.81 | M57: 62.84
A58: 48 | B58: 2011-06-20 | C58: 59.13 | D58: 60.39 | E58: 58.76 | F58: 59.31 | G58: 2569300 | H58: 58.91 | I58: 0.9932557747 | J58: 58.73 | K58: 59.98 | L58: 58.36 | M58: 58.91
A59: 49 | B59: 2011-06-13 | C59: 59.46 | D59: 60.64 | E59: 58.99 | F59: 59.25 | G59: 2475900 | H59: 58.43 | I59: 0.9861603376 | J59: 58.64 | K59: 59.8 | L59: 58.17 | M59: 58.43
A60: 50 | B60: 2011-06-06 | C60: 60.47 | D60: 60.51 | E60: 59.08 | F60: 59.23 | G60: 2080100 | H60: 58.41 | I60: 0.9861556644 | J60: 59.63 | K60: 59.67 | L60: 58.26 | M60: 58.41
A61: 51 | B61: 2011-05-31 | C61: 62.52 | D61: 62.52 | E61: 60.33 | F61: 60.69 | G61: 2500100 | H61: 59.85 | I61: 0.9861591696 | J61: 61.65 | K61: 61.65 | L61: 59.49 | M61: 59.85
A62: 52 | B62: 2011-05-23 | C62: 59.87 | D62: 62.26 | E62: 59.64 | F62: 62.13 | G62: 1883900 | H62: 61.27 | I62: 0.9861580557 | J62: 59.04 | K62: 61.4 | L62: 58.81 | M62: 61.27
A63: 53 | B63: 2011-05-16 | C63: 59.98 | D63: 61.29 | E63: 59.39 | F63: 61.02 | G63: 1944800 | H63: 60.18 | I63: 0.9862340216 | J63: 59.15 | K63: 60.45 | L63: 58.57 | M63: 60.18
A64: 54 | B64: 2011-05-09 | C64: 60.84 | D64: 62.25 | E64: 59.65 | F64: 60.09 | G64: 2235700 | H64: 59.26 | I64: 0.9861873856 | J64: 60 | K64: 61.39 | L64: 58.83 | M64: 59.26
A65: 55 | B65: 2011-05-02 | C65: 64.5 | D65: 64.65 | E65: 60.22 | F65: 60.91 | G65: 3444200 | H65: 60.07 | I65: 0.9862091611 | J65: 63.61 | K65: 63.76 | L65: 59.39 | M65: 60.07
A66: 56 | B66: 2011-04-25 | C66: 63.54 | D66: 64.38 | E66: 63.27 | F66: 64.31 | G66: 2504800 | H66: 63.42 | I66: 0.9861607837 | J66: 62.66 | K66: 63.49 | L66: 62.39 | M66: 63.42
A67: 57 | B67: 2011-04-18 | C67: 62.45 | D67: 63.85 | E67: 61.5 | F67: 63.75 | G67: 2402200 | H67: 62.87 | I67: 0.9861960784 | J67: 61.59 | K67: 62.97 | L67: 60.65 | M67: 62.87
A68: 58 | B68: 2011-04-11 | C68: 63.88 | D68: 64.34 | E68: 62.76 | F68: 63.39 | G68: 2658200 | H68: 62.52 | I68: 0.9862754378 | J68: 63 | K68: 63.46 | L68: 61.9 | M68: 62.52
A69: 59 | B69: 2011-04-04 | C69: 63.93 | D69: 64.5 | E69: 63.37 | F69: 63.87 | G69: 2254700 | H69: 62.99 | I69: 0.9862220135 | J69: 63.05 | K69: 63.61 | L69: 62.5 | M69: 62.99
A70: 60 | B70: 2011-03-28 | C70: 61.15 | D70: 63.93 | E70: 61.01 | F70: 63.73 | G70: 1982800 | H70: 62.85 | I70: 0.9861917464 | J70: 60.31 | K70: 63.05 | L70: 60.17 | M70: 62.85
A71: 61 | B71: 2011-03-21 | C71: 59.34 | D71: 61.99 | E71: 58.91 | F71: 61.13 | G71: 2879100 | H71: 60.29 | I71: 0.9862587927 | J71: 58.52 | K71: 61.14 | L71: 58.1 | M71: 60.29
A72: 62 | B72: 2011-03-14 | C72: 59.81 | D72: 60.77 | E72: 58.03 | F72: 58.62 | G72: 4232700 | H72: 57.81 | I72: 0.9861821904 | J72: 58.98 | K72: 59.93 | L72: 57.23 | M72: 57.81
A73: 63 | B73: 2011-03-07 | C73: 61.34 | D73: 61.56 | E73: 59.32 | F73: 60.38 | G73: 2653100 | H73: 59.55 | I73: 0.9862537264 | J73: 60.5 | K73: 60.71 | L73: 58.5 | M73: 59.55
A74: 64 | B74: 2011-02-28 | C74: 60.95 | D74: 61.97 | E74: 60.23 | F74: 61.4 | G74: 2064600 | H74: 60.55 | I74: 0.9861563518 | J74: 60.11 | K74: 61.11 | L74: 59.4 | M74: 60.55
A75: 65 | B75: 2011-02-22 | C75: 61.35 | D75: 61.58 | E75: 59.1 | F75: 60.52 | G75: 3323700 | H75: 59.69 | I75: 0.9862855254 | J75: 60.51 | K75: 60.74 | L75: 58.29 | M75: 59.69
A76: 66 | B76: 2011-02-14 | C76: 61.33 | D76: 62.57 | E76: 60.6 | F76: 62.25 | G76: 2672600 | H76: 61.39 | I76: 0.986184739 | J76: 60.48 | K76: 61.71 | L76: 59.76 | M76: 61.39
A77: 67 | B77: 2011-02-07 | C77: 62.13 | D77: 62.5 | E77: 60.15 | F77: 61.31 | G77: 3244600 | H77: 60.47 | I77: 0.9862991355 | J77: 61.28 | K77: 61.64 | L77: 59.33 | M77: 60.47
A78: 68 | B78: 2011-01-31 | C78: 60.47 | D78: 63.04 | E78: 60.13 | F78: 62.04 | G78: 3547800 | H78: 61.19 | I78: 0.9862991618 | J78: 59.64 | K78: 62.18 | L78: 59.31 | M78: 61.19
A79: 69 | B79: 2011-01-24 | C79: 61.55 | D79: 62.56 | E79: 59.76 | F79: 60.13 | G79: 3041500 | H79: 59.3 | I79: 0.9861965741 | J79: 60.7 | K79: 61.7 | L79: 58.94 | M79: 59.3
A80: 70 | B80: 2011-01-18 | C80: 63.34 | D80: 63.46 | E80: 61.53 | F80: 61.81 | G80: 3091200 | H80: 60.96 | I80: 0.9862481799 | J80: 62.47 | K80: 62.59 | L80: 60.68 | M80: 60.96
A81: 71 | B81: 2011-01-10 | C81: 62.3 | D81: 63.01 | E81: 62.01 | F81: 62.76 | G81: 2572100 | H81: 61.9 | I81: 0.9862970045 | J81: 61.45 | K81: 62.15 | L81: 61.16 | M81: 61.9
A82: 72 | B82: 2011-01-03 | C82: 62.43 | D82: 63.1 | E82: 62.09 | F82: 62.63 | G82: 2329800 | H82: 61.77 | I82: 0.9862685614 | J82: 61.57 | K82: 62.23 | L82: 61.24 | M82: 61.77
A83: 73 | B83: 2010-12-27 | C83: 61.35 | D83: 62.04 | E83: 60.93 | F83: 61.92 | G83: 1324500 | H83: 61.07 | I83: 0.9862726098 | J83: 60.51 | K83: 61.19 | L83: 60.09 | M83: 61.07
A84: 74 | B84: 2010-12-20 | C84: 61.3 | D84: 61.62 | E84: 60.92 | F84: 61.39 | G84: 1533600 | H84: 60.54 | I84: 0.9861540968 | J84: 60.45 | K84: 60.77 | L84: 60.08 | M84: 60.54
A85: 75 | B85: 2010-12-13 | C85: 60.87 | D85: 61.39 | E85: 60.03 | F85: 61.05 | G85: 2564700 | H85: 59.93 | I85: 0.9816543817 | J85: 59.75 | K85: 60.26 | L85: 58.93 | M85: 59.93
A86: 76 | B86: 2010-12-06 | C86: 60.33 | D86: 61.61 | E86: 59.94 | F86: 60.55 | G86: 2264800 | H86: 59.44 | I86: 0.9816680429 | J86: 59.22 | K86: 60.48 | L86: 58.84 | M86: 59.44
A87: 77 | B87: 2010-11-29 | C87: 58.6 | D87: 61.04 | E87: 58 | F87: 60.68 | G87: 3106400 | H87: 59.57 | I87: 0.9817073171 | J87: 57.53 | K87: 59.92 | L87: 56.94 | M87: 59.57
A88: 78 | B88: 2010-11-22 | C88: 59.26 | D88: 59.89 | E88: 57.87 | F88: 58.76 | G88: 2518500 | H88: 57.68 | I88: 0.9816201498 | J88: 58.17 | K88: 58.79 | L88: 56.81 | M88: 57.68
A89: 79 | B89: 2010-11-15 | C89: 58.48 | D89: 59.64 | E89: 57.05 | F89: 59.55 | G89: 3531900 | H89: 58.46 | I89: 0.9816960537 | J89: 57.41 | K89: 58.55 | L89: 56.01 | M89: 58.46
A90: 80 | B90: 2010-11-08 | C90: 59.26 | D90: 60.36 | E90: 58.17 | F90: 58.35 | G90: 2319000 | H90: 57.28 | I90: 0.9816623822 | J90: 58.17 | K90: 59.25 | L90: 57.1 | M90: 57.28
A91: 81 | B91: 2010-11-01 | C91: 58.06 | D91: 59.72 | E91: 57.62 | F91: 59.5 | G91: 2169100 | H91: 58.41 | I91: 0.9816806723 | J91: 57 | K91: 58.63 | L91: 56.56 | M91: 58.41
A92: 82 | B92: 2010-10-25 | C92: 57.42 | D92: 57.8 | E92: 55.95 | F92: 57.52 | G92: 2205900 | H92: 56.46 | I92: 0.9815716273 | J92: 56.36 | K92: 56.73 | L92: 54.92 | M92: 56.46
A93: 83 | B93: 2010-10-18 | C93: 55.69 | D93: 57.05 | E93: 54.87 | F93: 56.81 | G93: 2544900 | H93: 55.77 | I93: 0.9816933638 | J93: 54.67 | K93: 56.01 | L93: 53.87 | M93: 55.77
A94: 84 | B94: 2010-10-11 | C94: 55.47 | D94: 56.62 | E94: 54.82 | F94: 55.91 | G94: 1999000 | H94: 54.88 | I94: 0.9815775353 | J94: 54.45 | K94: 55.58 | L94: 53.81 | M94: 54.88
A95: 85 | B95: 2010-10-04 | C95: 53.92 | D95: 55.69 | E95: 53.59 | F95: 55.41 | G95: 2774500 | H95: 54.39 | I95: 0.9815917704 | J95: 52.93 | K95: 54.66 | L95: 52.6 | M95: 54.39
A96: 86 | B96: 2010-09-27 | C96: 53.03 | D96: 54.04 | E96: 52.6 | F96: 53.9 | G96: 2333300 | H96: 52.91 | I96: 0.9816326531 | J96: 52.06 | K96: 53.05 | L96: 51.63 | M96: 52.91
A97: 87 | B97: 2010-09-20 | C97: 51.85 | D97: 53.4 | E97: 51.6 | F97: 53.16 | G97: 2282100 | H97: 52.18 | I97: 0.9815650865 | J97: 50.89 | K97: 52.42 | L97: 50.65 | M97: 52.18
A98: 88 | B98: 2010-09-13 | C98: 51.27 | D98: 52 | E98: 50.89 | F98: 51.57 | G98: 2106000 | H98: 50.62 | I98: 0.9815784371 | J98: 50.33 | K98: 51.04 | L98: 49.95 | M98: 50.62
A99: 89 | B99: 2010-09-07 | C99: 50.07 | D99: 50.62 | E99: 49.55 | F99: 50.47 | G99: 2222700 | H99: 49.54 | I99: 0.9815732118 | J99: 49.15 | K99: 49.69 | L99: 48.64 | M99: 49.54
A100: 90 | B100: 2010-08-30 | C100: 48.57 | D100: 51 | E100: 47.44 | F100: 50.44 | G100: 3313500 | H100: 49.51 | I100: 0.9815622522 | J100: 47.67 | K100: 50.06 | L100: 46.57 | M100: 49.51
A101: 91 | B101: 2010-08-23 | C101: 50.59 | D101: 50.84 | E101: 47.29 | F101: 48.73 | G101: 3925100 | H101: 47.83 | I101: 0.9815308845 | J101: 49.66 | K101: 49.9 | L101: 46.42 | M101: 47.83
A102: 92 | B102: 2010-08-16 | C102: 50.18 | D102: 51.5 | E102: 49.74 | F102: 50.51 | G102: 2157900 | H102: 49.58 | I102: 0.9815878044 | J102: 49.26 | K102: 50.55 | L102: 48.82 | M102: 49.58
A103: 93 | B103: 2010-08-09 | C103: 52.24 | D103: 52.24 | E103: 49.19 | F103: 50.24 | G103: 2830500 | H103: 49.32 | I103: 0.9816878981 | J103: 51.28 | K103: 51.28 | L103: 48.29 | M103: 49.32
A104: 94 | B104: 2010-08-02 | C104: 51.89 | D104: 52.57 | E104: 51.45 | F104: 51.82 | G104: 2515700 | H104: 50.87 | I104: 0.9816673099 | J104: 50.94 | K104: 51.61 | L104: 50.51 | M104: 50.87
A105: 95 | B105: 2010-07-26 | C105: 51.45 | D105: 52.22 | E105: 50.27 | F105: 50.96 | G105: 2535400 | H105: 50.02 | I105: 0.9815541601 | J105: 50.5 | K105: 51.26 | L105: 49.34 | M105: 50.02
A106: 96 | B106: 2010-07-19 | C106: 49.24 | D106: 51.38 | E106: 48.4 | F106: 51.32 | G106: 2622400 | H106: 50.38 | I106: 0.9816835542 | J106: 48.34 | K106: 50.44 | L106: 47.51 | M106: 50.38
A107: 97 | B107: 2010-07-12 | C107: 49.55 | D107: 50.79 | E107: 48.8 | F107: 48.99 | G107: 1960300 | H107: 48.09 | I107: 0.9816289039 | J107: 48.64 | K107: 49.86 | L107: 47.9 | M107: 48.09
A108: 98 | B108: 2010-07-06 | C108: 48.88 | D108: 50.2 | E108: 47.98 | F108: 49.96 | G108: 2833200 | H108: 49.04 | I108: 0.9815852682 | J108: 47.98 | K108: 49.28 | L108: 47.1 | M108: 49.04
A109: 99 | B109: 2010-06-28 | C109: 51.34 | D109: 51.45 | E109: 46.55 | F109: 47.56 | G109: 3099100 | H109: 46.69 | I109: 0.9817073171 | J109: 50.4 | K109: 50.51 | L109: 45.7 | M109: 46.69
A110: 100 | B110: 2010-06-21 | C110: 53.39 | D110: 53.51 | E110: 50.17 | F110: 51.24 | G110: 2717300 | H110: 50.3 | I110: 0.9816549571 | J110: 52.41 | K110: 52.53 | L110: 49.25 | M110: 50.3
A111: 101 | B111: 2010-06-14 | C111: 51.33 | D111: 52.58 | E111: 50.55 | F111: 52.28 | G111: 3289400 | H111: 51.32 | I111: 0.9816373374 | J111: 50.39 | K111: 51.61 | L111: 49.62 | M111: 51.32
A112: 102 | B112: 2010-06-07 | C112: 47.88 | D112: 50.93 | E112: 47.29 | F112: 50.75 | G112: 3644700 | H112: 49.82 | I112: 0.9816748768 | J112: 47 | K112: 50 | L112: 46.42 | M112: 49.82
A113: 103 | B113: 2010-06-01 | C113: 48.38 | D113: 49.88 | E113: 47.62 | F113: 47.85 | G113: 3615800 | H113: 46.97 | I113: 0.9816091954 | J113: 47.49 | K113: 48.96 | L113: 46.74 | M113: 46.97
A114: 104 | B114: 2010-05-24 | C114: 47.33 | D114: 50.23 | E114: 45.12 | F114: 48.89 | G114: 5908100 | H114: 47.99 | I114: 0.9815913275 | J114: 46.46 | K114: 49.31 | L114: 44.29 | M114: 47.99
A115: 105 | B115: 2010-05-17 | C115: 50.3 | D115: 50.95 | E115: 45.2 | F115: 47.31 | G115: 6176100 | H115: 46.44 | I115: 0.9816106531 | J115: 49.38 | K115: 50.01 | L115: 44.37 | M115: 46.44
A116: 106 | B116: 2010-05-10 | C116: 51.36 | D116: 52.6 | E116: 49.95 | F116: 50.46 | G116: 5061500 | H116: 49.53 | I116: 0.98156956 | J116: 50.41 | K116: 51.63 | L116: 49.03 | M116: 49.53
A117: 107 | B117: 2010-05-03 | C117: 53.21 | D117: 61.6 | E117: 46 | F117: 48.77 | G117: 6603000 | H117: 47.87 | I117: 0.9815460324 | J117: 52.23 | K117: 60.46 | L117: 45.15 | M117: 47.87
A118: 108 | B118: 2010-04-26 | C118: 55.31 | D118: 55.58 | E118: 51.69 | F118: 52.99 | G118: 5311300 | H118: 52.02 | I118: 0.9816946594 | J118: 54.3 | K118: 54.56 | L118: 50.74 | M118: 52.02
A119: 109 | B119: 2010-04-19 | C119: 53.76 | D119: 55.27 | E119: 53.25 | F119: 55.21 | G119: 3519700 | H119: 54.2 | I119: 0.9817062126 | J119: 52.78 | K119: 54.26 | L119: 52.28 | M119: 54.2
A120: 110 | B120: 2010-04-12 | C120: 54.99 | D120: 55.58 | E120: 53.9 | F120: 53.98 | G120: 3293800 | H120: 52.99 | I120: 0.981659874 | J120: 53.98 | K120: 54.56 | L120: 52.91 | M120: 52.99
A121: 111 | B121: 2010-04-05 | C121: 54.05 | D121: 55.03 | E121: 53.58 | F121: 55.03 | G121: 3087600 | H121: 54.02 | I121: 0.9816463747 | J121: 53.06 | K121: 54.02 | L121: 52.6 | M121: 54.02
A122: 112 | B122: 2010-03-29 | C122: 52.72 | D122: 54.37 | E122: 52.45 | F122: 53.9 | G122: 2889500 | H122: 52.91 | I122: 0.9816326531 | J122: 51.75 | K122: 53.37 | L122: 51.49 | M122: 52.91
A123: 113 | B123: 2010-03-22 | C123: 51.46 | D123: 52.86 | E123: 51.06 | F123: 52.21 | G123: 2836100 | H123: 51.25 | I123: 0.9816127179 | J123: 50.51 | K123: 51.89 | L123: 50.12 | M123: 51.25
A124: 114 | B124: 2010-03-15 | C124: 50.93 | D124: 52.45 | E124: 50.64 | F124: 51.89 | G124: 2593200 | H124: 50.94 | I124: 0.9816920409 | J124: 50 | K124: 51.49 | L124: 49.71 | M124: 50.94
A125: 115 | B125: 2010-03-08 | C125: 50.72 | D125: 51.63 | E125: 50.47 | F125: 51.23 | G125: 2291000 | H125: 50.29 | I125: 0.9816513761 | J125: 49.79 | K125: 50.68 | L125: 49.54 | M125: 50.29
A126: 116 | B126: 2010-03-01 | C126: 49.24 | D126: 50.71 | E126: 48.96 | F126: 50.64 | G126: 3096300 | H126: 49.71 | I126: 0.9816350711 | J126: 48.34 | K126: 49.78 | L126: 48.06 | M126: 49.71
A127: 117 | B127: 2010-02-22 | C127: 49.6 | D127: 49.62 | E127: 47.52 | F127: 48.64 | G127: 2901500 | H127: 47.75 | I127: 0.9817023026 | J127: 48.69 | K127: 48.71 | L127: 46.65 | M127: 47.75
A128: 118 | B128: 2010-02-16 | C128: 47.96 | D128: 49.45 | E128: 47.69 | F128: 49.26 | G128: 3465900 | H128: 48.36 | I128: 0.9817295981 | J128: 47.08 | K128: 48.55 | L128: 46.82 | M128: 48.36
A129: 119 | B129: 2010-02-08 | C129: 45.95 | D129: 47.42 | E129: 45.76 | F129: 47.42 | G129: 3132600 | H129: 46.55 | I129: 0.9816533108 | J129: 45.11 | K129: 46.55 | L129: 44.92 | M129: 46.55
A130: 120 | B130: 2010-02-01 | C130: 46.16 | D130: 47.98 | E130: 44.71 | F130: 46.1 | G130: 2600000 | H130: 45.25 | I130: 0.9815618221 | J130: 45.31 | K130: 47.1 | L130: 43.89 | M130: 45.25
A131: 121 | B131: 2010-01-25 | C131: 48.14 | D131: 48.14 | E131: 45.87 | F131: 46 | G131: 2997900 | H131: 45.16 | I131: 0.9817391304 | J131: 47.26 | K131: 47.26 | L131: 45.03 | M131: 45.16
A132: 122 | B132: 2010-01-19 | C132: 50.09 | D132: 50.89 | E132: 46.8 | F132: 47.28 | G132: 3383600 | H132: 46.41 | I132: 0.9815989848 | J132: 49.17 | K132: 49.95 | L132: 45.94 | M132: 46.41
A133: 123 | B133: 2010-01-11 | C133: 51.51 | D133: 51.65 | E133: 50.04 | F133: 50.09 | G133: 1992200 | H133: 49.17 | I133: 0.9816330605 | J133: 50.56 | K133: 50.7 | L133: 49.12 | M133: 49.17
A134: 124 | B134: 2010-01-04 | C134: 50.13 | D134: 51.74 | E134: 49.83 | F134: 51.34 | G134: 2651300 | H134: 50.4 | I134: 0.9816906895 | J134: 49.21 | K134: 50.79 | L134: 48.92 | M134: 50.4
A135: 125 | B135: 2009-12-28 | C135: 50.45 | D135: 50.62 | E135: 48.85 | F135: 48.87 | G135: 1391800 | H135: 47.97 | I135: 0.9815837937 | J135: 49.52 | K135: 49.69 | L135: 47.95 | M135: 47.97
A136: 126 | B136: 2009-12-21 | C136: 49.71 | D136: 50.52 | E136: 48.86 | F136: 50.38 | G136: 1824000 | H136: 49.45 | I136: 0.9815402938 | J136: 48.79 | K136: 49.59 | L136: 47.96 | M136: 49.45
A137: 127 | B137: 2009-12-14 | C137: 50.39 | D137: 50.9 | E137: 49.01 | F137: 49.55 | G137: 2494300 | H137: 48.13 | I137: 0.9713420787 | J137: 48.95 | K137: 49.44 | L137: 47.61 | M137: 48.13
A138: 128 | B138: 2009-12-07 | C138: 50.75 | D138: 51.04 | E138: 48.53 | F138: 49.74 | G138: 2522400 | H138: 48.32 | I138: 0.971451548 | J138: 49.3 | K138: 49.58 | L138: 47.14 | M138: 48.32
A139: 129 | B139: 2009-11-30 | C139: 48.12 | D139: 51.68 | E139: 47.9 | F139: 50.65 | G139: 3437500 | H139: 49.2 | I139: 0.9713721619 | J139: 46.74 | K139: 50.2 | L139: 46.53 | M139: 49.2
A140: 130 | B140: 2009-11-23 | C140: 47.64 | D140: 49.08 | E140: 46.61 | F140: 48.3 | G140: 2255800 | H140: 46.92 | I140: 0.9714285714 | J140: 46.28 | K140: 47.68 | L140: 45.28 | M140: 46.92
A141: 131 | B141: 2009-11-16 | C141: 48.25 | D141: 49.19 | E141: 46.74 | F141: 47.05 | G141: 2969600 | H141: 45.7 | I141: 0.9713071201 | J141: 46.87 | K141: 47.78 | L141: 45.4 | M141: 45.7
A142: 132 | B142: 2009-11-09 | C142: 45.66 | D142: 47.88 | E142: 45.52 | F142: 47.75 | G142: 3198900 | H142: 46.38 | I142: 0.9713089005 | J142: 44.35 | K142: 46.51 | L142: 44.21 | M142: 46.38
A143: 133 | B143: 2009-11-02 | C143: 44.2 | D143: 45.4 | E143: 42.9 | F143: 45.11 | G143: 3309300 | H143: 43.82 | I143: 0.9714032365 | J143: 42.94 | K143: 44.1 | L143: 41.67 | M143: 43.82
A144: 134 | B144: 2009-10-26 | C144: 47.21 | D144: 47.81 | E144: 43.23 | F144: 43.6 | G144: 4363000 | H144: 42.35 | I144: 0.9713302752 | J144: 45.86 | K144: 46.44 | L144: 41.99 | M144: 42.35
A145: 135 | B145: 2009-10-19 | C145: 47.85 | D145: 48.7 | E145: 46.91 | F145: 47.02 | G145: 3831800 | H145: 45.67 | I145: 0.9712888133 | J145: 46.48 | K145: 47.3 | L145: 45.56 | M145: 45.67
A146: 136 | B146: 2009-10-12 | C146: 46.16 | D146: 48.2 | E146: 46.16 | F146: 47.5 | G146: 3083900 | H146: 46.14 | I146: 0.9713684211 | J146: 44.84 | K146: 46.82 | L146: 44.84 | M146: 46.14
A147: 137 | B147: 2009-10-05 | C147: 42.92 | D147: 46.05 | E147: 42.54 | F147: 45.88 | G147: 2681000 | H147: 44.57 | I147: 0.9714472537 | J147: 41.69 | K147: 44.74 | L147: 41.33 | M147: 44.57
A148: 138 | B148: 2009-09-28 | C148: 42.98 | D148: 44.38 | E148: 41.55 | F148: 42.7 | G148: 3157800 | H148: 41.48 | I148: 0.9714285714 | J148: 41.75 | K148: 43.11 | L148: 40.36 | M148: 41.48
A149: 139 | B149: 2009-09-21 | C149: 44.72 | D149: 45.2 | E149: 42.04 | F149: 42.61 | G149: 3260700 | H149: 41.39 | I149: 0.9713682234 | J149: 43.44 | K149: 43.91 | L149: 40.84 | M149: 41.39
A150: 140 | B150: 2009-09-14 | C150: 43.95 | D150: 45.93 | E150: 43.81 | F150: 45.01 | G150: 3156800 | H150: 43.72 | I150: 0.9713397023 | J150: 42.69 | K150: 44.61 | L150: 42.55 | M150: 43.72
A151: 141 | B151: 2009-09-08 | C151: 43.67 | D151: 44.57 | E151: 43.08 | F151: 44.53 | G151: 2863400 | H151: 43.26 | I151: 0.9714799012 | J151: 42.42 | K151: 43.3 | L151: 41.85 | M151: 43.26
A152: 142 | B152: 2009-08-31 | C152: 43.25 | D152: 43.3 | E152: 40.57 | F152: 42.61 | G152: 2939700 | H152: 41.39 | I152: 0.9713682234 | J152: 42.01 | K152: 42.06 | L152: 39.41 | M152: 41.39
A153: 143 | B153: 2009-08-24 | C153: 44.47 | D153: 44.89 | E153: 42.68 | F153: 43.65 | G153: 2486500 | H153: 42.4 | I153: 0.9713631157 | J153: 43.2 | K153: 43.6 | L153: 41.46 | M153: 42.4
A154: 144 | B154: 2009-08-17 | C154: 41.95 | D154: 44.44 | E154: 41.32 | F154: 44.32 | G154: 3412200 | H154: 43.05 | I154: 0.9713447653 | J154: 40.75 | K154: 43.17 | L154: 40.14 | M154: 43.05
A155: 145 | B155: 2009-08-10 | C155: 43 | D155: 43.73 | E155: 42.12 | F155: 43.06 | G155: 2891800 | H155: 41.83 | I155: 0.9714352067 | J155: 41.77 | K155: 42.48 | L155: 40.92 | M155: 41.83
A156: 146 | B156: 2009-08-03 | C156: 41.38 | D156: 43.56 | E156: 41.33 | F156: 43.36 | G156: 3281600 | H156: 42.12 | I156: 0.971402214 | J156: 40.2 | K156: 42.31 | L156: 40.15 | M156: 42.12
A157: 147 | B157: 2009-07-27 | C157: 40.1 | D157: 40.86 | E157: 39.36 | F157: 40.8 | G157: 3275600 | H157: 39.63 | I157: 0.9713235294 | J157: 38.95 | K157: 39.69 | L157: 38.23 | M157: 39.63
A158: 148 | B158: 2009-07-20 | C158: 38.94 | D158: 40.7 | E158: 38.41 | F158: 40.24 | G158: 4707900 | H158: 39.09 | I158: 0.9714214712 | J158: 37.83 | K158: 39.54 | L158: 37.31 | M158: 39.09
A159: 149 | B159: 2009-07-13 | C159: 34.45 | D159: 38.45 | E159: 34.09 | F159: 38.44 | G159: 5180900 | H159: 37.34 | I159: 0.971383975 | J159: 33.46 | K159: 37.35 | L159: 33.11 | M159: 37.34
A160: 150 | B160: 2009-07-06 | C160: 35.77 | D160: 36.11 | E160: 34.04 | F160: 34.53 | G160: 4276800 | H160: 33.54 | I160: 0.9713292789 | J160: 34.74 | K160: 35.07 | L160: 33.06 | M160: 33.54
A161: 151 | B161: 2009-06-29 | C161: 37.05 | D161: 37.61 | E161: 36.06 | F161: 36.18 | G161: 3020000 | H161: 35.14 | I161: 0.9712548369 | J161: 35.98 | K161: 36.53 | L161: 35.02 | M161: 35.14
A162: 152 | B162: 2009-06-22 | C162: 35.85 | D162: 36.95 | E162: 34.11 | F162: 36.86 | G162: 5171500 | H162: 35.81 | I162: 0.9715138361 | J162: 34.83 | K162: 35.9 | L162: 33.14 | M162: 35.81
A163: 153 | B163: 2009-06-15 | C163: 37.1 | D163: 37.38 | E163: 34.88 | F163: 36.25 | G163: 4813000 | H163: 35.02 | I163: 0.9660689655 | J163: 35.84 | K163: 36.11 | L163: 33.7 | M163: 35.02
A164: 154 | B164: 2009-06-08 | C164: 36.88 | D164: 37.98 | E164: 36.3 | F164: 37.74 | G164: 3036700 | H164: 36.46 | I164: 0.9660837308 | J164: 35.63 | K164: 36.69 | L164: 35.07 | M164: 36.46
A165: 155 | B165: 2009-06-01 | C165: 37.33 | D165: 37.94 | E165: 36.3 | F165: 37.37 | G165: 4050700 | H165: 36.1 | I165: 0.9660155205 | J165: 36.06 | K165: 36.65 | L165: 35.07 | M165: 36.1
A166: 156 | B166: 2009-05-26 | C166: 35.78 | D166: 37.64 | E166: 35.6 | F166: 36.74 | G166: 3795300 | H166: 35.5 | I166: 0.9662493195 | J166: 34.57 | K166: 36.37 | L166: 34.4 | M166: 35.5
A167: 157 | B167: 2009-05-18 | C167: 35.39 | D167: 37.83 | E167: 35.22 | F167: 36.06 | G167: 3266400 | H167: 34.84 | I167: 0.9661674986 | J167: 34.19 | K167: 36.55 | L167: 34.03 | M167: 34.84
A168: 158 | B168: 2009-05-11 | C168: 36.28 | D168: 36.28 | E168: 33.72 | F168: 34.6 | G168: 3011600 | H168: 33.43 | I168: 0.9661849711 | J168: 35.05 | K168: 35.05 | L168: 32.58 | M168: 33.43
A169: 159 | B169: 2009-05-04 | C169: 32.29 | D169: 36.83 | E169: 32.13 | F169: 36.42 | G169: 4638300 | H169: 35.19 | I169: 0.9662273476 | J169: 31.2 | K169: 35.59 | L169: 31.04 | M169: 35.19
A170: 160 | B170: 2009-04-27 | C170: 31.51 | D170: 32.41 | E170: 29.97 | F170: 31.9 | G170: 5499700 | H170: 30.82 | I170: 0.9661442006 | J170: 30.44 | K170: 31.31 | L170: 28.96 | M170: 30.82
A171: 161 | B171: 2009-04-20 | C171: 32.37 | D171: 33.46 | E171: 31 | F171: 33.11 | G171: 3095200 | H171: 31.99 | I171: 0.9661733615 | J171: 31.28 | K171: 32.33 | L171: 29.95 | M171: 31.99
A172: 162 | B172: 2009-04-13 | C172: 31.35 | D172: 33.38 | E172: 31.26 | F172: 33.05 | G172: 2926500 | H172: 31.93 | I172: 0.9661119516 | J172: 30.29 | K172: 32.25 | L172: 30.2 | M172: 31.93
A173: 163 | B173: 2009-04-06 | C173: 30.18 | D173: 32.15 | E173: 29.27 | F173: 31.93 | G173: 2620200 | H173: 30.85 | I173: 0.96617601 | J173: 29.16 | K173: 31.06 | L173: 28.28 | M173: 30.85
A174: 164 | B174: 2009-03-30 | C174: 27.34 | D174: 30.6 | E174: 26.43 | F174: 30.47 | G174: 3271100 | H174: 29.44 | I174: 0.9661962586 | J174: 26.42 | K174: 29.57 | L174: 25.54 | M174: 29.44
A175: 165 | B175: 2009-03-23 | C175: 27.55 | D175: 28.98 | E175: 27.26 | F175: 27.88 | G175: 2999600 | H175: 26.94 | I175: 0.9662840746 | J175: 26.62 | K175: 28 | L175: 26.34 | M175: 26.94
A176: 166 | B176: 2009-03-16 | C176: 26.97 | D176: 28.25 | E176: 25.53 | F176: 26.82 | G176: 4508800 | H176: 25.91 | I176: 0.9660700969 | J176: 26.05 | K176: 27.29 | L176: 24.66 | M176: 25.91
A177: 167 | B177: 2009-03-09 | C177: 21.85 | D177: 26.55 | E177: 21.52 | F177: 26.27 | G177: 6326000 | H177: 25.38 | I177: 0.9661210506 | J177: 21.11 | K177: 25.65 | L177: 20.79 | M177: 25.38
A178: 168 | B178: 2009-03-02 | C178: 23.21 | D178: 23.59 | E178: 21.92 | F178: 22.49 | G178: 4194700 | H178: 21.73 | I178: 0.9662072032 | J178: 22.43 | K178: 22.79 | L178: 21.18 | M178: 21.73
A179: 169 | B179: 2009-02-23 | C179: 25.33 | D179: 25.74 | E179: 23.58 | F179: 23.88 | G179: 3717400 | H179: 23.07 | I179: 0.966080402 | J179: 24.47 | K179: 24.87 | L179: 22.78 | M179: 23.07
A180: 170 | B180: 2009-02-17 | C180: 26.95 | D180: 26.95 | E180: 24.71 | F180: 25.16 | G180: 3281800 | H180: 24.31 | I180: 0.9662162162 | J180: 26.04 | K180: 26.04 | L180: 23.88 | M180: 24.31
A181: 171 | B181: 2009-02-09 | C181: 29.38 | D181: 29.74 | E181: 26.63 | F181: 27.22 | G181: 3478400 | H181: 26.3 | I181: 0.9662013226 | J181: 28.39 | K181: 28.73 | L181: 25.73 | M181: 26.3
A182: 172 | B182: 2009-02-02 | C182: 27.12 | D182: 29.51 | E182: 26.78 | F182: 29.11 | G182: 3457500 | H182: 28.12 | I182: 0.9659910684 | J182: 26.2 | K182: 28.51 | L182: 25.87 | M182: 28.12
A183: 173 | B183: 2009-01-26 | C183: 28.35 | D183: 29.29 | E183: 27.45 | F183: 27.69 | G183: 3330500 | H183: 26.75 | I183: 0.9660527266 | J183: 27.39 | K183: 28.3 | L183: 26.52 | M183: 26.75
A184: 174 | B184: 2009-01-20 | C184: 29.4 | D184: 29.4 | E184: 26.78 | F184: 27.88 | G184: 4430200 | H184: 26.94 | I184: 0.9662840746 | J184: 28.41 | K184: 28.41 | L184: 25.88 | M184: 26.94
A185: 175 | B185: 2009-01-12 | C185: 31.9 | D185: 31.9 | E185: 27.65 | F185: 29.33 | G185: 3508100 | H185: 28.34 | I185: 0.9662461643 | J185: 30.82 | K185: 30.82 | L185: 26.72 | M185: 28.34
A186: 176 | B186: 2009-01-05 | C186: 33.91 | D186: 35.16 | E186: 31.64 | F186: 31.85 | G186: 2418200 | H186: 30.77 | I186: 0.9660910518 | J186: 32.76 | K186: 33.97 | L186: 30.57 | M186: 30.77
A187: 177 | B187: 2008-12-29 | C187: 32.95 | D187: 33.8 | E187: 31.49 | F187: 33.67 | G187: 1597100 | H187: 32.53 | I187: 0.9661419661 | J187: 31.83 | K187: 32.66 | L187: 30.42 | M187: 32.53
A188: 178 | B188: 2008-12-22 | C188: 33.75 | D188: 33.75 | E188: 32.56 | F188: 33.14 | G188: 1205400 | H188: 32.02 | I188: 0.9662039831 | J188: 32.61 | K188: 32.61 | L188: 31.46 | M188: 32.02
A189: 179 | B189: 2008-12-15 | C189: 31.68 | D189: 34.89 | E189: 31.09 | F189: 33.74 | G189: 4034400 | H189: 32.18 | I189: 0.9537640782 | J189: 30.22 | K189: 33.28 | L189: 29.65 | M189: 32.18
A190: 180 | B190: 2008-12-08 | C190: 31.2 | D190: 33.29 | E190: 30.02 | F190: 31.45 | G190: 3498200 | H190: 30 | I190: 0.9538950715 | J190: 29.76 | K190: 31.76 | L190: 28.64 | M190: 30
A191: 181 | B191: 2008-12-01 | C191: 27.87 | D191: 29.65 | E191: 27 | F191: 29.58 | G191: 3487900 | H191: 28.22 | I191: 0.9540229885 | J191: 26.59 | K191: 28.29 | L191: 25.76 | M191: 28.22
A192: 182 | B192: 2008-11-24 | C192: 26.63 | D192: 30.11 | E192: 26.63 | F192: 29.39 | G192: 3421800 | H192: 28.03 | I192: 0.9537257571 | J192: 25.4 | K192: 28.72 | L192: 25.4 | M192: 28.03
A193: 183 | B193: 2008-11-17 | C193: 28.58 | D193: 29.88 | E193: 24.82 | F193: 26.37 | G193: 3489800 | H193: 25.15 | I193: 0.9537353053 | J193: 27.26 | K193: 28.5 | L193: 23.67 | M193: 25.15
A194: 184 | B194: 2008-11-10 | C194: 32.23 | D194: 32.23 | E194: 27.06 | F194: 29.49 | G194: 3626400 | H194: 28.13 | I194: 0.9538826721 | J194: 30.74 | K194: 30.74 | L194: 25.81 | M194: 28.13
A195: 185 | B195: 2008-11-03 | C195: 30.4 | D195: 34.48 | E195: 29.12 | F195: 30.14 | G195: 3651200 | H195: 28.75 | I195: 0.9538818845 | J195: 29 | K195: 32.89 | L195: 27.78 | M195: 28.75
A196: 186 | B196: 2008-10-27 | C196: 24.51 | D196: 31.67 | E196: 24.51 | F196: 30.9 | G196: 4643800 | H196: 29.48 | I196: 0.9540453074 | J196: 23.38 | K196: 30.21 | L196: 23.38 | M196: 29.48
A197: 187 | B197: 2008-10-20 | C197: 33.08 | D197: 33.84 | E197: 23.25 | F197: 25.18 | G197: 4165300 | H197: 24.02 | I197: 0.9539316918 | J197: 31.56 | K197: 32.28 | L197: 22.18 | M197: 24.02
A198: 188 | B198: 2008-10-13 | C198: 33.99 | D198: 38.56 | E198: 29.84 | F198: 31.99 | G198: 4689900 | H198: 30.52 | I198: 0.95404814 | J198: 32.43 | K198: 36.79 | L198: 28.47 | M198: 30.52
A199: 189 | B199: 2008-10-06 | C199: 39.53 | D199: 39.53 | E199: 27 | F199: 30.34 | G199: 6238200 | H199: 28.94 | I199: 0.9538562953 | J199: 37.71 | K199: 37.71 | L199: 25.75 | M199: 28.94
A200: 190 | B200: 2008-09-29 | C200: 47.21 | D200: 47.21 | E200: 41.28 | F200: 41.36 | G200: 3261500 | H200: 39.45 | I200: 0.9538201161 | J200: 45.03 | K200: 45.03 | L200: 39.37 | M200: 39.45
A201: 191 | B201: 2008-09-22 | C201: 48.82 | D201: 49.34 | E201: 46.39 | F201: 48.04 | G201: 3182400 | H201: 45.83 | I201: 0.9539966694 | J201: 46.57 | K201: 47.07 | L201: 44.26 | M201: 45.83
A202: 192 | B202: 2008-09-15 | C202: 46.8 | D202: 53 | E202: 43.11 | F202: 48.75 | G202: 7079200 | H202: 46.5 | I202: 0.9538461538 | J202: 44.64 | K202: 50.55 | L202: 41.12 | M202: 46.5
A203: 193 | B203: 2008-09-08 | C203: 52.01 | D203: 52.21 | E203: 48.12 | F203: 49.2 | G203: 3729700 | H203: 46.93 | I203: 0.9538617886 | J203: 49.61 | K203: 49.8 | L203: 45.9 | M203: 46.93
A204: 194 | B204: 2008-09-02 | C204: 52 | D204: 52.72 | E204: 49.75 | F204: 50.56 | G204: 2802100 | H204: 48.23 | I204: 0.9539161392 | J204: 49.6 | K204: 50.29 | L204: 47.46 | M204: 48.23
... 647 more rows

Sheet CalculationsAndCharts
A1: Heikin-Ashi Candlestick Oscillator LT
B2: Price Data: | C2: =InputPriceData!A1 -> iShares MSCI Mexico Investable Mkt Idx (EWW)
A4: User Charting Controls
A5: Data Control
A6: =InputPriceData!$B$7 -> 841 | B6: Available Input Data Rows | E6: Earliest: | F6: =OFFSET(InputPriceData!B10,CalculationsAndCharts!A6,0,1,1) -> 1996-04-01
E7: Latest: | F7: =OFFSET(InputPriceData!B10,1,0,1,1) -> 2012-05-14
A8: =MIN(A6-A11,COUNTA(B33:B9993)) -> 685 | B8: Logically Available for Calc / Plot
A10: Price Chart Windowing Controls | F10: Y-axis Range
A11: 156 | B11: Input Data Offset (Pan) | E11: Max High+ | F11: =CEILING(MAX(OFFSET($F$33,0,0,$A$12,1)),1)+1 -> 67
A12: 349 | B12: Data Points to Plot (Zoom) | E12: Min Low- | F12: =FLOOR(MIN(OFFSET($G$33,0,0,$A$12,1)),1)-1 -> 10
B13: First: | C13: =OFFSET(B32,A12,0,1,1) -> 2002-09-16
B14: Last: | C14: =B33 -> 2009-05-18
A16: Controls:
B17: Period | C17: alpha | D17: 1-alpha
A18: EMA | B18: 55 | C18: =2/(B18+1) -> 0.03571428571 | D18: =1-C18 -> 0.9642857143
A19: LTAvg | B19: 60 | C19: =2/(B19+1) -> 0.03278688525 | D19: =1-C19 -> 0.9672131148
A20: Cndl Sz | B20: 0.5
A22: Help! I would like to plot data | D22: Chart Windowing values to use
B23: From | C23: 2002-09-16 | D23: =OFFSET(InputPriceData!$A$10,MATCH(C23,OFFSET(InputPriceData!B10,1,0,InputPriceData!$B$7,1),0),0,1,1)-D24 -> 349 | E23: ==> for Points to Plot
B24: To | C24: 2009-05-18 | D24: =OFFSET(InputPriceData!$A$10,MATCH(C24,OFFSET(InputPriceData!B10,1,0,InputPriceData!$B$7,1),0),0,1,1)-1 -> 156 | E24: ==> for Offset
L30: First set of TEMA calculations | V30: Second set of TEMA calculations
A31: Rel Row | E31: Price Sources | I31: Avg Price | O31: TEMA1 | S31: TEMA TEMA1 | T31: ZIHa | U31: High Lo Avg | Y31: TEMA2 | AC31: TEMA TEMA2 | AD31: ZICL | AT31: Value When | AV31: LT EMA Close | AY31: Signal Line
B32: Date | D32: Volume | E32: Open | F32: High | G32: Low | H32: Close | J32: haOpen | K32: haC | L32: EMA1 | M32: EMA2 | N32: EMA3 | P32: EMA1 | Q32: EMA2 | R32: EMA3 | V32: EMA1 | W32: EMA2 | X32: EMA3 | Z32: EMA1 | AA32: EMA2 | AB32: EMA3 | AE32: keep1 | AF32: keep2 | AG32: keeping | AH32: keepall | AI32: keep3 | AJ32: utr | AK32: keep1 | AL32: keep2 | AM32: keep3 | AN32: keeping | AO32: keepall | AP32: dtr | AQ32: upw | AR32: dnw | AS32: When | AU32: result | AW32: LTSell | AX32: LTResult
A33: 1 | B33: =OFFSET(InputPriceData!B$10,CalculationsAndCharts!$A33+$A$11,0,1,1) -> 2009-05-18 | C33: =B33+4 -> 2009-05-22 | D33: =OFFSET(InputPriceData!G$10,CalculationsAndCharts!$A33+$A$11,0,1,1) -> 3266400 | E33: =OFFSET(InputPriceData!C$10,CalculationsAndCharts!$A33+$A$11,0,1,1) -> 35.39 | F33: =OFFSET(InputPriceData!D$10,CalculationsAndCharts!$A33+$A$11,0,1,1) -> 37.83 | G33: =OFFSET(InputPriceData!E$10,CalculationsAndCharts!$A33+$A$11,0,1,1) -> 35.22 | H33: =OFFSET(InputPriceData!F$10,CalculationsAndCharts!$A33+$A$11,0,1,1) -> 36.06 | I33: =AVERAGE(E33:H33) -> 36.125 | J33: =(I34+J34)/2 -> 34.09943119 | K33: =(I33+J33+MAX(F33,J33)+MIN(G33,J33))/4 -> 35.5384656 | L33: =$C$18*K33+$D$18*L34 -> 37.66950592 | M33: 46.29008322 | N33: 50.29454031 | O33: =3*L33-3*M33+N33 -> 24.43280839 | P33: =$C$18*O33+$D$18*P34 -> 37.18767886 | Q33: =$C$18*P33+$D$18*Q34 -> 48.39283764 | R33: =$C$18*Q33+$D$18*R34 -> 52.10818122 | S33: =3*P33-3*Q33+R33 -> 18.49270486 | T33: =2*O33-S33 -> 30.37291192 | U33: =AVERAGE(F33:G33) -> 36.525 | V33: =$C$18*U33+$D$18*V34 -> 37.58583788 | W33: =$C$18*V33+$D$18*W34 -> 46.05097315 | X33: =$C$18*W33+$D$18*X34 -> 50.16804537 | Y33: =3*V33-3*W33+X33 -> 24.77263956 | Z33: =$C$18*Y33+$D$18*Z34 -> 36.84318938 | AA33: =$C$18*Z33+$D$18*AA34 -> 48.09915755 | AB33: =$C$18*AA33+$D$18*AB34 -> 51.99061708 | AC33: =3*Z33-3*AA33+AB33 -> 18.22271256 | AD33: =2*Y33-AC33 -> 31.32256656 | AE33: =IF(OR(K33>=J33,K34>=J34,K35>=J35),1,IF(H33>=K33,1,IF(OR(F33>F34,G33>G34),1,0))) -> 1 | AF33: =IF((AD33-T33)>=0,1,0) -> 1 | AG33: =IF(OR(AE33=1, AF33=1),1,0) -> 1 | AH33: =IF(OR(AG33=1,OR(AND(AG34=1,(H33>=E33)),H33>=H34)),1,0) -> 1 | AI33: =IF(AND(ABS(H33-E33)<(F33-G33)*$B$20,F33>=G34),1,0) -> 1 | AJ33: =IF(OR(AH33=1,AND(AH34=1,AI33=1)),1,0) -> 1 | AK33: =IF(OR(K33<J33,K34<J34,K35<J35),1,0) -> 0 | AL33: =IF((AD33-T33)<0,1,0) -> 0 | AM33: =IF(AND(ABS(H33-E33)<(F33-G33)*$B$20,G33<=F34),1,0) -> 1 | AN33: =IF(OR(AK33=1, AL33=1),1,0) -> 0 | AO33: =IF(OR(AN33=1,OR(AND(AN34=1,(H33<E33)),H33<H34)),1,0) -> 0 | AP33: =IF(OR(AO33=1,AND(AO34=1,AM33=1)),1,0) -> 1 | AQ33: =IF(AND(AP33=0,AP34=1,AJ33=1),1,0) -> 0 | AR33: =IF(AND(AJ33=0,AJ34=1,AP33=1),1,0) -> 0 | AS33: =IF(OR(AQ33=1,AR33=1),1,0) -> 0 | AT33: =IF(OR(AQ33=1,AR33=1),IF(AQ33=1,1,0),AT34) -> 1 | AU33: =IF(AQ33=1,1,IF(AR33=1,0,AT33)) -> 1 | AV33: =H33*$C$19+$D$19*AV34 -> 38.39504703 | AW33: =IF(H33<AV33,1,0) -> 1 | AX33: =IF(AU33=1,1,IF(AND(AU33=0, AW33=1),0,AX34)) -> 1 | AY33: =IF(AU33=1,100,IF(AND(AU33=0, AX33=1),50,IF(AND(AU33=0, AX33=0),0,AY34))) -> 100
A34: 2 | B34: =OFFSET(InputPriceData!B$10,CalculationsAndCharts!$A34+$A$11,0,1,1) -> 2009-05-11 | C34: =B34+4 -> 2009-05-15 | D34: =OFFSET(InputPriceData!G$10,CalculationsAndCharts!$A34+$A$11,0,1,1) -> 3011600 | E34: =OFFSET(InputPriceData!C$10,CalculationsAndCharts!$A34+$A$11,0,1,1) -> 36.28 | F34: =OFFSET(InputPriceData!D$10,CalculationsAndCharts!$A34+$A$11,0,1,1) -> 36.28 | G34: =OFFSET(InputPriceData!E$10,CalculationsAndCharts!$A34+$A$11,0,1,1) -> 33.72 | H34: =OFFSET(InputPriceData!F$10,CalculationsAndCharts!$A34+$A$11,0,1,1) -> 34.6 | I34: =AVERAGE(E34:H34) -> 35.22 | J34: =(I35+J35)/2 -> 32.97886239 | K34: =(I34+J34+MAX(F34,J34)+MIN(G34,J34))/4 -> 34.36443119 | L34: =$C$18*K34+$D$18*L35 -> 37.74843333 | M34: =$C$18*L34+$D$18*M35 -> 46.60936386 | N34: =$C$18*M34+$D$18*N35 -> 50.44285354 | O34: 23.86006195 | P34: =$C$18*O34+$D$18*P35 -> 37.66008147 | Q34: =$C$18*P34+$D$18*Q35 -> 48.80784352 | R34: =$C$18*Q34+$D$18*R35 -> 52.24578653 | S34: =3*P34-3*Q34+R34 -> 18.80250037 | T34: =2*O34-S34 -> 28.91762353 | U34: 35 | V34: =$C$18*U34+$D$18*V35 -> 37.62512817 | W34: =$C$18*V34+$D$18*W35 -> 46.36449668 | X34: =$C$18*W34+$D$18*X35 -> 50.32052953 | Y34: =3*V34-3*W34+X34 -> 24.10242401 | Z34: =$C$18*Y34+$D$18*Z35 -> 37.29024678 | AA34: =$C$18*Z34+$D$18*AA35 -> 48.51604526 | AB34: =$C$18*AA34+$D$18*AB35 -> 52.13474521 | AC34: =3*Z34-3*AA34+AB34 -> 18.45734976 | AD34: =2*Y34-AC34 -> 29.74749825 | AE34: 1 | AF34: 1 | AG34: =IF(OR(AE34=1, AF34=1),1,0) -> 1 | AH34: 1 | AI34: 0 | AJ34: =IF(OR(AH34=1,AND(AH35=1,AI34=1)),1,0) -> 1 | AK34: 1 | AL34: 0 | AM34: 0 | AN34: =IF(OR(AK34=1, AL34=1),1,0) -> 1 | AO34: 1 | AP34: =IF(OR(AO34=1,AND(AO35=1,AM34=1)),1,0) -> 1 | AQ34: =IF(AND(AP34=0,AP35=1,AJ34=1),1,0) -> 0 | AR34: =IF(AND(AJ34=0,AJ35=1,AP34=1),1,0) -> 0 | AS34: =IF(OR(AQ34=1,AR34=1),1,0) -> 0 | AT34: =IF(OR(AQ34=1,AR34=1),IF(AQ34=1,1,0),AT35) -> 1 | AU34: =IF(AQ34=1,1,IF(AR34=1,0,AT34)) -> 1 | AV34: 38.47420117 | AW34: 1 | AX34: =IF(AU34=1,1,IF(AND(AU34=0, AW34=1),0,AX35)) -> 1 | AY34: =IF(AU34=1,100,IF(AND(AU34=0, AX34=1),50,IF(AND(AU34=0, AX34=0),0,AY35))) -> 100
A35: 3 | B35: =OFFSET(InputPriceData!B$10,CalculationsAndCharts!$A35+$A$11,0,1,1) -> 2009-05-04 | C35: 2009-05-08 | D35: =OFFSET(InputPriceData!G$10,CalculationsAndCharts!$A35+$A$11,0,1,1) -> 4638300 | E35: =OFFSET(InputPriceData!C$10,CalculationsAndCharts!$A35+$A$11,0,1,1) -> 32.29 | F35: =OFFSET(InputPriceData!D$10,CalculationsAndCharts!$A35+$A$11,0,1,1) -> 36.83 | G35: =OFFSET(InputPriceData!E$10,CalculationsAndCharts!$A35+$A$11,0,1,1) -> 32.13 | H35: =OFFSET(InputPriceData!F$10,CalculationsAndCharts!$A35+$A$11,0,1,1) -> 36.42 | I35: 34.4175 | J35: 31.54022478 | K35: 33.58198739 | L35: 37.87376675 | M35: 46.93754648 | N35: 50.58483464 | O35: 23.39349545 | P35: 38.1711933 | Q35: 49.2207236 | R35: 52.37311776 | S35: 19.22452686 | T35: 27.56246404 | U35: 34.48 | V35: 37.72235514 | W35: 46.688177 | X35: 50.46704927 | Y35: 23.56958371 | Z35: 37.77868466 | AA35: 48.93181557 | AB35: 52.26877113 | AC35: 18.80937839 | AD35: 28.32978903 | AE35: 1 | AF35: 1 | AG35: 1 | AH35: 1 | AI35: 0 | AJ35: 1 | AK35: 1 | AL35: 0 | AM35: 0 | AN35: 1 | AO35: 1 | AP35: 1 | AQ35: 0 | AR35: 0 | AS35: 0 | AT35: 1 | AU35: 1 | AV35: 38.60553002 | AW35: 1 | AX35: 1 | AY35: 100
A36: 4 | B36: =OFFSET(InputPriceData!B$10,CalculationsAndCharts!$A36+$A$11,0,1,1) -> 2009-04-27 | C36: 2009-05-01 | D36: =OFFSET(InputPriceData!G$10,CalculationsAndCharts!$A36+$A$11,0,1,1) -> 5499700 | E36: =OFFSET(InputPriceData!C$10,CalculationsAndCharts!$A36+$A$11,0,1,1) -> 31.51 | F36: =OFFSET(InputPriceData!D$10,CalculationsAndCharts!$A36+$A$11,0,1,1) -> 32.41 | G36: =OFFSET(InputPriceData!E$10,CalculationsAndCharts!$A36+$A$11,0,1,1) -> 29.97 | H36: =OFFSET(InputPriceData!F$10,CalculationsAndCharts!$A36+$A$11,0,1,1) -> 31.9 | I36: 31.4475 | J36: 31.63294956 | K36: 31.36511239 | L36: 38.03272154 | M36: 47.27324202 | N36: 50.71991938 | O36: 22.99835794 | P36: 38.71851544 | Q36: 49.62996546 | R36: 52.4898731 | S36: 19.75552304 | T36: 26.24119283 | U36: 31.19 | V36: 37.84244237 | W36: 47.02024447 | X36: 50.6070075 | Y36: 23.07360119 | Z36: 38.30494766 | AA36: 49.3448945 | AB36: 52.39236208 | AC36: 19.27252156 | AD36: 26.87468083 | AE36: 1 | AF36: 1 | AG36: 1 | AH36: 1 | AI36: 1 | AJ36: 1 | AK36: 1 | AL36: 0 | AM36: 1 | AN36: 1 | AO36: 1 | AP36: 1 | AQ36: 0 | AR36: 0 | AS36: 0 | AT36: 1 | AU36: 1 | AV36: 38.67961578 | AW36: 1 | AX36: 1 | AY36: 100
A37: 5 | B37: =OFFSET(InputPriceData!B$10,CalculationsAndCharts!$A37+$A$11,0,1,1) -> 2009-04-20 | C37: 2009-04-24 | D37: =OFFSET(InputPriceData!G$10,CalculationsAndCharts!$A37+$A$11,0,1,1) -> 3095200 | E37: =OFFSET(InputPriceData!C$10,CalculationsAndCharts!$A37+$A$11,0,1,1) -> 32.37 | F37: =OFFSET(InputPriceData!D$10,CalculationsAndCharts!$A37+$A$11,0,1,1) -> 33.46 | G37: =OFFSET(InputPriceData!E$10,CalculationsAndCharts!$A37+$A$11,0,1,1) -> 31 | H37: =OFFSET(InputPriceData!F$10,CalculationsAndCharts!$A37+$A$11,0,1,1) -> 33.11 | I37: 32.485 | J37: 30.78089912 | K37: 31.87669956 | L37: 38.27967002 | M37: 47.61548352 | N37: 50.8475741 | O37: 22.84013362 | P37: 39.3007435 | Q37: 50.03409324 | R37: 52.5957956 | S37: 20.39574638 | T37: 25.28452085 | U37: 32.23 | V37: 38.08882913 | W37: 47.36016307 | X37: 50.73985057 | Y37: 22.92584874 | Z37: 38.8690716 | AA37: 49.75378142 | AB37: 52.50523125 | AC37: 19.8511018 | AD37: 26.00059569 | AE37: 1 | AF37: 1 | AG37: 1 | AH37: 1 | AI37: 1 | AJ37: 1 | AK37: 0 | AL37: 0 | AM37: 1 | AN37: 0 | AO37: 0 | AP37: 0 | AQ37: 0 | AR37: 0 | AS37: 0 | AT37: 1 | AU37: 1 | AV37: 38.90943327 | AW37: 1 | AX37: 1 | AY37: 100
A38: 6 | B38: =OFFSET(InputPriceData!B$10,CalculationsAndCharts!$A38+$A$11,0,1,1) -> 2009-04-13 | C38: 2009-04-17 | D38: =OFFSET(InputPriceData!G$10,CalculationsAndCharts!$A38+$A$11,0,1,1) -> 2926500 | E38: =OFFSET(InputPriceData!C$10,CalculationsAndCharts!$A38+$A$11,0,1,1) -> 31.35 | F38: =OFFSET(InputPriceData!D$10,CalculationsAndCharts!$A38+$A$11,0,1,1) -> 33.38 | G38: =OFFSET(InputPriceData!E$10,CalculationsAndCharts!$A38+$A$11,0,1,1) -> 31.26 | H38: =OFFSET(InputPriceData!F$10,CalculationsAndCharts!$A38+$A$11,0,1,1) -> 33.05 | I38: 32.26 | J38: 29.30179824 | K38: 31.06089912 | L38: 38.51681708 | M38: 47.96125439 | N38: 50.96728116 | O38: 22.63396923 | P38: 39.91039572 | Q38: 50.43162471 | R38: 52.69067347 | S38: 21.12698648 | T38: 24.14095197 | U38: 32.32 | V38: 38.3058228 | W38: 47.70354581 | X38: 50.86502418 | Y38: 22.67185515 | Z38: 39.45956133 | AA38: 50.15691882 | AB38: 52.6071368 | AC38: 20.51506435 | AD38: 24.82864595 | AE38: 1 | AF38: 1 | AG38: 1 | AH38: 1 | AI38: 0 | AJ38: 1 | AK38: 0 | AL38: 0 | AM38: 0 | AN38: 0 | AO38: 0 | AP38: 0 | AQ38: 0 | AR38: 0 | AS38: 0 | AT38: 1 | AU38: 1 | AV38: 39.10602422 | AW38: 1 | AX38: 1 | AY38: 100
A39: 7 | B39: =OFFSET(InputPriceData!B$10,CalculationsAndCharts!$A39+$A$11,0,1,1) -> 2009-04-06 | C39: 2009-04-10 | D39: =OFFSET(InputPriceData!G$10,CalculationsAndCharts!$A39+$A$11,0,1,1) -> 2620200 | E39: =OFFSET(InputPriceData!C$10,CalculationsAndCharts!$A39+$A$11,0,1,1) -> 30.18 | F39: =OFFSET(InputPriceData!D$10,CalculationsAndCharts!$A39+$A$11,0,1,1) -> 32.15 | G39: =OFFSET(InputPriceData!E$10,CalculationsAndCharts!$A39+$A$11,0,1,1) -> 29.27 | H39: =OFFSET(InputPriceData!F$10,CalculationsAndCharts!$A39+$A$11,0,1,1) -> 31.93 | I39: 30.8825 | J39: 27.72109647 | K39: 29.61867324 | L39: 38.79296219 | M39: 48.31104836 | N39: 51.07861548 | O39: 22.52435696 | P39: 40.55026336 | Q39: 50.82129986 | R39: 52.77434194 | S39: 21.96123246 | T39: 23.08748146 | U39: 30.71 | V39: 38.52751994 | W39: 48.05160962 | X39: 50.98211598 | Y39: 22.40984692 | Z39: 40.08132823 | AA39: 50.55311724 | AB39: 52.69788561 | AC39: 21.28251858 | AD39: 23.53717526 | AE39: 1 | AF39: 1 | AG39: 1 | AH39: 1 | AI39: 0 | AJ39: 1 | AK39: 0 | AL39: 0 | AM39: 0 | AN39: 0 | AO39: 0 | AP39: 0 | AQ39: 0 | AR39: 0 | AS39: 0 | AT39: 1 | AU39: 1 | AV39: 39.31131318 | AW39: 1 | AX39: 1 | AY39: 100
A40: 8 | B40: =OFFSET(InputPriceData!B$10,CalculationsAndCharts!$A40+$A$11,0,1,1) -> 2009-03-30 | C40: 2009-04-03 | D40: =OFFSET(InputPriceData!G$10,CalculationsAndCharts!$A40+$A$11,0,1,1) -> 3271100 | E40: =OFFSET(InputPriceData!C$10,CalculationsAndCharts!$A40+$A$11,0,1,1) -> 27.34 | F40: =OFFSET(InputPriceData!D$10,CalculationsAndCharts!$A40+$A$11,0,1,1) -> 30.6 | G40: =OFFSET(InputPriceData!E$10,CalculationsAndCharts!$A40+$A$11,0,1,1) -> 26.43 | H40: =OFFSET(InputPriceData!F$10,CalculationsAndCharts!$A40+$A$11,0,1,1) -> 30.47 | I40: =AVERAGE(E40:H40) -> 28.71 | J40: 26.73219295 | K40: 28.11804824 | L40: 39.13275067 | M40: 48.66357008 | N40: 51.18111797 | O40: 22.58865975 | P40: 41.21788953 | Q40: 51.20170862 | R40: 52.84667683 | S40: 22.89521956 | T40: 22.28209994 | U40: 28.515 | V40: 38.81705771 | W40: 48.40435369 | X40: 51.09065325 | Y40: 22.32876533 | Z40: 40.73582754 | AA40: 50.94096128 | AB40: 52.77732148 | AC40: 22.16192025 | AD40: 22.49561041 | AE40: 1 | AF40: 1 | AG40: 1 | AH40: 1 | AI40: 0 | AJ40: 1 | AK40: 0 | AL40: 0 | AM40: 0 | AN40: 0 | AO40: 0 | AP40: 0 | AQ40: 1 | AR40: 0 | AS40: 1 | AT40: 1 | AU40: 1 | AV40: 39.56152719 | AW40: 1 | AX40: 1 | AY40: 100
A41: 9 | B41: =OFFSET(InputPriceData!B$10,CalculationsAndCharts!$A41+$A$11,0,1,1) -> 2009-03-23 | C41: 2009-03-27 | D41: =OFFSET(InputPriceData!G$10,CalculationsAndCharts!$A41+$A$11,0,1,1) -> 2999600 | E41: =OFFSET(InputPriceData!C$10,CalculationsAndCharts!$A41+$A$11,0,1,1) -> 27.55 | F41: =OFFSET(InputPriceData!D$10,CalculationsAndCharts!$A41+$A$11,0,1,1) -> 28.98 | G41: =OFFSET(InputPriceData!E$10,CalculationsAndCharts!$A41+$A$11,0,1,1) -> 27.26 | H41: =OFFSET(InputPriceData!F$10,CalculationsAndCharts!$A41+$A$11,0,1,1) -> 27.88 | I41: 27.9175 | J41: 25.5468859 | K41: 26.99781795 | L41: 39.54070261 | M41: 49.01656339 | N41: 51.27436048 | O41: 22.84677816 | P41: 41.907861 | Q41: 51.5714797 | R41: 52.90760158 | S41: 23.9167455 | T41: 21.77681082 | U41: 28.12 | V41: 39.19861541 | W41: 48.75943872 | X41: 51.19014582 | Y41: 22.50767588 | Z41: 41.41757058 | AA41: 51.3189292 | AB41: 52.84533482 | AC41: 23.14125898 | AD41: 21.87409278 | AE41: 1 | AF41: 1 | AG41: 1 | AH41: 1 | AI41: 1 | AJ41: 1 | AK41: 1 | AL41: 0 | AM41: 1 | AN41: 1 | AO41: 1 | AP41: 1 | AQ41: 0 | AR41: 0 | AS41: 0 | AT41: 0 | AU41: 0 | AV41: 39.86971455 | AW41: 1 | AX41: 0 | AY41: 0
A42: 10 | B42: =OFFSET(InputPriceData!B$10,CalculationsAndCharts!$A42+$A$11,0,1,1) -> 2009-03-16 | C42: 2009-03-20 | D42: =OFFSET(InputPriceData!G$10,CalculationsAndCharts!$A42+$A$11,0,1,1) -> 4508800 | E42: =OFFSET(InputPriceData!C$10,CalculationsAndCharts!$A42+$A$11,0,1,1) -> 26.97 | F42: =OFFSET(InputPriceData!D$10,CalculationsAndCharts!$A42+$A$11,0,1,1) -> 28.25 | G42: =OFFSET(InputPriceData!E$10,CalculationsAndCharts!$A42+$A$11,0,1,1) -> 25.53 | H42: =OFFSET(InputPriceData!F$10,CalculationsAndCharts!$A42+$A$11,0,1,1) -> 26.82 | I42: 26.8925 | J42: 24.2012718 | K42: 25.8862609 | L42: 40.00525389 | M42: 49.36752119 | N42: 51.3579826 | O42: 23.2711807 | P42: 42.61382703 | Q42: 51.9293915 | R42: 52.95708757 | S42: 25.01039418 | T42: 21.53196723 | U42: 26.89 | V42: 39.6089345 | W42: 49.11354329 | X42: 51.28017201 | Y42: 22.76634563 | Z42: 42.11793705 | AA42: 51.68564618 | AB42: 52.90186836 | AC42: 24.19874098 | AD42: 21.33395029 | AE42: 1 | AF42: 0 | AG42: 1 | AH42: 1 | AI42: 1 | AJ42: 1 | AK42: 1 | AL42: 1 | AM42: 1 | AN42: 1 | AO42: 1 | AP42: 1 | AQ42: 0 | AR42: 0 | AS42: 0 | AT42: 0 | AU42: 0 | AV42: 40.27614555 | AW42: 1 | AX42: 0 | AY42: 0
A43: 11 | B43: =OFFSET(InputPriceData!B$10,CalculationsAndCharts!$A43+$A$11,0,1,1) -> 2009-03-09 | C43: 2009-03-13 | D43: =OFFSET(InputPriceData!G$10,CalculationsAndCharts!$A43+$A$11,0,1,1) -> 6326000 | E43: =OFFSET(InputPriceData!C$10,CalculationsAndCharts!$A43+$A$11,0,1,1) -> 21.85 | F43: =OFFSET(InputPriceData!D$10,CalculationsAndCharts!$A43+$A$11,0,1,1) -> 26.55 | G43: =OFFSET(InputPriceData!E$10,CalculationsAndCharts!$A43+$A$11,0,1,1) -> 21.52 | H43: =OFFSET(InputPriceData!F$10,CalculationsAndCharts!$A43+$A$11,0,1,1) -> 26.27 | I43: 24.0475 | J43: 24.3550436 | K43: 24.1181359 | L43: 40.52817956 | M43: 49.71427183 | N43: 51.43170339 | O43: 23.87342657 | P43: 43.33022134 | Q43: 52.2744124 | R43: 52.99515039 | S43: 26.1625772 | T43: 21.58427595 | U43: 24.035 | V43: 40.08000614 | W43: 49.46556584 | X43: 51.36041752 | Y43: 23.20373844 | Z43: 42.83466266 | AA43: 52.04000578 | AB43: 52.94691363 | AC43: 25.33088427 | AD43: 21.07659261 | AE43: 1 | AF43: 0 | AG43: 1 | AH43: 1 | AI43: 0 | AJ43: 1 | AK43: 1 | AL43: 1 | AM43: 0 | AN43: 1 | AO43: 1 | AP43: 1 | AQ43: 0 | AR43: 0 | AS43: 0 | AT43: 0 | AU43: 0 | AV43: 40.73228608 | AW43: 1 | AX43: 0 | AY43: 0
A44: 12 | B44: =OFFSET(InputPriceData!B$10,CalculationsAndCharts!$A44+$A$11,0,1,1) -> 2009-03-02 | C44: 2009-03-06 | D44: =OFFSET(InputPriceData!G$10,CalculationsAndCharts!$A44+$A$11,0,1,1) -> 4194700 | E44: =OFFSET(InputPriceData!C$10,CalculationsAndCharts!$A44+$A$11,0,1,1) -> 23.21 | F44: =OFFSET(InputPriceData!D$10,CalculationsAndCharts!$A44+$A$11,0,1,1) -> 23.59 | G44: =OFFSET(InputPriceData!E$10,CalculationsAndCharts!$A44+$A$11,0,1,1) -> 21.92 | H44: =OFFSET(InputPriceData!F$10,CalculationsAndCharts!$A44+$A$11,0,1,1) -> 22.49 | I44: 22.8025 | J44: 25.9075872 | K44: 24.1344186 | L44: 41.13595896 | M44: 50.05449747 | N44: 51.49531197 | O44: 24.73969641 | P44: 44.05084337 | Q44: 52.60567874 | R44: 53.02184439 | S44: 27.35733828 | T44: 22.12205455 | U44: 22.755 | V44: 40.67426563 | W44: 49.81317916 | X44: 51.43059721 | Y44: 24.01385663 | Z44: 43.56173393 | AA44: 52.38094441 | AB44: 52.9805028 | AC44: 26.52287135 | AD44: 21.5048419 | AE44: 0 | AF44: 0 | AG44: 0 | AH44: 0 | AI44: 1 | AJ44: 0 | AK44: 1 | AL44: 1 | AM44: 1 | AN44: 1 | AO44: 1 | AP44: 1 | AQ44: 0 | AR44: 0 | AS44: 0 | AT44: 0 | AU44: 0 | AV44: 41.22253306 | AW44: 1 | AX44: 0 | AY44: 0
A45: 13 | B45: =OFFSET(InputPriceData!B$10,CalculationsAndCharts!$A45+$A$11,0,1,1) -> 2009-02-23 | C45: 2009-02-27 | D45: =OFFSET(InputPriceData!G$10,CalculationsAndCharts!$A45+$A$11,0,1,1) -> 3717400 | E45: =OFFSET(InputPriceData!C$10,CalculationsAndCharts!$A45+$A$11,0,1,1) -> 25.33 | F45: =OFFSET(InputPriceData!D$10,CalculationsAndCharts!$A45+$A$11,0,1,1) -> 25.74 | G45: =OFFSET(InputPriceData!E$10,CalculationsAndCharts!$A45+$A$11,0,1,1) -> 23.58 | H45: =OFFSET(InputPriceData!F$10,CalculationsAndCharts!$A45+$A$11,0,1,1) -> 23.88 | I45: 24.6325 | J45: 27.1826744 | K45: 25.6444622 | L45: 41.76564564 | M45: 50.38481371 | N45: 51.54867547 | O45: 25.69117123 | P45: 44.76607103 | Q45: 52.9225245 | R45: 53.03725793 | S45: 28.56789755 | T45: 22.81444491 | U45: 24.66 | V45: 41.33794214 | W45: 50.15165744 | X45: 51.49050159 | Y45: 25.04935568 | Z45: 44.28572938 | AA45: 52.70758184 | AB45: 53.00270867 | AC45: 27.73715131 | AD45: 22.36156005 | AE45: 0 | AF45: 0 | AG45: 0 | AH45: 0 | AI45: 0 | AJ45: 0 | AK45: 1 | AL45: 1 | AM45: 0 | AN45: 1 | AO45: 1 | AP45: 1 | AQ45: 0 | AR45: 0 | AS45: 0 | AT45: 0 | AU45: 0 | AV45: 41.85753418 | AW45: 1 | AX45: 0 | AY45: 0
A46: 14 | B46: =OFFSET(InputPriceData!B$10,CalculationsAndCharts!$A46+$A$11,0,1,1) -> 2009-02-17 | C46: 2009-02-21 | D46: =OFFSET(InputPriceData!G$10,CalculationsAndCharts!$A46+$A$11,0,1,1) -> 3281800 | E46: =OFFSET(InputPriceData!C$10,CalculationsAndCharts!$A46+$A$11,0,1,1) -> 26.95 | F46: =OFFSET(InputPriceData!D$10,CalculationsAndCharts!$A46+$A$11,0,1,1) -> 26.95 | G46: =OFFSET(InputPriceData!E$10,CalculationsAndCharts!$A46+$A$11,0,1,1) -> 24.71 | H46: =OFFSET(InputPriceData!F$10,CalculationsAndCharts!$A46+$A$11,0,1,1) -> 25.16 | I46: 25.9425 | J46: 28.4228488 | K46: 26.8745494 | L46: 42.3627265 | M46: 50.70404216 | N46: 51.59178146 | O46: 26.56783448 | P46: 45.47254881 | Q46: 53.22461536 | R46: 53.04150732 | S46: 29.78530764 | T46: 23.35036132 | U46: 25.83 | V46: 41.9556437 | W46: 50.47809134 | X46: 51.54008841 | Y46: 25.97274548 | Z46: 44.99818767 | AA46: 53.0195023 | AB46: 53.01363929 | AC46: 28.94969541 | AD46: 22.99579556 | AE46: 0 | AF46: 0 | AG46: 0 | AH46: 0 | AI46: 0 | AJ46: 0 | AK46: 1 | AL46: 1 | AM46: 0 | AN46: 1 | AO46: 1 | AP46: 1 | AQ46: 0 | AR46: 1 | AS46: 1 | AT46: 0 | AU46: 0 | AV46: 42.46694212 | AW46: 1 | AX46: 0 | AY46: 0
A47: 15 | B47: =OFFSET(InputPriceData!B$10,CalculationsAndCharts!$A47+$A$11,0,1,1) -> 2009-02-09 | C47: 2009-02-13 | D47: =OFFSET(InputPriceData!G$10,CalculationsAndCharts!$A47+$A$11,0,1,1) -> 3478400 | E47: =OFFSET(InputPriceData!C$10,CalculationsAndCharts!$A47+$A$11,0,1,1) -> 29.38 | F47: =OFFSET(InputPriceData!D$10,CalculationsAndCharts!$A47+$A$11,0,1,1) -> 29.74 | G47: =OFFSET(InputPriceData!E$10,CalculationsAndCharts!$A47+$A$11,0,1,1) -> 26.63 | H47: =OFFSET(InputPriceData!F$10,CalculationsAndCharts!$A47+$A$11,0,1,1) -> 27.22 | I47: 28.2425 | J47: 28.6031976 | K47: 28.3039244 | L47: 42.93636269 | M47: 51.01297978 | N47: 51.62466069 | O47: 27.39480943 | P47: 46.17272341 | Q47: 53.51172894 | R47: 53.03472554 | S47: 31.01770895 | T47: 23.77190991 | U47: 28.185 | V47: 42.55288976 | W47: 50.79373755 | X47: 51.57942163 | Y47: 26.85687827 | Z47: 45.70283368 | AA47: 53.31658803 | AB47: 53.01342215 | AC47: 30.1721591 | AD47: 23.54159744 | AE47: 1 | AF47: 0 | AG47: 1 | AH47: 1 | AI47: 0 | AJ47: 1 | AK47: 1 | AL47: 1 | AM47: 0 | AN47: 1 | AO47: 1 | AP47: 1 | AQ47: 0 | AR47: 0 | AS47: 0 | AT47: 0 | AU47: 0 | AV47: 43.05361813 | AW47: 1 | AX47: 0 | AY47: 0
A48: 16 | B48: =OFFSET(InputPriceData!B$10,CalculationsAndCharts!$A48+$A$11,0,1,1) -> 2009-02-02 | C48: 2009-02-06 | D48: =OFFSET(InputPriceData!G$10,CalculationsAndCharts!$A48+$A$11,0,1,1) -> 3457500 | E48: =OFFSET(InputPriceData!C$10,CalculationsAndCharts!$A48+$A$11,0,1,1) -> 27.12 | F48: =OFFSET(InputPriceData!D$10,CalculationsAndCharts!$A48+$A$11,0,1,1) -> 29.51 | G48: =OFFSET(InputPriceData!E$10,CalculationsAndCharts!$A48+$A$11,0,1,1) -> 26.78 | H48: =OFFSET(InputPriceData!F$10,CalculationsAndCharts!$A48+$A$11,0,1,1) -> 29.11 | I48: 28.13 | J48: 29.0763952 | K48: 28.3740988 | L48: 43.47830485 | M48: 51.31211375 | N48: 51.64731554 | O48: 28.14588886 | P48: 46.86820171 | Q48: 53.78354396 | R48: 53.01705875 | S48: 32.27103198 | T48: 24.02074573 | U48: 28.145 | V48: 43.08503382 | W48: 51.09895413 | X48: 51.60852104 | Y48: 27.56676012 | Z48: 46.40083203 | AA48: 53.59857893 | AB48: 53.00219378 | AC48: 31.40895307 | AD48: 23.72456717 | AE48: 1 | AF48: 0 | AG48: 1 | AH48: 1 | AI48: 0 | AJ48: 1 | AK48: 1 | AL48: 1 | AM48: 0 | AN48: 1 | AO48: 1 | AP48: 1 | AQ48: 0 | AR48: 0 | AS48: 0 | AT48: 0 | AU48: 0 | AV48: 43.59035094 | AW48: 1 | AX48: 0 | AY48: 0
A49: 17 | B49: =OFFSET(InputPriceData!B$10,CalculationsAndCharts!$A49+$A$11,0,1,1) -> 2009-01-26 | C49: 2009-01-30 | D49: =OFFSET(InputPriceData!G$10,CalculationsAndCharts!$A49+$A$11,0,1,1) -> 3330500 | E49: =OFFSET(InputPriceData!C$10,CalculationsAndCharts!$A49+$A$11,0,1,1) -> 28.35 | F49: =OFFSET(InputPriceData!D$10,CalculationsAndCharts!$A49+$A$11,0,1,1) -> 29.29 | G49: =OFFSET(InputPriceData!E$10,CalculationsAndCharts!$A49+$A$11,0,1,1) -> 27.45 | H49: =OFFSET(InputPriceData!F$10,CalculationsAndCharts!$A49+$A$11,0,1,1) -> 27.69 | I49: 28.195 | J49: 29.9577904 | K49: 28.8901452 | L49: 44.03771989 | M49: 51.60225482 | N49: 51.65973042 | O49: 28.96612565 | P49: 47.5616207 | Q49: 54.03966775 | R49: 52.98867041 | S49: 33.55452926 | T49: 24.37772203 | U49: 28.37 | V49: 43.63836841 | W49: 51.39576599 | X49: 51.62739389 | Y49: 28.35520114 | Z49: 47.09839024 | AA49: 53.86516215 | AB49: 52.98010544 | AC49: 32.67978973 | AD49: 24.03061254 | AE49: 1 | AF49: 0 | AG49: 1 | AH49: 1 | AI49: 1 | AJ49: 1 | AK49: 1 | AL49: 1 | AM49: 1 | AN49: 1 | AO49: 1 | AP49: 1 | AQ49: 0 | AR49: 0 | AS49: 0 | AT49: 0 | AU49: 0 | AV49: 44.0812103 | AW49: 1 | AX49: 0 | AY49: 0
A50: 18 | B50: =OFFSET(InputPriceData!B$10,CalculationsAndCharts!$A50+$A$11,0,1,1) -> 2009-01-20 | C50: 2009-01-24 | D50: =OFFSET(InputPriceData!G$10,CalculationsAndCharts!$A50+$A$11,0,1,1) -> 4430200 | E50: =OFFSET(InputPriceData!C$10,CalculationsAndCharts!$A50+$A$11,0,1,1) -> 29.4 | F50: =OFFSET(InputPriceData!D$10,CalculationsAndCharts!$A50+$A$11,0,1,1) -> 29.4 | G50: =OFFSET(InputPriceData!E$10,CalculationsAndCharts!$A50+$A$11,0,1,1) -> 26.78 | H50: =OFFSET(InputPriceData!F$10,CalculationsAndCharts!$A50+$A$11,0,1,1) -> 27.88 | I50: 28.365 | J50: 31.5505808 | K50: 29.5615404 | L50: 44.59874118 | M50: 51.88242278 | N50: 51.66185915 | O50: 29.81081435 | P50: 48.25034274 | Q50: 54.27959542 | R50: 52.94974458 | S50: 34.86198655 | T50: 24.75964215 | U50: 28.09 | V50: 44.20386354 | W50: 51.68307702 | X50: 51.6359727 | Y50: 29.19833226 | Z50: 47.79258243 | AA50: 54.11578333 | AB50: 52.94732556 | AC50: 33.97772288 | AD50: 24.41894164 | AE50: 1 | AF50: 0 | AG50: 1 | AH50: 1 | AI50: 0 | AJ50: 1 | AK50: 1 | AL50: 1 | AM50: 0 | AN50: 1 | AO50: 1 | AP50: 1 | AQ50: 0 | AR50: 0 | AS50: 0 | AT50: 0 | AU50: 0 | AV50: 44.63684455 | AW50: 1 | AX50: 0 | AY50: 0
A51: 19 | B51: =OFFSET(InputPriceData!B$10,CalculationsAndCharts!$A51+$A$11,0,1,1) -> 2009-01-12 | C51: 2009-01-16 | D51: =OFFSET(InputPriceData!G$10,CalculationsAndCharts!$A51+$A$11,0,1,1) -> 3508100 | E51: =OFFSET(InputPriceData!C$10,CalculationsAndCharts!$A51+$A$11,0,1,1) -> 31.9 | F51: =OFFSET(InputPriceData!D$10,CalculationsAndCharts!$A51+$A$11,0,1,1) -> 31.9 | G51: =OFFSET(InputPriceData!E$10,CalculationsAndCharts!$A51+$A$11,0,1,1) -> 27.65 | H51: =OFFSET(InputPriceData!F$10,CalculationsAndCharts!$A51+$A$11,0,1,1) -> 29.33 | I51: 30.195 | J51: 32.9061616 | K51: 30.9143308 | L51: 45.15567454 | M51: 52.15218876 | N51: 51.65369013 | O51: 30.66414745 | P51: 48.93328823 | Q51: 54.50290107 | R51: 52.90049084 | S51: 36.19165234 | T51: 25.13664257 | U51: 29.775 | V51: 44.8006733 | W51: 51.96008492 | X51: 51.6342281 | Y51: 30.15599322 | Z51: 48.48125837 | AA51: 54.34997595 | AB51: 52.90404935 | AC51: 35.29789659 | AD51: 25.01408985 | AE51: 1 | AF51: 0 | AG51: 1 | AH51: 1 | AI51: 0 | AJ51: 1 | AK51: 1 | AL51: 1 | AM51: 0 | AN51: 1 | AO51: 1 | AP51: 1 | AQ51: 0 | AR51: 0 | AS51: 0 | AT51: 0 | AU51: 0 | AV51: 45.20487317 | AW51: 1 | AX51: 0 | AY51: 0
A52: 20 | B52: =OFFSET(InputPriceData!B$10,CalculationsAndCharts!$A52+$A$11,0,1,1) -> 2009-01-05 | C52: 2009-01-09 | D52: =OFFSET(InputPriceData!G$10,CalculationsAndCharts!$A52+$A$11,0,1,1) -> 2418200 | E52: =OFFSET(InputPriceData!C$10,CalculationsAndCharts!$A52+$A$11,0,1,1) -> 33.91 | F52: =OFFSET(InputPriceData!D$10,CalculationsAndCharts!$A52+$A$11,0,1,1) -> 35.16 | G52: =OFFSET(InputPriceData!E$10,CalculationsAndCharts!$A52+$A$11,0,1,1) -> 31.64 | H52: =OFFSET(InputPriceData!F$10,CalculationsAndCharts!$A52+$A$11,0,1,1) -> 31.85 | I52: 33.14 | J52: 32.67232319 | K52: 33.1530808 | L52: 45.68313171 | M52: 52.41131892 | N52: 51.63522721 | O52: 31.4506656 | P52: 49.60992308 | Q52: 54.70918303 | R52: 52.84114232 | S52: 37.54336247 | T52: 25.35796873 | U52: 33.4 | V52: 45.35717972 | W52: 52.22524832 | X52: 51.62215932 | Y52: 31.01795352 | Z52: 49.15997189 | AA52: 54.56733586 | AB52: 52.85049651 | AC52: 36.62840459 | AD52: 25.40750246 | AE52: 1 | AF52: 1 | AG52: 1 | AH52: 1 | AI52: 0 | AJ52: 1 | AK52: 0 | AL52: 0 | AM52: 0 | AN52: 0 | AO52: 1 | AP52: 1 | AQ52: 0 | AR52: 0 | AS52: 0 | AT52: 0 | AU52: 0 | AV52: 45.74300447 | AW52: 1 | AX52: 0 | AY52: 0
A53: 21 | B53: =OFFSET(InputPriceData!B$10,CalculationsAndCharts!$A53+$A$11,0,1,1) -> 2008-12-29 | C53: 2009-01-02 | D53: =OFFSET(InputPriceData!G$10,CalculationsAndCharts!$A53+$A$11,0,1,1) -> 1597100 | E53: =OFFSET(InputPriceData!C$10,CalculationsAndCharts!$A53+$A$11,0,1,1) -> 32.95 | F53: =OFFSET(InputPriceData!D$10,CalculationsAndCharts!$A53+$A$11,0,1,1) -> 33.8 | G53: =OFFSET(InputPriceData!E$10,CalculationsAndCharts!$A53+$A$11,0,1,1) -> 31.49 | H53: =OFFSET(InputPriceData!F$10,CalculationsAndCharts!$A53+$A$11,0,1,1) -> 33.67 | I53: 32.9775 | J53: 32.36714639 | K53: 32.6586616 | L53: 46.14720767 | M53: 52.66051104 | N53: 51.60648308 | O53: 32.06657298 | P53: 50.28248817 | Q53: 54.89804451 | R53: 52.77195563 | S53: 38.92528661 | T53: 25.20785936 | U53: 32.645 | V53: 45.80003822 | W53: 52.47962123 | X53: 51.5998227 | Y53: 31.56107368 | Z53: 49.8318985 | AA53: 54.7676086 | AB53: 52.78690987 | AC53: 37.97977954 | AD53: 25.14236782 | AE53: 1 | AF53: 0 | AG53: 1 | AH53: 1 | AI53: 1 | AJ53: 1 | AK53: 0 | AL53: 1 | AM53: 1 | AN53: 1 | AO53: 1 | AP53: 1 | AQ53: 0 | AR53: 0 | AS53: 0 | AT53: 0 | AU53: 0 | AV53: 46.21395377 | AW53: 1 | AX53: 0 | AY53: 0
A54: 22 | B54: =OFFSET(InputPriceData!B$10,CalculationsAndCharts!$A54+$A$11,0,1,1) -> 2008-12-22 | C54: 2008-12-26 | D54: =OFFSET(InputPriceData!G$10,CalculationsAndCharts!$A54+$A$11,0,1,1) -> 1205400 | E54: =OFFSET(InputPriceData!C$10,CalculationsAndCharts!$A54+$A$11,0,1,1) -> 33.75 | F54: =OFFSET(InputPriceData!D$10,CalculationsAndCharts!$A54+$A$11,0,1,1) -> 33.75 | G54: =OFFSET(InputPriceData!E$10,CalculationsAndCharts!$A54+$A$11,0,1,1) -> 32.56 | H54: =OFFSET(InputPriceData!F$10,CalculationsAndCharts!$A54+$A$11,0,1,1) -> 33.14 | I54: 33.3 | J54: 31.43429278 | K54: 32.47964639 | L54: 46.64678345 | M54: 52.90174449 | N54: 51.567445 | O54: 32.80256188 | P54: 50.9571517 | Q54: 55.06899104 | R54: 52.69321159 | S54: 40.35769357 | T54: 25.2474302 | U54: 33.155 | V54: 46.28726186 | W54: 52.72701319 | X54: 51.56723756 | Y54: 32.24798358 | Z54: 50.50859571 | AA54: 54.95041268 | AB54: 52.71355066 | AC54: 39.38809974 | AD54: 25.10786741 | AE54: 1 | AF54: 0 | AG54: 1 | AH54: 1 | AI54: 0 | AJ54: 1 | AK54: 0 | AL54: 1 | AM54: 0 | AN54: 1 | AO54: 1 | AP54: 1 | AQ54: 0 | AR54: 0 | AS54: 0 | AT54: 0 | AU54: 0 | AV54: 46.63917255 | AW54: 1 | AX54: 0 | AY54: 0
A55: 23 | B55: =OFFSET(InputPriceData!B$10,CalculationsAndCharts!$A55+$A$11,0,1,1) -> 2008-12-15 | C55: 2008-12-19 | D55: =OFFSET(InputPriceData!G$10,CalculationsAndCharts!$A55+$A$11,0,1,1) -> 4034400 | E55: =OFFSET(InputPriceData!C$10,CalculationsAndCharts!$A55+$A$11,0,1,1) -> 31.68 | F55: =OFFSET(InputPriceData!D$10,CalculationsAndCharts!$A55+$A$11,0,1,1) -> 34.89 | G55: =OFFSET(InputPriceData!E$10,CalculationsAndCharts!$A55+$A$11,0,1,1) -> 31.09 | H55: =OFFSET(InputPriceData!F$10,CalculationsAndCharts!$A55+$A$11,0,1,1) -> 33.74 | I55: 32.85 | J55: 30.01858555 | K55: 31.94429278 | L55: 47.17149223 | M55: 53.13340972 | N55: 51.5180265 | O55: 33.63227405 | P55: 51.62954391 | Q55: 55.22128138 | R55: 52.60521976 | S55: 41.83000734 | T55: 25.43454076 | U55: 32.99 | V55: 46.77364193 | W55: 52.9655225 | X55: 51.52428291 | Y55: 32.9486412 | Z55: 51.18491468 | AA55: 55.11492442 | AB55: 52.63070392 | AC55: 40.84067469 | AD55: 25.05660772 | AE55: 1 | AF55: 0 | AG55: 1 | AH55: 1 | AI55: 0 | AJ55: 1 | AK55: 1 | AL55: 1 | AM55: 0 | AN55: 1 | AO55: 1 | AP55: 1 | AQ55: 0 | AR55: 0 | AS55: 0 | AT55: 0 | AU55: 0 | AV55: 47.09677161 | AW55: 1 | AX55: 0 | AY55: 0
A56: 24 | B56: =OFFSET(InputPriceData!B$10,CalculationsAndCharts!$A56+$A$11,0,1,1) -> 2008-12-08 | C56: 2008-12-12 | D56: =OFFSET(InputPriceData!G$10,CalculationsAndCharts!$A56+$A$11,0,1,1) -> 3498200 | E56: =OFFSET(InputPriceData!C$10,CalculationsAndCharts!$A56+$A$11,0,1,1) -> 31.2 | F56: =OFFSET(InputPriceData!D$10,CalculationsAndCharts!$A56+$A$11,0,1,1) -> 33.29 | G56: =OFFSET(InputPriceData!E$10,CalculationsAndCharts!$A56+$A$11,0,1,1) -> 30.02 | H56: =OFFSET(InputPriceData!F$10,CalculationsAndCharts!$A56+$A$11,0,1,1) -> 31.45 | I56: 31.49 | J56: 28.5471711 | K56: 30.46858555 | L56: 47.73546258 | M56: 53.35422148 | N56: 51.4581975 | O56: 34.60192082 | P56: 52.29610946 | Q56: 55.3543087 | R56: 52.50832859 | S56: 43.33373088 | T56: 25.87011075 | U56: 31.655 | V56: 47.28414719 | W56: 53.19485141 | X56: 51.47090367 | Y56: 33.738791 | Z56: 51.86033222 | AA56: 55.26048034 | AB56: 52.53869575 | AC56: 42.33825138 | AD56: 25.13933062 | AE56: 1 | AF56: 0 | AG56: 1 | AH56: 1 | AI56: 1 | AJ56: 1 | AK56: 1 | AL56: 1 | AM56: 0 | AN56: 1 | AO56: 1 | AP56: 1 | AQ56: 0 | AR56: 0 | AS56: 0 | AT56: 0 | AU56: 0 | AV56: 47.54954353 | AW56: 1 | AX56: 0 | AY56: 0
A57: 25 | B57: =OFFSET(InputPriceData!B$10,CalculationsAndCharts!$A57+$A$11,0,1,1) -> 2008-12-01 | C57: 2008-12-05 | D57: =OFFSET(InputPriceData!G$10,CalculationsAndCharts!$A57+$A$11,0,1,1) -> 3487900 | E57: =OFFSET(InputPriceData!C$10,CalculationsAndCharts!$A57+$A$11,0,1,1) -> 27.87 | F57: =OFFSET(InputPriceData!D$10,CalculationsAndCharts!$A57+$A$11,0,1,1) -> 29.65 | G57: =OFFSET(InputPriceData!E$10,CalculationsAndCharts!$A57+$A$11,0,1,1) -> 27 | H57: =OFFSET(InputPriceData!F$10,CalculationsAndCharts!$A57+$A$11,0,1,1) -> 29.58 | I57: 28.525 | J57: 28.56934221 | K57: 28.43608555 | L57: 48.37497655 | M57: 53.56232366 | N57: 51.38797439 | O57: 35.82593306 | P57: 52.95144978 | Q57: 55.46757534 | R57: 52.40292192 | S57: 44.85454526 | T57: 26.79732086 | U57: 28.325 | V57: 47.86300449 | W57: 53.41376638 | X57: 51.40705375 | Y57: 34.75476808 | Z57: 52.53150041 | AA57: 55.38641175 | AB57: 52.43788891 | AC57: 43.87315489 | AD57: 25.63638128 | AE57: 1 | AF57: 0 | AG57: 1 | AH57: 1 | AI57: 0 | AJ57: 1 | AK57: 1 | AL57: 1 | AM57: 0 | AN57: 1 | AO57: 1 | AP57: 1 | AQ57: 0 | AR57: 0 | AS57: 0 | AT57: 0 | AU57: 0 | AV57: 48.09529077 | AW57: 1 | AX57: 0 | AY57: 0
A58: 26 | B58: =OFFSET(InputPriceData!B$10,CalculationsAndCharts!$A58+$A$11,0,1,1) -> 2008-11-24 | C58: 2008-11-28 | D58: =OFFSET(InputPriceData!G$10,CalculationsAndCharts!$A58+$A$11,0,1,1) -> 3421800 | E58: =OFFSET(InputPriceData!C$10,CalculationsAndCharts!$A58+$A$11,0,1,1) -> 26.63 | F58: =OFFSET(InputPriceData!D$10,CalculationsAndCharts!$A58+$A$11,0,1,1) -> 30.11 | G58: =OFFSET(InputPriceData!E$10,CalculationsAndCharts!$A58+$A$11,0,1,1) -> 26.63 | H58: =OFFSET(InputPriceData!F$10,CalculationsAndCharts!$A58+$A$11,0,1,1) -> 29.39 | I58: 28.19 | J58: 28.94868441 | K58: 28.4696711 | L58: 49.11345399 | M58: 53.75444762 | N58: 51.30744293 | O58: 37.38446203 | P58: 53.58572818 | Q58: 55.56076517 | R58: 52.28941624 | S58: 46.36430526 | T58: 28.40461881 | U58: 28.37 | V58: 48.58663429 | W58: 53.61935015 | X58: 51.33273106 | Y58: 36.23458346 | Z58: 53.1898979 | AA58: 55.49214921 | AB58: 52.32868436 | AC58: 45.42193045 | AD58: 27.04723647 | AE58: 1 | AF58: 0 | AG58: 1 | AH58: 1 | AI58: 0 | AJ58: 1 | AK58: 1 | AL58: 1 | AM58: 0 | AN58: 1 | AO58: 1 | AP58: 1 | AQ58: 0 | AR58: 0 | AS58: 0 | AT58: 0 | AU58: 0 | AV58: 48.72292775 | AW58: 1 | AX58: 0 | AY58: 0
A59: 27 | B59: =OFFSET(InputPriceData!B$10,CalculationsAndCharts!$A59+$A$11,0,1,1) -> 2008-11-17 | C59: 2008-11-21 | D59: =OFFSET(InputPriceData!G$10,CalculationsAndCharts!$A59+$A$11,0,1,1) -> 3489800 | E59: =OFFSET(InputPriceData!C$10,CalculationsAndCharts!$A59+$A$11,0,1,1) -> 28.58 | F59: =OFFSET(InputPriceData!D$10,CalculationsAndCharts!$A59+$A$11,0,1,1) -> 29.88 | G59: =OFFSET(InputPriceData!E$10,CalculationsAndCharts!$A59+$A$11,0,1,1) -> 24.82 | H59: =OFFSET(InputPriceData!F$10,CalculationsAndCharts!$A59+$A$11,0,1,1) -> 26.37 | I59: 27.4125 | J59: 30.48486883 | K59: 28.30055941 | L59: 49.87803854 | M59: 53.92633628 | N59: 51.21681313 | O59: 39.07191992 | P59: 54.18577507 | Q59: 55.63391469 | R59: 52.16825517 | S59: 47.82383632 | T59: 30.32000353 | U59: 27.35 | V59: 49.33539852 | W59: 53.80574704 | X59: 51.24804147 | Y59: 37.83699591 | Z59: 53.81787251 | AA59: 55.57741777 | AB59: 52.211519 | AC59: 46.93288321 | AD59: 28.74110861 | AE59: 1 | AF59: 0 | AG59: 1 | AH59: 1 | AI59: 1 | AJ59: 1 | AK59: 1 | AL59: 1 | AM59: 1 | AN59: 1 | AO59: 1 | AP59: 1 | AQ59: 0 | AR59: 0 | AS59: 0 | AT59: 0 | AU59: 0 | AV59: 49.37828123 | AW59: 1 | AX59: 0 | AY59: 0
A60: 28 | B60: =OFFSET(InputPriceData!B$10,CalculationsAndCharts!$A60+$A$11,0,1,1) -> 2008-11-10 | C60: 2008-11-14 | D60: =OFFSET(InputPriceData!G$10,CalculationsAndCharts!$A60+$A$11,0,1,1) -> 3626400 | E60: =OFFSET(InputPriceData!C$10,CalculationsAndCharts!$A60+$A$11,0,1,1) -> 32.23 | F60: =OFFSET(InputPriceData!D$10,CalculationsAndCharts!$A60+$A$11,0,1,1) -> 32.23 | G60: =OFFSET(InputPriceData!E$10,CalculationsAndCharts!$A60+$A$11,0,1,1) -> 27.06 | H60: =OFFSET(InputPriceData!F$10,CalculationsAndCharts!$A60+$A$11,0,1,1) -> 29.49 | I60: 30.2525 | J60: 30.71723766 | K60: 30.06493441 | L60: 50.67720444 | M60: 54.07627323 | N60: 51.11646042 | O60: 40.91925404 | P60: 54.74554749 | Q60: 55.68754949 | R60: 52.03989741 | S60: 49.21389139 | T60: 32.62461668 | U60: 29.645 | V60: 50.14967254 | W60: 53.9713155 | X60: 51.15331163 | Y60: 39.68838274 | Z60: 54.40975683 | AA60: 55.64258612 | AB60: 52.08685608 | AC60: 48.38836822 | AD60: 30.98839726 | AE60: 1 | AF60: 0 | AG60: 1 | AH60: 1 | AI60: 0 | AJ60: 1 | AK60: 1 | AL60: 1 | AM60: 0 | AN60: 1 | AO60: 1 | AP60: 1 | AQ60: 0 | AR60: 0 | AS60: 0 | AT60: 0 | AU60: 0 | AV60: 50.15822297 | AW60: 1 | AX60: 0 | AY60: 0
A61: 29 | B61: =OFFSET(InputPriceData!B$10,CalculationsAndCharts!$A61+$A$11,0,1,1) -> 2008-11-03 | C61: 2008-11-07 | D61: =OFFSET(InputPriceData!G$10,CalculationsAndCharts!$A61+$A$11,0,1,1) -> 3651200 | E61: =OFFSET(InputPriceData!C$10,CalculationsAndCharts!$A61+$A$11,0,1,1) -> 30.4 | F61: =OFFSET(InputPriceData!D$10,CalculationsAndCharts!$A61+$A$11,0,1,1) -> 34.48 | G61: =OFFSET(InputPriceData!E$10,CalculationsAndCharts!$A61+$A$11,0,1,1) -> 29.12 | H61: =OFFSET(InputPriceData!F$10,CalculationsAndCharts!$A61+$A$11,0,1,1) -> 30.14 | I61: 31.035 | J61: 30.39947531 | K61: 31.25861883 | L61: 51.44062185 | M61: 54.20216467 | N61: 51.00683772 | O61: 42.72220925 | P61: 55.25763243 | Q61: 55.72243845 | R61: 51.90479918 | S61: 50.5103811 | T61: 34.9340374 | U61: 31.8 | V61: 50.90910485 | W61: 54.11285783 | X61: 51.04894112 | Y61: 41.43768218 | Z61: 54.95499291 | AA61: 55.68824646 | AB61: 51.95516238 | AC61: 49.75540171 | AD61: 33.11996264 | AE61: 1 | AF61: 0 | AG61: 1 | AH61: 1 | AI61: 1 | AJ61: 1 | AK61: 1 | AL61: 1 | AM61: 1 | AN61: 1 | AO61: 1 | AP61: 1 | AQ61: 0 | AR61: 0 | AS61: 0 | AT61: 0 | AU61: 0 | AV61: 50.85884069 | AW61: 1 | AX61: 0 | AY61: 0
A62: 30 | B62: =OFFSET(InputPriceData!B$10,CalculationsAndCharts!$A62+$A$11,0,1,1) -> 2008-10-27 | C62: 2008-10-31 | D62: =OFFSET(InputPriceData!G$10,CalculationsAndCharts!$A62+$A$11,0,1,1) -> 4643800 | E62: =OFFSET(InputPriceData!C$10,CalculationsAndCharts!$A62+$A$11,0,1,1) -> 24.51 | F62: =OFFSET(InputPriceData!D$10,CalculationsAndCharts!$A62+$A$11,0,1,1) -> 31.67 | G62: =OFFSET(InputPriceData!E$10,CalculationsAndCharts!$A62+$A$11,0,1,1) -> 24.51 | H62: =OFFSET(InputPriceData!F$10,CalculationsAndCharts!$A62+$A$11,0,1,1) -> 30.9 | I62: 27.8975 | J62: 32.90145063 | K62: 29.55260031 | L62: 52.18810344 | M62: 54.30444403 | N62: 50.88849228 | O62: 44.5394705 | P62: 55.72190736 | Q62: 55.73965349 | R62: 51.76340513 | S62: 51.71016674 | T62: 37.36877426 | U62: 28.09 | V62: 51.61684948 | W62: 54.23151535 | X62: 50.93546272 | Y62: 43.0914651 | Z62: 55.45563405 | AA62: 55.715404 | AB62: 51.8169 | AC62: 51.03759014 | AD62: 35.14534006 | AE62: 1 | AF62: 0 | AG62: 1 | AH62: 1 | AI62: 0 | AJ62: 1 | AK62: 1 | AL62: 1 | AM62: 0 | AN62: 1 | AO62: 1 | AP62: 1 | AQ62: 0 | AR62: 0 | AS62: 0 | AT62: 0 | AU62: 0 | AV62: 51.56117428 | AW62: 1 | AX62: 0 | AY62: 0
A63: 31 | B63: =OFFSET(InputPriceData!B$10,CalculationsAndCharts!$A63+$A$11,0,1,1) -> 2008-10-20 | C63: 2008-10-24 | D63: =OFFSET(InputPriceData!G$10,CalculationsAndCharts!$A63+$A$11,0,1,1) -> 4165300 | E63: =OFFSET(InputPriceData!C$10,CalculationsAndCharts!$A63+$A$11,0,1,1) -> 33.08 | F63: =OFFSET(InputPriceData!D$10,CalculationsAndCharts!$A63+$A$11,0,1,1) -> 33.84 | G63: =OFFSET(InputPriceData!E$10,CalculationsAndCharts!$A63+$A$11,0,1,1) -> 23.25 | H63: =OFFSET(InputPriceData!F$10,CalculationsAndCharts!$A63+$A$11,0,1,1) -> 25.18 | I63: 28.8375 | J63: 36.96540125 | K63: 31.50457563 | L63: 53.02645541 | M63: 54.38282702 | N63: 50.76197555 | O63: 46.69286072 | P63: 56.13607169 | Q63: 55.74031076 | R63: 51.61613668 | S63: 52.80341948 | T63: 40.58230196 | U63: 28.545 | V63: 52.48821427 | W63: 54.32835483 | X63: 50.8133867 | Y63: 45.29296503 | Z63: 55.91356623 | AA63: 55.72502511 | AB63: 51.67251096 | AC63: 52.23813432 | AD63: 38.34779574 | AE63: 0 | AF63: 0 | AG63: 0 | AH63: 0 | AI63: 0 | AJ63: 0 | AK63: 1 | AL63: 1 | AM63: 0 | AN63: 1 | AO63: 1 | AP63: 1 | AQ63: 0 | AR63: 1 | AS63: 1 | AT63: 0 | AU63: 0 | AV63: 52.26155307 | AW63: 1 | AX63: 0 | AY63: 0
A64: 32 | B64: =OFFSET(InputPriceData!B$10,CalculationsAndCharts!$A64+$A$11,0,1,1) -> 2008-10-13 | C64: 2008-10-17 | D64: =OFFSET(InputPriceData!G$10,CalculationsAndCharts!$A64+$A$11,0,1,1) -> 4689900 | E64: =OFFSET(InputPriceData!C$10,CalculationsAndCharts!$A64+$A$11,0,1,1) -> 33.99 | F64: =OFFSET(InputPriceData!D$10,CalculationsAndCharts!$A64+$A$11,0,1,1) -> 38.56 | G64: =OFFSET(InputPriceData!E$10,CalculationsAndCharts!$A64+$A$11,0,1,1) -> 29.84 | H64: =OFFSET(InputPriceData!F$10,CalculationsAndCharts!$A64+$A$11,0,1,1) -> 31.99 | I64: 33.595 | J64: 40.33580251 | K64: 36.02665125 | L64: 53.82356206 | M64: 54.433063 | N64: 50.62786994 | O64: 48.79936712 | P64: 56.48582024 | Q64: 55.72565294 | R64: 51.46338949 | S64: 53.74389139 | T64: 43.85484286 | U64: 34.2 | V64: 53.37499999 | W64: 54.39650818 | X64: 50.68320269 | Y64: 47.61867811 | Z64: 56.30692183 | AA64: 55.71804211 | AB64: 51.52241785 | AC64: 53.28905702 | AD64: 41.9482992 | AE64: 1 | AF64: 0 | AG64: 1 | AH64: 1 | AI64: 1 | AJ64: 1 | AK64: 1 | AL64: 1 | AM64: 1 | AN64: 1 | AO64: 1 | AP64: 1 | AQ64: 0 | AR64: 0 | AS64: 0 | AT64: 0 | AU64: 0 | AV64: 53.17957181 | AW64: 1 | AX64: 0 | AY64: 0
A65: 33 | B65: =OFFSET(InputPriceData!B$10,CalculationsAndCharts!$A65+$A$11,0,1,1) -> 2008-10-06 | C65: 2008-10-10 | D65: =OFFSET(InputPriceData!G$10,CalculationsAndCharts!$A65+$A$11,0,1,1) -> 6238200 | E65: =OFFSET(InputPriceData!C$10,CalculationsAndCharts!$A65+$A$11,0,1,1) -> 39.53 | F65: =OFFSET(InputPriceData!D$10,CalculationsAndCharts!$A65+$A$11,0,1,1) -> 39.53 | G65: =OFFSET(InputPriceData!E$10,CalculationsAndCharts!$A65+$A$11,0,1,1) -> 27 | H65: =OFFSET(InputPriceData!F$10,CalculationsAndCharts!$A65+$A$11,0,1,1) -> 30.34 | I65: 34.1 | J65: 46.57160501 | K65: 38.56080251 | L65: 54.48270691 | M65: 54.45563711 | N65: 50.48693686 | O65: 50.56814626 | P65: 56.77050369 | Q65: 55.6974986 | R65: 51.30552788 | S65: 54.52454316 | T65: 46.61174935 | U65: 33.265 | V65: 54.08518517 | W65: 54.43434182 | X65: 50.54567286 | Y65: 49.49820292 | Z65: 56.62870863 | AA65: 55.69623175 | AB65: 51.36702436 | AC65: 54.16445502 | AD65: 44.83195082 | AE65: 0 | AF65: 0 | AG65: 0 | AH65: 0 | AI65: 0 | AJ65: 0 | AK65: 1 | AL65: 1 | AM65: 0 | AN65: 1 | AO65: 1 | AP65: 1 | AQ65: 0 | AR65: 0 | AS65: 0 | AT65: 0 | AU65: 0 | AV65: 53.89786238 | AW65: 1 | AX65: 0 | AY65: 0
A66: 34 | B66: =OFFSET(InputPriceData!B$10,CalculationsAndCharts!$A66+$A$11,0,1,1) -> 2008-09-29 | C66: 2008-10-03 | D66: =OFFSET(InputPriceData!G$10,CalculationsAndCharts!$A66+$A$11,0,1,1) -> 3261500 | E66: =OFFSET(InputPriceData!C$10,CalculationsAndCharts!$A66+$A$11,0,1,1) -> 47.21 | F66: =OFFSET(InputPriceData!D$10,CalculationsAndCharts!$A66+$A$11,0,1,1) -> 47.21 | G66: =OFFSET(InputPriceData!E$10,CalculationsAndCharts!$A66+$A$11,0,1,1) -> 41.28 | H66: =OFFSET(InputPriceData!F$10,CalculationsAndCharts!$A66+$A$11,0,1,1) -> 41.36 | I66: 44.265 | J66: 48.87821003 | K66: 45.82535501 | L66: 55.07240707 | M66: 54.45463453 | N66: 50.33994796 | O66: 52.1932656 | P66: 57.00022063 | Q66: 55.65775767 | R66: 51.1428623 | S66: 55.17025119 | T66: 49.21628002 | U66: 44.245 | V66: 54.85630314 | W66: 54.44727355 | X66: 50.40164808 | Y66: 51.62873687 | Z66: 56.89280144 | AA66: 55.66169556 | AB66: 51.20668334 | AC66: 54.90000096 | AD66: 48.35747277 | AE66: 0 | AF66: 0 | AG66: 0 | AH66: 0 | AI66: 0 | AJ66: 0 | AK66: 1 | AL66: 1 | AM66: 0 | AN66: 1 | AO66: 1 | AP66: 1 | AQ66: 0 | AR66: 1 | AS66: 1 | AT66: 0 | AU66: 0 | AV66: 54.69643399 | AW66: 1 | AX66: 0 | AY66: 0
A67: 35 | B67: =OFFSET(InputPriceData!B$10,CalculationsAndCharts!$A67+$A$11,0,1,1) -> 2008-09-22 | C67: 2008-09-26 | D67: =OFFSET(InputPriceData!G$10,CalculationsAndCharts!$A67+$A$11,0,1,1) -> 3182400 | E67: =OFFSET(InputPriceData!C$10,CalculationsAndCharts!$A67+$A$11,0,1,1) -> 48.82 | F67: =OFFSET(InputPriceData!D$10,CalculationsAndCharts!$A67+$A$11,0,1,1) -> 49.34 | G67: =OFFSET(InputPriceData!E$10,CalculationsAndCharts!$A67+$A$11,0,1,1) -> 46.39 | H67: =OFFSET(InputPriceData!F$10,CalculationsAndCharts!$A67+$A$11,0,1,1) -> 48.04 | I67: 48.1475 | J67: 49.60892005 | K67: 48.43883503 | L67: 55.41489048 | M67: 54.43175406 | N67: 50.18755216 | O67: 53.13696143 | P67: 57.17825601 | Q67: 55.60803682 | R67: 50.97564395 | S67: 55.68630151 | T67: 50.58762134 | U67: 47.865 | V67: 55.24931437 | W67: 54.4321243 | X67: 50.2518101 | Y67: 52.7033803 | Z67: 57.08776679 | AA67: 55.61609905 | AB67: 51.04168289 | AC67: 55.45668611 | AD67: 49.95007449 | AE67: 1 | AF67: 0 | AG67: 1 | AH67: 1 | AI67: 1 | AJ67: 1 | AK67: 1 | AL67: 1 | AM67: 1 | AN67: 1 | AO67: 1 | AP67: 1 | AQ67: 0 | AR67: 0 | AS67: 0 | AT67: 0 | AU67: 0 | AV67: 55.1485165 | AW67: 1 | AX67: 0 | AY67: 0
A68: 36 | B68: =OFFSET(InputPriceData!B$10,CalculationsAndCharts!$A68+$A$11,0,1,1) -> 2008-09-15 | C68: 2008-09-19 | D68: =OFFSET(InputPriceData!G$10,CalculationsAndCharts!$A68+$A$11,0,1,1) -> 7079200 | E68: =OFFSET(InputPriceData!C$10,CalculationsAndCharts!$A68+$A$11,0,1,1) -> 46.8 | F68: =OFFSET(InputPriceData!D$10,CalculationsAndCharts!$A68+$A$11,0,1,1) -> 53 | G68: =OFFSET(InputPriceData!E$10,CalculationsAndCharts!$A68+$A$11,0,1,1) -> 43.11 | H68: =OFFSET(InputPriceData!F$10,CalculationsAndCharts!$A68+$A$11,0,1,1) -> 48.75 | I68: 47.915 | J68: 51.30284011 | K68: 48.83196003 | L68: 55.67326291 | M68: 54.3953416 | N68: 50.0303595 | O68: 53.86412342 | P68: 57.32793358 | Q68: 55.54988055 | R68: 50.80407384 | S68: 56.13823293 | T68: 51.5900139 | U68: 48.055 | V68: 55.52280749 | W68: 54.401858 | X68: 50.09698365 | Y68: 53.45983212 | Z68: 57.25015148 | AA68: 55.56159284 | AB68: 50.87226007 | AC68: 55.93793598 | AD68: 50.98172826 | AE68: 1 | AF68: 0 | AG68: 1 | AH68: 1 | AI68: 1 | AJ68: 1 | AK68: 1 | AL68: 1 | AM68: 1 | AN68: 1 | AO68: 1 | AP68: 1 | AQ68: 0 | AR68: 0 | AS68: 0 | AT68: 0 | AU68: 0 | AV68: 55.38948316 | AW68: 1 | AX68: 0 | AY68: 0
A69: 37 | B69: =OFFSET(InputPriceData!B$10,CalculationsAndCharts!$A69+$A$11,0,1,1) -> 2008-09-08 | C69: 2008-09-12 | D69: =OFFSET(InputPriceData!G$10,CalculationsAndCharts!$A69+$A$11,0,1,1) -> 3729700 | E69: =OFFSET(InputPriceData!C$10,CalculationsAndCharts!$A69+$A$11,0,1,1) -> 52.01 | F69: =OFFSET(InputPriceData!D$10,CalculationsAndCharts!$A69+$A$11,0,1,1) -> 52.21 | G69: =OFFSET(InputPriceData!E$10,CalculationsAndCharts!$A69+$A$11,0,1,1) -> 48.12 | H69: =OFFSET(InputPriceData!F$10,CalculationsAndCharts!$A69+$A$11,0,1,1) -> 49.2 | I69: 50.385 | J69: 52.22068022 | K69: 50.73659011 | L69: 55.92664449 | M69: 54.34801118 | N69: 49.8686935 | O69: 54.60459343 | P69: 57.45622285 | Q69: 55.48402674 | R69: 50.62830322 | S69: 56.54489156 | T69: 52.66429531 | U69: 50.165 | V69: 55.79939296 | W69: 54.36034136 | X69: 49.93754386 | Y69: 54.25469866 | Z69: 57.39053367 | AA69: 55.49905363 | AB69: 50.69858108 | AC69: 56.37302121 | AD69: 52.13637611 | AE69: 0 | AF69: 0 | AG69: 0 | AH69: 0 | AI69: 0 | AJ69: 0 | AK69: 1 | AL69: 1 | AM69: 0 | AN69: 1 | AO69: 1 | AP69: 1 | AQ69: 0 | AR69: 0 | AS69: 0 | AT69: 0 | AU69: 0 | AV69: 55.61455039 | AW69: 1 | AX69: 0 | AY69: 0
A70: 38 | B70: =OFFSET(InputPriceData!B$10,CalculationsAndCharts!$A70+$A$11,0,1,1) -> 2008-09-02 | C70: 2008-09-06 | D70: =OFFSET(InputPriceData!G$10,CalculationsAndCharts!$A70+$A$11,0,1,1) -> 2802100 | E70: =OFFSET(InputPriceData!C$10,CalculationsAndCharts!$A70+$A$11,0,1,1) -> 52 | F70: =OFFSET(InputPriceData!D$10,CalculationsAndCharts!$A70+$A$11,0,1,1) -> 52.72 | G70: =OFFSET(InputPriceData!E$10,CalculationsAndCharts!$A70+$A$11,0,1,1) -> 49.75 | H70: =OFFSET(InputPriceData!F$10,CalculationsAndCharts!$A70+$A$11,0,1,1) -> 50.56 | I70: 51.2575 | J70: 53.18386043 | K70: 51.84380522 | L70: 56.11886873 | M70: 54.28954328 | N70: 49.70279284 | O70: 55.19076919 | P70: 57.56183875 | Q70: 55.41098244 | R70: 50.44846161 | S70: 56.90103056 | T70: 53.48050782 | U70: 51.235 | V70: 56.00807418 | W70: 54.30704315 | X70: 49.77373654 | Y70: 54.87682963 | Z70: 57.50667571 | AA70: 55.42899881 | AB70: 50.5207858 | AC70: 56.7538165 | AD70: 52.99984276 | AE70: 0 | AF70: 0 | AG70: 0 | AH70: 0 | AI70: 1 | AJ70: 0 | AK70: 1 | AL70: 1 | AM70: 1 | AN70: 1 | AO70: 1 | AP70: 1 | AQ70: 0 | AR70: 0 | AS70: 0 | AT70: 0 | AU70: 0 | AV70: 55.83199277 | AW70: 1 | AX70: 0 | AY70: 0
A71: 39 | B71: =OFFSET(InputPriceData!B$10,CalculationsAndCharts!$A71+$A$11,0,1,1) -> 2008-08-25 | C71: 2008-08-29 | D71: =OFFSET(InputPriceData!G$10,CalculationsAndCharts!$A71+$A$11,0,1,1) -> 1749600 | E71: =OFFSET(InputPriceData!C$10,CalculationsAndCharts!$A71+$A$11,0,1,1) -> 53.43 | F71: =OFFSET(InputPriceData!D$10,CalculationsAndCharts!$A71+$A$11,0,1,1) -> 53.53 | G71: =OFFSET(InputPriceData!E$10,CalculationsAndCharts!$A71+$A$11,0,1,1) -> 51.36 | H71: =OFFSET(InputPriceData!F$10,CalculationsAndCharts!$A71+$A$11,0,1,1) -> 52.21 | I71: 52.6325 | J71: 53.73522086 | K71: 52.86573543 | L71: 56.27720442 | M71: 54.22179049 | N71: 49.5329132 | O71: 55.69915498 | P71: 57.64965614 | Q71: 55.33132109 | R71: 50.26466454 | S71: 57.2196697 | T71: 54.17864027 | U71: 52.445 | V71: 56.1848547 | W71: 54.244042 | X71: 49.6058363 | Y71: 55.42827441 | Z71: 57.60407742 | AA71: 55.35204782 | AB71: 50.33900013 | AC71: 57.09508894 | AD71: 53.76145988 | AE71: 0 | AF71: 0 | AG71: 0 | AH71: 0 | AI71: 0 | AJ71: 0 | AK71: 1 | AL71: 1 | AM71: 0 | AN71: 1 | AO71: 1 | AP71: 1 | AQ71: 0 | AR71: 1 | AS71: 1 | AT71: 0 | AU71: 0 | AV71: 56.01070439 | AW71: 1 | AX71: 0 | AY71: 0
A72: 40 | B72: =OFFSET(InputPriceData!B$10,CalculationsAndCharts!$A72+$A$11,0,1,1) -> 2008-08-18 | C72: 2008-08-22 | D72: =OFFSET(InputPriceData!G$10,CalculationsAndCharts!$A72+$A$11,0,1,1) -> 1690500 | E72: =OFFSET(InputPriceData!C$10,CalculationsAndCharts!$A72+$A$11,0,1,1) -> 54.67 | F72: =OFFSET(InputPriceData!D$10,CalculationsAndCharts!$A72+$A$11,0,1,1) -> 54.67 | G72: =OFFSET(InputPriceData!E$10,CalculationsAndCharts!$A72+$A$11,0,1,1) -> 52.25 | H72: =OFFSET(InputPriceData!F$10,CalculationsAndCharts!$A72+$A$11,0,1,1) -> 53.47 | I72: 53.765 | J72: 53.70544172 | K72: 53.59761043 | L72: 56.40355512 | M72: 54.14566405 | N72: 49.35925107 | O72: 56.1329243 | P72: 57.72189693 | Q72: 55.24545683 | R72: 50.0770106 | S72: 57.50633089 | T72: 54.75951771 | U72: 53.46 | V72: 56.32336784 | W72: 54.17216005 | X72: 49.4340509 | Y72: 55.88767428 | Z72: 57.68466272 | AA72: 55.26863931 | AB72: 50.1533317 | AC72: 57.40140191 | AD72: 54.37394665 | AE72: 1 | AF72: 0 | AG72: 1 | AH72: 1 | AI72: 1 | AJ72: 1 | AK72: 1 | AL72: 1 | AM72: 1 | AN72: 1 | AO72: 1 | AP72: 1 | AQ72: 0 | AR72: 0 | AS72: 0 | AT72: 0 | AU72: 0 | AV72: 56.13954183 | AW72: 1 | AX72: 0 | AY72: 0
A73: 41 | B73: =OFFSET(InputPriceData!B$10,CalculationsAndCharts!$A73+$A$11,0,1,1) -> 2008-08-11 | C73: 2008-08-15 | D73: =OFFSET(InputPriceData!G$10,CalculationsAndCharts!$A73+$A$11,0,1,1) -> 2303100 | E73: =OFFSET(InputPriceData!C$10,CalculationsAndCharts!$A73+$A$11,0,1,1) -> 53.47 | F73: =OFFSET(InputPriceData!D$10,CalculationsAndCharts!$A73+$A$11,0,1,1) -> 54.36 | G73: =OFFSET(InputPriceData!E$10,CalculationsAndCharts!$A73+$A$11,0,1,1) -> 51.95 | H73: =OFFSET(InputPriceData!F$10,CalculationsAndCharts!$A73+$A$11,0,1,1) -> 54.09 | I73: 53.4675 | J73: 53.94338345 | K73: 53.43022086 | L73: 56.507479 | M73: 54.06203845 | N73: 49.18197652 | O73: 56.51829816 | P73: 57.78074777 | Q73: 55.15373683 | R73: 49.88558666 | S73: 57.76661948 | T73: 55.26997684 | U73: 53.155 | V73: 56.4294185 | W73: 54.09248568 | X73: 49.25856538 | Y73: 56.26936383 | Z73: 57.75121784 | AA73: 55.17915696 | AB73: 49.96387586 | AC73: 57.6800585 | AD73: 54.85866916 | AE73: 1 | AF73: 0 | AG73: 1 | AH73: 1 | AI73: 1 | AJ73: 1 | AK73: 1 | AL73: 1 | AM73: 1 | AN73: 1 | AO73: 1 | AP73: 1 | AQ73: 0 | AR73: 0 | AS73: 0 | AT73: 0 | AU73: 0 | AV73: 56.23003477 | AW73: 1 | AX73: 0 | AY73: 0
A74: 42 | B74: =OFFSET(InputPriceData!B$10,CalculationsAndCharts!$A74+$A$11,0,1,1) -> 2008-08-04 | C74: 2008-08-08 | D74: =OFFSET(InputPriceData!G$10,CalculationsAndCharts!$A74+$A$11,0,1,1) -> 2734700 | E74: =OFFSET(InputPriceData!C$10,CalculationsAndCharts!$A74+$A$11,0,1,1) -> 53.53 | F74: =OFFSET(InputPriceData!D$10,CalculationsAndCharts!$A74+$A$11,0,1,1) -> 55.12 | G74: =OFFSET(InputPriceData!E$10,CalculationsAndCharts!$A74+$A$11,0,1,1) -> 52.84 | H74: =OFFSET(InputPriceData!F$10,CalculationsAndCharts!$A74+$A$11,0,1,1) -> 53.68 | I74: 53.7925 | J74: 54.09426689 | K74: 53.96169172 | L74: 56.62145152 | M74: 53.97146658 | N74: 49.00123349 | O74: 56.95118831 | P74: 57.82750516 | Q74: 55.05644012 | R74: 49.69046999 | S74: 58.00366509 | T74: 55.89871154 | U74: 53.98 | V74: 56.55069326 | W74: 54.00593262 | X74: 49.07953129 | Y74: 56.71381322 | Z74: 57.80610133 | AA74: 55.08389545 | AB74: 49.7707173 | AC74: 57.93733493 | AD74: 55.49029151 | AE74: 1 | AF74: 0 | AG74: 1 | AH74: 1 | AI74: 1 | AJ74: 1 | AK74: 1 | AL74: 1 | AM74: 1 | AN74: 1 | AO74: 1 | AP74: 1 | AQ74: 0 | AR74: 0 | AS74: 0 | AT74: 0 | AU74: 0 | AV74: 56.30257832 | AW74: 1 | AX74: 0 | AY74: 0
A75: 43 | B75: =OFFSET(InputPriceData!B$10,CalculationsAndCharts!$A75+$A$11,0,1,1) -> 2008-07-28 | C75: 2008-08-01 | D75: =OFFSET(InputPriceData!G$10,CalculationsAndCharts!$A75+$A$11,0,1,1) -> 2312600 | E75: =OFFSET(InputPriceData!C$10,CalculationsAndCharts!$A75+$A$11,0,1,1) -> 53.02 | F75: =OFFSET(InputPriceData!D$10,CalculationsAndCharts!$A75+$A$11,0,1,1) -> 55.14 | G75: =OFFSET(InputPriceData!E$10,CalculationsAndCharts!$A75+$A$11,0,1,1) -> 52.67 | H75: =OFFSET(InputPriceData!F$10,CalculationsAndCharts!$A75+$A$11,0,1,1) -> 53.79 | I75: 53.655 | J75: 54.53353379 | K75: 53.99963345 | L75: 56.71996114 | M75: 53.87331899 | N75: 48.81715078 | O75: 57.35707724 | P75: 57.85996134 | Q75: 54.95380809 | R75: 49.49173036 | S75: 58.21019011 | T75: 56.50396438 | U75: 53.905 | V75: 56.64590412 | W75: 53.91168222 | X75: 48.89707199 | Y75: 57.09973768 | Z75: 57.84655644 | AA75: 54.98307301 | AB75: 49.57393293 | AC75: 58.16438321 | AD75: 56.03509214 | AE75: 1 | AF75: 0 | AG75: 1 | AH75: 1 | AI75: 1 | AJ75: 1 | AK75: 1 | AL75: 1 | AM75: 1 | AN75: 1 | AO75: 1 | AP75: 1 | AQ75: 0 | AR75: 0 | AS75: 0 | AT75: 0 | AU75: 0 | AV75: 56.39147928 | AW75: 1 | AX75: 0 | AY75: 0
A76: 44 | B76: =OFFSET(InputPriceData!B$10,CalculationsAndCharts!$A76+$A$11,0,1,1) -> 2008-07-21 | C76: 2008-07-25 | D76: =OFFSET(InputPriceData!G$10,CalculationsAndCharts!$A76+$A$11,0,1,1) -> 3263400 | E76: =OFFSET(InputPriceData!C$10,CalculationsAndCharts!$A76+$A$11,0,1,1) -> 54.87 | F76: =OFFSET(InputPriceData!D$10,CalculationsAndCharts!$A76+$A$11,0,1,1) -> 56.02 | G76: =OFFSET(InputPriceData!E$10,CalculationsAndCharts!$A76+$A$11,0,1,1) -> 52.54 | H76: =OFFSET(InputPriceData!F$10,CalculationsAndCharts!$A76+$A$11,0,1,1) -> 53.35 | I76: 54.195 | J76: 54.87206757 | K76: 54.40676689 | L76: 56.82071402 | M76: 53.7678878 | N76: 48.62988529 | O76: 57.78836396 | P76: 57.87858667 | Q76: 54.84617278 | R76: 49.28943118 | S76: 58.38667286 | T76: 57.19005506 | U76: 54.28 | V76: 56.74741909 | W76: 53.81041475 | X76: 48.71134568 | Y76: 57.52235871 | Z76: 57.87421639 | AA76: 54.87701807 | AB76: 49.3735944 | AC76: 58.36518938 | AD76: 56.67952804 | AE76: 1 | AF76: 0 | AG76: 1 | AH76: 1 | AI76: 1 | AJ76: 1 | AK76: 1 | AL76: 1 | AM76: 1 | AN76: 1 | AO76: 1 | AP76: 1 | AQ76: 0 | AR76: 0 | AS76: 0 | AT76: 0 | AU76: 0 | AV76: 56.47966502 | AW76: 1 | AX76: 0 | AY76: 0
A77: 45 | B77: =OFFSET(InputPriceData!B$10,CalculationsAndCharts!$A77+$A$11,0,1,1) -> 2008-07-14 | C77: 2008-07-18 | D77: =OFFSET(InputPriceData!G$10,CalculationsAndCharts!$A77+$A$11,0,1,1) -> 4847500 | E77: =OFFSET(InputPriceData!C$10,CalculationsAndCharts!$A77+$A$11,0,1,1) -> 53.81 | F77: =OFFSET(InputPriceData!D$10,CalculationsAndCharts!$A77+$A$11,0,1,1) -> 55.69 | G77: =OFFSET(InputPriceData!E$10,CalculationsAndCharts!$A77+$A$11,0,1,1) -> 51.57 | H77: =OFFSET(InputPriceData!F$10,CalculationsAndCharts!$A77+$A$11,0,1,1) -> 55.42 | I77: 54.1225 | J77: 55.62163515 | K77: 54.25103379 | L77: 56.91011947 | M77: 53.65482016 | N77: 48.4395889 | O77: 58.20548683 | P77: 57.88192826 | Q77: 54.73386116 | R77: 49.08362594 | S77: 58.52782724 | T77: 57.88314643 | U77: 53.63 | V77: 56.83880498 | W77: 53.70163681 | X77: 48.52249127 | Y77: 57.93399579 | Z77: 57.88724816 | AA77: 54.76601072 | AB77: 49.1697639 | AC77: 58.53347621 | AD77: 57.33451537 | AE77: 1 | AF77: 0 | AG77: 1 | AH77: 1 | AI77: 1 | AJ77: 1 | AK77: 1 | AL77: 1 | AM77: 1 | AN77: 1 | AO77: 1 | AP77: 1 | AQ77: 0 | AR77: 0 | AS77: 0 | AT77: 0 | AU77: 0 | AV77: 56.58575536 | AW77: 1 | AX77: 0 | AY77: 0
A78: 46 | B78: =OFFSET(InputPriceData!B$10,CalculationsAndCharts!$A78+$A$11,0,1,1) -> 2008-07-07 | C78: 2008-07-11 | D78: =OFFSET(InputPriceData!G$10,CalculationsAndCharts!$A78+$A$11,0,1,1) -> 6144200 | E78: =OFFSET(InputPriceData!C$10,CalculationsAndCharts!$A78+$A$11,0,1,1) -> 55 | F78: =OFFSET(InputPriceData!D$10,CalculationsAndCharts!$A78+$A$11,0,1,1) -> 55.71 | G78: =OFFSET(InputPriceData!E$10,CalculationsAndCharts!$A78+$A$11,0,1,1) -> 52.5 | H78: =OFFSET(InputPriceData!F$10,CalculationsAndCharts!$A78+$A$11,0,1,1) -> 53.51 | I78: 54.18 | J78: 57.06327029 | K78: 55.20163515 | L78: 57.00860412 | M78: 53.53425352 | N78: 48.24643219 | O78: 58.66948401 | P78: 57.86994461 | Q78: 54.61726608 | R78: 48.87435796 | S78: 58.63239355 | T78: 58.70657447 | U78: 54.105 | V78: 56.95764961 | W78: 53.58544539 | X78: 48.33067107 | Y78: 58.44728371 | Z78: 57.88551677 | AA78: 54.65040934 | AB78: 48.9624955 | AC78: 58.66781779 | AD78: 58.22674964 | AE78: 0 | AF78: 0 | AG78: 0 | AH78: 0 | AI78: 1 | AJ78: 0 | AK78: 1 | AL78: 1 | AM78: 1 | AN78: 1 | AO78: 1 | AP78: 1 | AQ78: 0 | AR78: 0 | AS78: 0 | AT78: 0 | AU78: 0 | AV78: 56.62527249 | AW78: 1 | AX78: 0 | AY78: 0
A79: 47 | B79: =OFFSET(InputPriceData!B$10,CalculationsAndCharts!$A79+$A$11,0,1,1) -> 2008-06-30 | C79: 2008-07-04 | D79: =OFFSET(InputPriceData!G$10,CalculationsAndCharts!$A79+$A$11,0,1,1) -> 3094200 | E79: =OFFSET(InputPriceData!C$10,CalculationsAndCharts!$A79+$A$11,0,1,1) -> 56.53 | F79: =OFFSET(InputPriceData!D$10,CalculationsAndCharts!$A79+$A$11,0,1,1) -> 57.03 | G79: =OFFSET(InputPriceData!E$10,CalculationsAndCharts!$A79+$A$11,0,1,1) -> 54.61 | H79: =OFFSET(InputPriceData!F$10,CalculationsAndCharts!$A79+$A$11,0,1,1) -> 54.74 | I79: 55.7275 | J79: 58.39904058 | K79: 56.78389529 | L79: 57.0755289 | M79: 53.40557387 | N79: 48.05058695 | O79: 59.06045206 | P79: 57.84033203 | Q79: 54.4967965 | R79: 48.66165766 | S79: 58.69226426 | T79: 59.42863986 | U79: 55.82 | V79: 57.0633033 | W79: 53.46054894 | X79: 48.13604979 | Y79: 58.94431287 | Z79: 57.86471058 | AA79: 54.53059054 | AB79: 48.75183202 | AC79: 58.75419214 | AD79: 59.13443359 | AE79: 0 | AF79: 0 | AG79: 0 | AH79: 0 | AI79: 0 | AJ79: 0 | AK79: 1 | AL79: 1 | AM79: 0 | AN79: 1 | AO79: 1 | AP79: 1 | AQ79: 0 | AR79: 0 | AS79: 0 | AT79: 0 | AU79: 0 | AV79: 56.73087495 | AW79: 1 | AX79: 0 | AY79: 0
A80: 48 | B80: =OFFSET(InputPriceData!B$10,CalculationsAndCharts!$A80+$A$11,0,1,1) -> 2008-06-23 | C80: 2008-06-27 | D80: =OFFSET(InputPriceData!G$10,CalculationsAndCharts!$A80+$A$11,0,1,1) -> 3347700 | E80: =OFFSET(InputPriceData!C$10,CalculationsAndCharts!$A80+$A$11,0,1,1) -> 57.68 | F80: =OFFSET(InputPriceData!D$10,CalculationsAndCharts!$A80+$A$11,0,1,1) -> 58.13 | G80: =OFFSET(InputPriceData!E$10,CalculationsAndCharts!$A80+$A$11,0,1,1) -> 56.22 | H80: =OFFSET(InputPriceData!F$10,CalculationsAndCharts!$A80+$A$11,0,1,1) -> 56.72 | I80: 57.1875 | J80: 59.61058117 | K80: 58.15716558 | L80: 57.08633015 | M80: 53.2696496 | N80: 47.8522541 | O80: 59.30229573 | P80: 57.7951424 | Q80: 54.37296185 | R80: 48.44554141 | S80: 58.71208307 | T80: 59.89250839 | U80: 57.175 | V80: 57.10935157 | W80: 53.32711359 | X80: 47.93884612 | Y80: 59.28556005 | Z80: 57.82472531 | AA80: 54.40710462 | AB80: 48.53780393 | AC80: 58.79066602 | AD80: 59.78045407 | AE80: 0 | AF80: 0 | AG80: 0 | AH80: 0 | AI80: 0 | AJ80: 0 | AK80: 1 | AL80: 1 | AM80: 0 | AN80: 1 | AO80: 1 | AP80: 1 | AQ80: 0 | AR80: 1 | AS80: 1 | AT80: 0 | AU80: 0 | AV80: 56.79836224 | AW80: 1 | AX80: 0 | AY80: 0
A81: 49 | B81: =OFFSET(InputPriceData!B$10,CalculationsAndCharts!$A81+$A$11,0,1,1) -> 2008-06-16 | C81: 2008-06-20 | D81: =OFFSET(InputPriceData!G$10,CalculationsAndCharts!$A81+$A$11,0,1,1) -> 4371000 | E81: =OFFSET(InputPriceData!C$10,CalculationsAndCharts!$A81+$A$11,0,1,1) -> 59.06 | F81: =OFFSET(InputPriceData!D$10,CalculationsAndCharts!$A81+$A$11,0,1,1) -> 60.02 | G81: =OFFSET(InputPriceData!E$10,CalculationsAndCharts!$A81+$A$11,0,1,1) -> 56.68 | H81: =OFFSET(InputPriceData!F$10,CalculationsAndCharts!$A81+$A$11,0,1,1) -> 57.63 | I81: 58.3475 | J81: 60.87366233 | K81: 59.19370617 | L81: 57.04666957 | M81: 53.12829107 | N81: 47.65160983 | O81: 59.40674535 | P81: 57.73932191 | Q81: 54.24621442 | R81: 48.22600732 | S81: 58.70532978 | T81: 60.10816093 | U81: 58.35 | V81: 57.10692015 | W81: 53.18703071 | X81: 47.73928066 | Y81: 59.49894898 | Z81: 57.77062032 | AA81: 54.28052607 | AB81: 48.32042242 | AC81: 58.79070518 | AD81: 60.20719278 | AE81: 1 | AF81: 1 | AG81: 1 | AH81: 1 | AI81: 1 | AJ81: 1 | AK81: 1 | AL81: 0 | AM81: 1 | AN81: 1 | AO81: 1 | AP81: 1 | AQ81: 0 | AR81: 0 | AS81: 0 | AT81: 1 | AU81: 1 | AV81: 56.80101858 | AW81: 0 | AX81: 1 | AY81: 100
A82: 50 | B82: =OFFSET(InputPriceData!B$10,CalculationsAndCharts!$A82+$A$11,0,1,1) -> 2008-06-09 | C82: 2008-06-13 | D82: =OFFSET(InputPriceData!G$10,CalculationsAndCharts!$A82+$A$11,0,1,1) -> 3679000 | E82: =OFFSET(InputPriceData!C$10,CalculationsAndCharts!$A82+$A$11,0,1,1) -> 61 | F82: =OFFSET(InputPriceData!D$10,CalculationsAndCharts!$A82+$A$11,0,1,1) -> 61.32 | G82: =OFFSET(InputPriceData!E$10,CalculationsAndCharts!$A82+$A$11,0,1,1) -> 58.58 | H82: =OFFSET(InputPriceData!F$10,CalculationsAndCharts!$A82+$A$11,0,1,1) -> 59.73 | I82: 60.1575 | J82: 61.58982466 | K82: 60.47928733 | L82: 56.9671497 | M82: 52.98316594 | N82: 47.44876978 | O82: 59.40072107 | P82: 57.67756549 | Q82: 54.11684007 | R82: 48.00303669 | S82: 58.68521293 | T82: 60.11622922 | U82: 59.95 | V82: 57.06088015 | W82: 53.04184962 | X82: 47.53751214 | Y82: 59.59460375 | Z82: 57.70660815 | AA82: 54.15126332 | AB82: 48.09967784 | AC82: 58.76571233 | AD82: 60.42349516 | AE82: 1 | AF82: 1 | AG82: 1 | AH82: 1 | AI82: 1 | AJ82: 1 | AK82: 1 | AL82: 0 | AM82: 1 | AN82: 1 | AO82: 1 | AP82: 1 | AQ82: 0 | AR82: 0 | AS82: 0 | AT82: 1 | AU82: 1 | AV82: 56.77291752 | AW82: 0 | AX82: 1 | AY82: 100
A83: 51 | B83: =OFFSET(InputPriceData!B$10,CalculationsAndCharts!$A83+$A$11,0,1,1) -> 2008-06-02 | C83: 2008-06-06 | D83: =OFFSET(InputPriceData!G$10,CalculationsAndCharts!$A83+$A$11,0,1,1) -> 3210900 | E83: =OFFSET(InputPriceData!C$10,CalculationsAndCharts!$A83+$A$11,0,1,1) -> 62.72 | F83: =OFFSET(InputPriceData!D$10,CalculationsAndCharts!$A83+$A$11,0,1,1) -> 62.85 | G83: =OFFSET(InputPriceData!E$10,CalculationsAndCharts!$A83+$A$11,0,1,1) -> 60.58 | H83: =OFFSET(InputPriceData!F$10,CalculationsAndCharts!$A83+$A$11,0,1,1) -> 60.58 | I83: 61.6825 | J83: 61.49714932 | K83: 61.65241233 | L83: 56.83707053 | M83: 52.83561098 | N83: 47.24379214 | O83: 59.24817079 | P83: 57.61374491 | Q83: 53.98496135 | R83: 47.77659952 | S83: 58.66295019 | T83: 59.83339138 | U83: 61.715 | V83: 56.95387571 | W83: 52.89299663 | X83: 47.33364779 | Y83: 59.51628503 | Z83: 57.63668239 | AA83: 54.01958388 | AB83: 47.87554505 | AC83: 58.72684056 | AD83: 60.30572949 | AE83: 1 | AF83: 1 | AG83: 1 | AH83: 1 | AI83: 0 | AJ83: 1 | AK83: 0 | AL83: 0 | AM83: 0 | AN83: 0 | AO83: 1 | AP83: 1 | AQ83: 0 | AR83: 0 | AS83: 0 | AT83: 1 | AU83: 1 | AV83: 56.67267743 | AW83: 0 | AX83: 1 | AY83: 100
A84: 52 | B84: =OFFSET(InputPriceData!B$10,CalculationsAndCharts!$A84+$A$11,0,1,1) -> 2008-05-27 | C84: 2008-05-31 | D84: =OFFSET(InputPriceData!G$10,CalculationsAndCharts!$A84+$A$11,0,1,1) -> 3447100 | E84: =OFFSET(InputPriceData!C$10,CalculationsAndCharts!$A84+$A$11,0,1,1) -> 61.06 | F84: =OFFSET(InputPriceData!D$10,CalculationsAndCharts!$A84+$A$11,0,1,1) -> 63.34 | G84: =OFFSET(InputPriceData!E$10,CalculationsAndCharts!$A84+$A$11,0,1,1) -> 61.06 | H84: =OFFSET(InputPriceData!F$10,CalculationsAndCharts!$A84+$A$11,0,1,1) -> 62.98 | I84: 62.11 | J84: 60.88429865 | K84: 61.80464932 | L84: 56.65872454 | M84: 52.68740878 | N84: 47.03668774 | O84: 58.95063502 | P84: 57.55321062 | Q84: 53.85056196 | R84: 47.5466602 | S84: 58.65460616 | T84: 59.24666389 | U84: 62.2 | V84: 56.77753778 | W84: 52.7425937 | X84: 47.12774598 | Y84: 59.23257819 | Z84: 57.56706748 | AA84: 53.88561727 | AB84: 47.64798805 | AC84: 58.69233866 | AD84: 59.77281773 | AE84: 1 | AF84: 1 | AG84: 1 | AH84: 1 | AI84: 0 | AJ84: 1 | AK84: 0 | AL84: 0 | AM84: 0 | AN84: 0 | AO84: 0 | AP84: 0 | AQ84: 1 | AR84: 0 | AS84: 1 | AT84: 1 | AU84: 1 | AV84: 56.54022582 | AW84: 0 | AX84: 1 | AY84: 100
A85: 53 | B85: =OFFSET(InputPriceData!B$10,CalculationsAndCharts!$A85+$A$11,0,1,1) -> 2008-05-19 | C85: 2008-05-23 | D85: =OFFSET(InputPriceData!G$10,CalculationsAndCharts!$A85+$A$11,0,1,1) -> 3323200 | E85: =OFFSET(InputPriceData!C$10,CalculationsAndCharts!$A85+$A$11,0,1,1) -> 61.99 | F85: =OFFSET(InputPriceData!D$10,CalculationsAndCharts!$A85+$A$11,0,1,1) -> 63.06 | G85: =OFFSET(InputPriceData!E$10,CalculationsAndCharts!$A85+$A$11,0,1,1) -> 60.61 | H85: =OFFSET(InputPriceData!F$10,CalculationsAndCharts!$A85+$A$11,0,1,1) -> 60.95 | I85: 61.6525 | J85: 60.1160973 | K85: 61.23617365 | L85: 56.46813473 | M85: 52.54032301 | N85: 46.82740178 | O85: 58.61083695 | P85: 57.50145416 | Q85: 53.71342683 | R85: 47.31318235 | S85: 58.67726434 | T85: 58.54440955 | U85: 61.835 | V85: 56.57670584 | W85: 52.59315133 | X85: 46.91978866 | Y85: 58.87045219 | Z85: 57.50538189 | AA85: 53.74926726 | AB85: 47.41696475 | AC85: 58.68530864 | AD85: 59.05559574 | AE85: 1 | AF85: 1 | AG85: 1 | AH85: 1 | AI85: 1 | AJ85: 1 | AK85: 1 | AL85: 0 | AM85: 1 | AN85: 1 | AO85: 1 | AP85: 1 | AQ85: 0 | AR85: 0 | AS85: 0 | AT85: 1 | AU85: 1 | AV85: 56.32192839 | AW85: 0 | AX85: 1 | AY85: 100
A86: 54 | B86: =OFFSET(InputPriceData!B$10,CalculationsAndCharts!$A86+$A$11,0,1,1) -> 2008-05-12 | C86: 2008-05-16 | D86: =OFFSET(InputPriceData!G$10,CalculationsAndCharts!$A86+$A$11,0,1,1) -> 3579800 | E86: =OFFSET(InputPriceData!C$10,CalculationsAndCharts!$A86+$A$11,0,1,1) -> 59.26 | F86: =OFFSET(InputPriceData!D$10,CalculationsAndCharts!$A86+$A$11,0,1,1) -> 62.07 | G86: =OFFSET(InputPriceData!E$10,CalculationsAndCharts!$A86+$A$11,0,1,1) -> 59.02 | H86: =OFFSET(InputPriceData!F$10,CalculationsAndCharts!$A86+$A$11,0,1,1) -> 61.91 | I86: 60.565 | J86: 59.66719459 | K86: 60.33054865 | L86: 56.2915407 | M86: 52.3948485 | N86: 46.6158121 | O86: 58.30588869 | P86: 57.46036591 | Q86: 53.57312952 | R86: 47.07613626 | S86: 58.73784542 | T86: 57.87393196 | U86: 60.545 | V86: 56.38195421 | W86: 52.44561227 | X86: 46.70966411 | Y86: 58.51868991 | Z86: 57.45482373 | AA86: 53.61015191 | AB86: 47.18243502 | AC86: 58.71645051 | AD86: 58.32092931 | AE86: 1 | AF86: 1 | AG86: 1 | AH86: 1 | AI86: 0 | AJ86: 1 | AK86: 1 | AL86: 0 | AM86: 0 | AN86: 1 | AO86: 1 | AP86: 1 | AQ86: 0 | AR86: 0 | AS86: 0 | AT86: 1 | AU86: 1 | AV86: 56.16504461 | AW86: 0 | AX86: 1 | AY86: 100
A87: 55 | B87: =OFFSET(InputPriceData!B$10,CalculationsAndCharts!$A87+$A$11,0,1,1) -> 2008-05-05 | C87: 2008-05-09 | D87: =OFFSET(InputPriceData!G$10,CalculationsAndCharts!$A87+$A$11,0,1,1) -> 3110300 | E87: =OFFSET(InputPriceData!C$10,CalculationsAndCharts!$A87+$A$11,0,1,1) -> 58.96 | F87: =OFFSET(InputPriceData!D$10,CalculationsAndCharts!$A87+$A$11,0,1,1) -> 61 | G87: =OFFSET(InputPriceData!E$10,CalculationsAndCharts!$A87+$A$11,0,1,1) -> 58.76 | H87: =OFFSET(InputPriceData!F$10,CalculationsAndCharts!$A87+$A$11,0,1,1) -> 59.24 | I87: 59.49 | J87: 59.84438918 | K87: 59.7735973 | L87: 56.14194781 | M87: 52.25052657 | N87: 46.40177372 | O87: 58.07603745 | P87: 57.42905025 | Q87: 53.4291578 | R87: 46.83550688 | S87: 58.83518422 | T87: 57.31689067 | U87: 59.88 | V87: 56.22776732 | W87: 52.29982183 | X87: 46.49722159 | Y87: 58.28105806 | Z87: 57.41542128 | AA87: 53.46775665 | AB87: 46.94437144 | AC87: 58.78736532 | AD87: 57.7747508 | AE87: 1 | AF87: 1 | AG87: 1 | AH87: 1 | AI87: 1 | AJ87: 1 | AK87: 1 | AL87: 0 | AM87: 1 | AN87: 1 | AO87: 1 | AP87: 1 | AQ87: 0 | AR87: 0 | AS87: 0 | AT87: 1 | AU87: 1 | AV87: 55.97030036 | AW87: 0 | AX87: 1 | AY87: 100
A88: 56 | B88: =OFFSET(InputPriceData!B$10,CalculationsAndCharts!$A88+$A$11,0,1,1) -> 2008-04-28 | C88: 2008-05-02 | D88: =OFFSET(InputPriceData!G$10,CalculationsAndCharts!$A88+$A$11,0,1,1) -> 3589000 | E88: =OFFSET(InputPriceData!C$10,CalculationsAndCharts!$A88+$A$11,0,1,1) -> 60.07 | F88: =OFFSET(InputPriceData!D$10,CalculationsAndCharts!$A88+$A$11,0,1,1) -> 60.17 | G88: =OFFSET(InputPriceData!E$10,CalculationsAndCharts!$A88+$A$11,0,1,1) -> 57.91 | H88: =OFFSET(InputPriceData!F$10,CalculationsAndCharts!$A88+$A$11,0,1,1) -> 59.3 | I88: 59.3625 | J88: 60.32627836 | K88: 59.48126418 | L88: 56.00744227 | M88: 52.10639985 | N88: 46.18515324 | O88: 57.8882805 | P88: 57.40508776 | Q88: 53.28101364 | R88: 46.59129759 | S88: 58.96351996 | T88: 56.81304104 | U88: 59.04 | V88: 56.09249945 | W88: 52.15434237 | X88: 46.28231047 | Y88: 58.0967817 | Z88: 57.38336066 | AA88: 53.32154685 | AB88: 46.70276458 | AC88: 58.888206 | AD88: 57.3053574 | AE88: 1 | AF88: 1 | AG88: 1 | AH88: 1 | AI88: 1 | AJ88: 1 | AK88: 1 | AL88: 0 | AM88: 1 | AN88: 1 | AO88: 1 | AP88: 1 | AQ88: 0 | AR88: 0 | AS88: 0 | AT88: 1 | AU88: 1 | AV88: 55.85946308 | AW88: 0 | AX88: 1 | AY88: 100
A89: 57 | B89: =OFFSET(InputPriceData!B$10,CalculationsAndCharts!$A89+$A$11,0,1,1) -> 2008-04-21 | C89: 2008-04-25 | D89: =OFFSET(InputPriceData!G$10,CalculationsAndCharts!$A89+$A$11,0,1,1) -> 3863900 | E89: =OFFSET(InputPriceData!C$10,CalculationsAndCharts!$A89+$A$11,0,1,1) -> 61.17 | F89: =OFFSET(InputPriceData!D$10,CalculationsAndCharts!$A89+$A$11,0,1,1) -> 62.13 | G89: =OFFSET(InputPriceData!E$10,CalculationsAndCharts!$A89+$A$11,0,1,1) -> 59.33 | H89: =OFFSET(InputPriceData!F$10,CalculationsAndCharts!$A89+$A$11,0,1,1) -> 59.75 | I89: 60.595 | J89: 60.05755673 | K89: 60.52813918 | L89: 55.8787822 | M89: 51.9619168 | N89: 45.96584781 | O89: 57.71644402 | P89: 57.38719173 | Q89: 53.12827015 | R89: 46.34353033 | S89: 59.12029507 | T89: 56.31259296 | U89: 60.73 | V89: 55.98333276 | W89: 52.0084847 | X89: 46.0648278 | Y89: 57.98937198 | Z89: 57.35693766 | AA89: 53.17110931 | AB89: 46.45762449 | AC89: 59.01510956 | AD89: 56.96363441 | AE89: 1 | AF89: 1 | AG89: 1 | AH89: 1 | AI89: 0 | AJ89: 1 | AK89: 0 | AL89: 0 | AM89: 0 | AN89: 0 | AO89: 1 | AP89: 1 | AQ89: 0 | AR89: 0 | AS89: 0 | AT89: 1 | AU89: 1 | AV89: 55.74283471 | AW89: 0 | AX89: 1 | AY89: 100
A90: 58 | B90: =OFFSET(InputPriceData!B$10,CalculationsAndCharts!$A90+$A$11,0,1,1) -> 2008-04-14 | C90: 2008-04-18 | D90: =OFFSET(InputPriceData!G$10,CalculationsAndCharts!$A90+$A$11,0,1,1) -> 3587900 | E90: =OFFSET(InputPriceData!C$10,CalculationsAndCharts!$A90+$A$11,0,1,1) -> 59.74 | F90: =OFFSET(InputPriceData!D$10,CalculationsAndCharts!$A90+$A$11,0,1,1) -> 62.16 | G90: =OFFSET(InputPriceData!E$10,CalculationsAndCharts!$A90+$A$11,0,1,1) -> 59.59 | H90: =OFFSET(InputPriceData!F$10,CalculationsAndCharts!$A90+$A$11,0,1,1) -> 61.31 | I90: 60.7 | J90: 59.41511345 | K90: 60.42255673 | L90: 55.7065838 | M90: 51.81684771 | N90: 45.74377118 | O90: 57.41297943 | P90: 57.3749972 | Q90: 52.97053231 | R90: 46.09224367 | S90: 59.30563833 | T90: 55.52032053 | U90: 60.875 | V90: 55.80753027 | W90: 51.86126811 | X90: 45.84469236 | Y90: 57.68347886 | Z90: 57.33351417 | AA90: 53.01607863 | AB90: 46.20897691 | AC90: 59.16128353 | AD90: 56.20567418 | AE90: 1 | AF90: 1 | AG90: 1 | AH90: 1 | AI90: 0 | AJ90: 1 | AK90: 0 | AL90: 0 | AM90: 0 | AN90: 0 | AO90: 0 | AP90: 0 | AQ90: 1 | AR90: 0 | AS90: 1 | AT90: 1 | AU90: 1 | AV90: 55.6069986 | AW90: 0 | AX90: 1 | AY90: 100
A91: 59 | B91: =OFFSET(InputPriceData!B$10,CalculationsAndCharts!$A91+$A$11,0,1,1) -> 2008-04-07 | C91: 2008-04-11 | D91: =OFFSET(InputPriceData!G$10,CalculationsAndCharts!$A91+$A$11,0,1,1) -> 3995100 | E91: =OFFSET(InputPriceData!C$10,CalculationsAndCharts!$A91+$A$11,0,1,1) -> 62.06 | F91: =OFFSET(InputPriceData!D$10,CalculationsAndCharts!$A91+$A$11,0,1,1) -> 62.06 | G91: =OFFSET(InputPriceData!E$10,CalculationsAndCharts!$A91+$A$11,0,1,1) -> 59.57 | H91: =OFFSET(InputPriceData!F$10,CalculationsAndCharts!$A91+$A$11,0,1,1) -> 60.02 | I91: 60.9275 | J91: 57.90272691 | K91: 59.69823845 | L91: 55.53191813 | M91: 51.67278341 | N91: 45.51884242 | O91: 57.09624658 | P91: 57.37359045 | Q91: 52.80740399 | R91: 45.83749224 | S91: 59.53605164 | T91: 54.65644151 | U91: 60.815 | V91: 55.61984621 | W91: 51.71511025 | X91: 45.62185623 | Y91: 57.3360641 | Z91: 57.32055251 | AA91: 52.85617361 | AB91: 45.95686203 | AC91: 59.34999875 | AD91: 55.32212945 | AE91: 1 | AF91: 1 | AG91: 1 | AH91: 1 | AI91: 0 | AJ91: 1 | AK91: 0 | AL91: 0 | AM91: 0 | AN91: 0 | AO91: 1 | AP91: 1 | AQ91: 0 | AR91: 0 | AS91: 0 | AT91: 0 | AU91: 0 | AV91: 55.41367652 | AW91: 0 | AX91: 0 | AY91: 0
A92: 60 | B92: =OFFSET(InputPriceData!B$10,CalculationsAndCharts!$A92+$A$11,0,1,1) -> 2008-03-31 | C92: 2008-04-04 | D92: =OFFSET(InputPriceData!G$10,CalculationsAndCharts!$A92+$A$11,0,1,1) -> 4986200 | E92: =OFFSET(InputPriceData!C$10,CalculationsAndCharts!$A92+$A$11,0,1,1) -> 57.6 | F92: =OFFSET(InputPriceData!D$10,CalculationsAndCharts!$A92+$A$11,0,1,1) -> 62.37 | G92: =OFFSET(InputPriceData!E$10,CalculationsAndCharts!$A92+$A$11,0,1,1) -> 57.34 | H92: =OFFSET(InputPriceData!F$10,CalculationsAndCharts!$A92+$A$11,0,1,1) -> 60.99 | I92: 59.575 | J92: 56.23045381 | K92: 58.60147691 | L92: 55.37760997 | M92: 51.5298525 | N92: 45.29091868 | O92: 56.8341911 | P92: 57.38386245 | Q92: 52.63828597 | R92: 45.57934736 | S92: 59.8160768 | T92: 53.85230541 | U92: 59.855 | V92: 55.4274331 | W92: 51.5704904 | X92: 45.39618015 | Y92: 56.96700827 | Z92: 57.31997801 | AA92: 52.69082624 | AB92: 45.70133197 | AC92: 59.58878728 | AD92: 54.34522925 | AE92: 1 | AF92: 1 | AG92: 1 | AH92: 1 | AI92: 0 | AJ92: 1 | AK92: 1 | AL92: 0 | AM92: 0 | AN92: 1 | AO92: 1 | AP92: 1 | AQ92: 0 | AR92: 0 | AS92: 0 | AT92: 0 | AU92: 0 | AV92: 55.25752996 | AW92: 0 | AX92: 0 | AY92: 0
A93: 61 | B93: =OFFSET(InputPriceData!B$10,CalculationsAndCharts!$A93+$A$11,0,1,1) -> 2008-03-24 | C93: 2008-03-28 | D93: =OFFSET(InputPriceData!G$10,CalculationsAndCharts!$A93+$A$11,0,1,1) -> 3533800 | E93: =OFFSET(InputPriceData!C$10,CalculationsAndCharts!$A93+$A$11,0,1,1) -> 56.7 | F93: =OFFSET(InputPriceData!D$10,CalculationsAndCharts!$A93+$A$11,0,1,1) -> 58.78 | G93: =OFFSET(InputPriceData!E$10,CalculationsAndCharts!$A93+$A$11,0,1,1) -> 56 | H93: =OFFSET(InputPriceData!F$10,CalculationsAndCharts!$A93+$A$11,0,1,1) -> 57.64 | I93: 57.28 | J93: 55.18090762 | K93: 56.60545381 | L93: 55.25820749 | M93: 51.38734296 | N93: 45.05984706 | O93: 56.67244065 | P93: 57.40422065 | Q93: 52.46252388 | R93: 45.31790519 | S93: 60.1429955 | T93: 53.20188581 | U93: 57.39 | V93: 55.26344914 | W93: 51.42764067 | X93: 45.16750199 | Y93: 56.67492742 | Z93: 57.33305096 | AA93: 52.51937617 | AB93: 45.44246181 | AC93: 59.88348618 | AD93: 53.46636866 | AE93: 1 | AF93: 1 | AG93: 1 | AH93: 1 | AI93: 1 | AJ93: 1 | AK93: 1 | AL93: 0 | AM93: 1 | AN93: 1 | AO93: 1 | AP93: 1 | AQ93: 0 | AR93: 0 | AS93: 0 | AT93: 0 | AU93: 0 | AV93: 55.06320894 | AW93: 0 | AX93: 0 | AY93: 0
A94: 62 | B94: =OFFSET(InputPriceData!B$10,CalculationsAndCharts!$A94+$A$11,0,1,1) -> 2008-03-17 | C94: 2008-03-21 | D94: =OFFSET(InputPriceData!G$10,CalculationsAndCharts!$A94+$A$11,0,1,1) -> 5834900 | E94: =OFFSET(InputPriceData!C$10,CalculationsAndCharts!$A94+$A$11,0,1,1) -> 53.37 | F94: =OFFSET(InputPriceData!D$10,CalculationsAndCharts!$A94+$A$11,0,1,1) -> 57.65 | G94: =OFFSET(InputPriceData!E$10,CalculationsAndCharts!$A94+$A$11,0,1,1) -> 53.36 | H94: =OFFSET(InputPriceData!F$10,CalculationsAndCharts!$A94+$A$11,0,1,1) -> 55.56 | I94: 54.985 | J94: 55.37681525 | K94: 55.34295381 | L94: 55.20830948 | M94: 51.24397761 | N94: 44.82549536 | O94: 56.71849098 | P94: 57.43132361 | Q94: 52.27949807 | R94: 45.05328968 | S94: 60.5087663 | T94: 52.92821565 | U94: 55.505 | V94: 55.184688 | W94: 51.28557369 | X94: 44.93564501 | Y94: 56.63298795 | Z94: 57.35742591 | AA94: 52.34109192 | AB94: 45.18035387 | AC94: 60.22935583 | AD94: 53.03662006 | AE94: 1 | AF94: 1 | AG94: 1 | AH94: 1 | AI94: 0 | AJ94: 1 | AK94: 1 | AL94: 0 | AM94: 0 | AN94: 1 | AO94: 1 | AP94: 1 | AQ94: 0 | AR94: 0 | AS94: 0 | AT94: 0 | AU94: 0 | AV94: 54.97586009 | AW94: 0 | AX94: 0 | AY94: 0
A95: 63 | B95: =OFFSET(InputPriceData!B$10,CalculationsAndCharts!$A95+$A$11,0,1,1) -> 2008-03-10 | C95: 2008-03-14 | D95: =OFFSET(InputPriceData!G$10,CalculationsAndCharts!$A95+$A$11,0,1,1) -> 4667900 | E95: =OFFSET(InputPriceData!C$10,CalculationsAndCharts!$A95+$A$11,0,1,1) -> 54.16 | F95: =OFFSET(InputPriceData!D$10,CalculationsAndCharts!$A95+$A$11,0,1,1) -> 57.5 | G95: =OFFSET(InputPriceData!E$10,CalculationsAndCharts!$A95+$A$11,0,1,1) -> 53.16 | H95: =OFFSET(InputPriceData!F$10,CalculationsAndCharts!$A95+$A$11,0,1,1) -> 55.65 | I95: 55.1175 | J95: 55.6361305 | K95: 55.35340762 | L95: 55.20332265 | M95: 51.0971505 | N95: 44.5877738 | O95: 56.90629025 | P95: 57.45772482 | Q95: 52.08868972 | R95: 44.78565233 | S95: 60.89275764 | T95: 52.91982286 | U95: 55.33 | V95: 55.17282459 | W95: 51.14116205 | X95: 44.70046246 | Y95: 56.7954501 | Z95: 57.38425694 | AA95: 52.15530177 | AB95: 44.91514135 | AC95: 60.60200686 | AD95: 52.98889334 | AE95: 1 | AF95: 1 | AG95: 1 | AH95: 1 | AI95: 1 | AJ95: 1 | AK95: 1 | AL95: 0 | AM95: 1 | AN95: 1 | AO95: 1 | AP95: 1 | AQ95: 0 | AR95: 0 | AS95: 0 | AT95: 0 | AU95: 0 | AV95: 54.95605874 | AW95: 0 | AX95: 0 | AY95: 0
A96: 64 | B96: =OFFSET(InputPriceData!B$10,CalculationsAndCharts!$A96+$A$11,0,1,1) -> 2008-03-03 | C96: 2008-03-07 | D96: =OFFSET(InputPriceData!G$10,CalculationsAndCharts!$A96+$A$11,0,1,1) -> 4488100 | E96: =OFFSET(InputPriceData!C$10,CalculationsAndCharts!$A96+$A$11,0,1,1) -> 55.23 | F96: =OFFSET(InputPriceData!D$10,CalculationsAndCharts!$A96+$A$11,0,1,1) -> 56.98 | G96: =OFFSET(InputPriceData!E$10,CalculationsAndCharts!$A96+$A$11,0,1,1) -> 53.52 | H96: =OFFSET(InputPriceData!F$10,CalculationsAndCharts!$A96+$A$11,0,1,1) -> 54.45 | I96: 55.045 | J96: 56.22726099 | K96: 55.44306525 | L96: 55.19776395 | M96: 50.94507005 | N96: 44.34668577 | O96: 57.10476746 | P96: 57.47814832 | Q96: 51.88983656 | R96: 44.51516947 | S96: 61.28010474 | T96: 52.92943019 | U96: 55.25 | V96: 55.16700328 | W96: 50.99184121 | X96: 44.46191803 | Y96: 56.98740425 | Z96: 57.40606461 | AA96: 51.96163677 | AB96: 44.64698726 | AC96: 60.98027077 | AD96: 52.99453772 | AE96: 1 | AF96: 1 | AG96: 1 | AH96: 1 | AI96: 1 | AJ96: 1 | AK96: 1 | AL96: 0 | AM96: 1 | AN96: 1 | AO96: 1 | AP96: 1 | AQ96: 0 | AR96: 0 | AS96: 0 | AT96: 0 | AU96: 0 | AV96: 54.93253531 | AW96: 1 | AX96: 0 | AY96: 0
A97: 65 | B97: =OFFSET(InputPriceData!B$10,CalculationsAndCharts!$A97+$A$11,0,1,1) -> 2008-02-25 | C97: 2008-02-29 | D97: =OFFSET(InputPriceData!G$10,CalculationsAndCharts!$A97+$A$11,0,1,1) -> 4570800 | E97: =OFFSET(InputPriceData!C$10,CalculationsAndCharts!$A97+$A$11,0,1,1) -> 57.07 | F97: =OFFSET(InputPriceData!D$10,CalculationsAndCharts!$A97+$A$11,0,1,1) -> 59.45 | G97: =OFFSET(InputPriceData!E$10,CalculationsAndCharts!$A97+$A$11,0,1,1) -> 55.48 | H97: =OFFSET(InputPriceData!F$10,CalculationsAndCharts!$A97+$A$11,0,1,1) -> 55.58 | I97: 56.895 | J97: 55.55952199 | K97: 56.8461305 | L97: 55.18867872 | M97: 50.78756287 | N97: 44.10230117 | O97: =3*L97-3*M97+N97 -> 57.30564871 | P97: 57.49197724 | Q97: 51.68286206 | R97: 44.24203365 | S97: 61.66937921 | T97: 52.9419182 | U97: =AVERAGE(F97:G97) -> 57.465 | V97: 55.16392933 | W97: 50.83720558 | X97: 44.22006903 | Y97: 57.20024028 | Z97: 57.42157054 | AA97: 51.75999129 | AB97: 44.37607432 | AC97: 61.36081207 | AD97: 53.03966848 | AE97: =IF(OR(K97>=J97,K98>=J98,K99>=J99),1,IF(H97>=K97,1,IF(OR(F97>F98,G97>G98),1,0))) -> 1 | AF97: =IF((AD97-T97)>=0,1,0) -> 1 | AG97: 1 | AH97: =IF(OR(AG97=1,OR(AND(AG98=1,(H97>=E97)),H97>=H98)),1,0) -> 1 | AI97: =IF(AND(ABS(H97-E97)<(F97-G97)*$B$20,F97>=G98),1,0) -> 1 | AJ97: 1 | AK97: =IF(OR(K97<J97,K98<J98,K99<J99),1,0) -> 0 | AL97: =IF((AD97-T97)<0,1,0) -> 0 | AM97: =IF(AND(ABS(H97-E97)<(F97-G97)*$B$20,G97<=F98),1,0) -> 1 | AN97: 0 | AO97: =IF(OR(AN97=1,OR(AND(AN98=1,(H97<E97)),H97<H98)),1,0) -> 1 | AP97: 1 | AQ97: 0 | AR97: 0 | AS97: 0 | AT97: 0 | AU97: 0 | AV97: =H97*$C$19+$D$19*AV98 -> 54.94889244 | AW97: =IF(H97<AV97,1,0) -> 0 | AX97: 0 | AY97: 0
A98: 66 | B98: =OFFSET(InputPriceData!B$10,CalculationsAndCharts!$A98+$A$11,0,1,1) -> 2008-02-19 | C98: =B98+4 -> 2008-02-23 | D98: =OFFSET(InputPriceData!G$10,CalculationsAndCharts!$A98+$A$11,0,1,1) -> 3903600 | E98: =OFFSET(InputPriceData!C$10,CalculationsAndCharts!$A98+$A$11,0,1,1) -> 56.44 | F98: =OFFSET(InputPriceData!D$10,CalculationsAndCharts!$A98+$A$11,0,1,1) -> 57.03 | G98: =OFFSET(InputPriceData!E$10,CalculationsAndCharts!$A98+$A$11,0,1,1) -> 54.69 | H98: =OFFSET(InputPriceData!F$10,CalculationsAndCharts!$A98+$A$11,0,1,1) -> 57.03 | I98: 56.2975 | J98: =(I99+J99)/2 -> 54.82154398 | K98: =(I98+J98+MAX(F98,J98)+MIN(G98,J98))/4 -> 55.70976099 | L98: =$C$18*K98+$D$18*L99 -> 55.12729161 | M98: =$C$18*L98+$D$18*M99 -> 50.62455858 | N98: =$C$18*M98+$D$18*N99 -> 43.85469888 | O98: 57.36289798 | P98: =$C$18*O98+$D$18*P99 -> 57.4988783 | Q98: =$C$18*P98+$D$18*Q99 -> 51.46770964 | R98: =$C$18*Q98+$D$18*R99 -> 43.96644741 | S98: =3*P98-3*Q98+R98 -> 62.05995338 | T98: =2*O98-S98 -> 52.66584258 | U98: 55.86 | V98: =$C$18*U98+$D$18*V99 -> 55.07870449 | W98: =$C$18*V98+$D$18*W99 -> 50.67695655 | X98: =$C$18*W98+$D$18*X99 -> 43.97498989 | Y98: =3*V98-3*W98+X98 -> 57.18023371 | Z98: =$C$18*Y98+$D$18*Z99 -> 57.42976796 | AA98: =$C$18*Z98+$D$18*AA99 -> 51.55030317 | AB98: =$C$18*AA98+$D$18*AB99 -> 44.10259591 | AC98: =3*Z98-3*AA98+AB98 -> 61.74099028 | AD98: =2*Y98-AC98 -> 52.61947714 | AE98: 1 | AF98: 0 | AG98: =IF(OR(AE98=1, AF98=1),1,0) -> 1 | AH98: 1 | AI98: 1 | AJ98: =IF(OR(AH98=1,AND(AH99=1,AI98=1)),1,0) -> 1 | AK98: 0 | AL98: 1 | AM98: 1 | AN98: =IF(OR(AK98=1, AL98=1),1,0) -> 1 | AO98: 1 | AP98: =IF(OR(AO98=1,AND(AO99=1,AM98=1)),1,0) -> 1 | AQ98: =IF(AND(AP98=0,AP99=1,AJ98=1),1,0) -> 0 | AR98: =IF(AND(AJ98=0,AJ99=1,AP98=1),1,0) -> 0 | AS98: =IF(OR(AQ98=1,AR98=1),1,0) -> 0 | AT98: =IF(OR(AQ98=1,AR98=1),IF(AQ98=1,1,0),AT99) -> 0 | AU98: =IF(AQ98=1,1,IF(AR98=1,0,AT98)) -> 0 | AV98: 54.92749896 | AW98: 0 | AX98: =IF(AU98=1,1,IF(AND(AU98=0, AW98=1),0,AX99)) -> 0 | AY98: =IF(AU98=1,100,IF(AND(AU98=0, AX98=1),50,IF(AND(AU98=0, AX98=0),0,AY99))) -> 0
A99: 67 | B99: =OFFSET(InputPriceData!B$10,CalculationsAndCharts!$A99+$A$11,0,1,1) -> 2008-02-11 | C99: 2008-02-15 | D99: =OFFSET(InputPriceData!G$10,CalculationsAndCharts!$A99+$A$11,0,1,1) -> 3957500 | E99: =OFFSET(InputPriceData!C$10,CalculationsAndCharts!$A99+$A$11,0,1,1) -> 54.08 | F99: =OFFSET(InputPriceData!D$10,CalculationsAndCharts!$A99+$A$11,0,1,1) -> 57.79 | G99: =OFFSET(InputPriceData!E$10,CalculationsAndCharts!$A99+$A$11,0,1,1) -> 53.82 | H99: =OFFSET(InputPriceData!F$10,CalculationsAndCharts!$A99+$A$11,0,1,1) -> 55.4 | I99: 55.2725 | J99: 54.37058796 | K99: 55.31327199 | L99: 55.10571867 | M99: 50.45779069 | N99: 43.60396334 | O99: 57.54774729 | P99: 57.50391461 | Q99: 51.24433302 | R99: 43.68862288 | S99: 62.46736763 | T99: 52.62812695 | U99: 55.805 | V99: 55.04976762 | W99: 50.51392885 | X99: 43.72676891 | Y99: 57.33428522 | Z99: 57.43900997 | AA99: 51.33254522 | AB99: 43.8267549 | AC99: 62.14614916 | AD99: 52.52242127 | AE99: 1 | AF99: 0 | AG99: 1 | AH99: 1 | AI99: 1 | AJ99: 1 | AK99: 0 | AL99: 1 | AM99: 1 | AN99: 1 | AO99: 1 | AP99: 1 | AQ99: 0 | AR99: 0 | AS99: 0 | AT99: 0 | AU99: 0 | AV99: 54.85622774 | AW99: 0 | AX99: 0 | AY99: 0
A100: 68 | B100: =OFFSET(InputPriceData!B$10,CalculationsAndCharts!$A100+$A$11,0,1,1) -> 2008-02-04 | C100: 2008-02-08 | D100: =OFFSET(InputPriceData!G$10,CalculationsAndCharts!$A100+$A$11,0,1,1) -> 4384800 | E100: =OFFSET(InputPriceData!C$10,CalculationsAndCharts!$A100+$A$11,0,1,1) -> 57.6 | F100: =OFFSET(InputPriceData!D$10,CalculationsAndCharts!$A100+$A$11,0,1,1) -> 57.72 | G100: =OFFSET(InputPriceData!E$10,CalculationsAndCharts!$A100+$A$11,0,1,1) -> 52.64 | H100: =OFFSET(InputPriceData!F$10,CalculationsAndCharts!$A100+$A$11,0,1,1) -> 54.24 | I100: 55.55 | J100: 53.19117591 | K100: 54.77529398 | L100: 55.09803151 | M100: 50.28564521 | N100: 43.35011788 | O100: 57.7872768 | P100: 57.50229117 | Q100: 51.01249667 | R100: 43.40878177 | S100: 62.87816528 | T100: 52.69638831 | U100: 55.18 | V100: 55.02179605 | W100: 50.34593482 | X100: 43.47539261 | Y100: 57.5029763 | Z100: 57.44288867 | AA100: 51.10637986 | AB100: 43.54876267 | AC100: 62.5582891 | AD100: 52.4476635 | AE100: 1 | AF100: 0 | AG100: 1 | AH100: 1 | AI100: 0 | AJ100: 1 | AK100: 1 | AL100: 1 | AM100: 0 | AN100: 1 | AO100: 1 | AP100: 1 | AQ100: 0 | AR100: 0 | AS100: 0 | AT100: 0 | AU100: 0 | AV100: 54.83779478 | AW100: 1 | AX100: 0 | AY100: 0
A101: 69 | B101: =OFFSET(InputPriceData!B$10,CalculationsAndCharts!$A101+$A$11,0,1,1) -> 2008-01-28 | C101: 2008-02-01 | D101: =OFFSET(InputPriceData!G$10,CalculationsAndCharts!$A101+$A$11,0,1,1) -> 4533500 | E101: =OFFSET(InputPriceData!C$10,CalculationsAndCharts!$A101+$A$11,0,1,1) -> 51.98 | F101: =OFFSET(InputPriceData!D$10,CalculationsAndCharts!$A101+$A$11,0,1,1) -> 57.2 | G101: =OFFSET(InputPriceData!E$10,CalculationsAndCharts!$A101+$A$11,0,1,1) -> 51.06 | H101: =OFFSET(InputPriceData!F$10,CalculationsAndCharts!$A101+$A$11,0,1,1) -> 56.8 | I101: 54.26 | J101: 52.12235183 | K101: 53.66058796 | L101: 55.10998476 | M101: 50.10740868 | N101: 43.0932465 | O101: 58.10097473 | P101: 57.49173615 | Q101: 50.77213391 | R101: 43.1271627 | S101: 63.28596942 | T101: 52.91598004 | U101: 54.13 | V101: 55.01593664 | W101: 50.17275478 | X101: 43.22092809 | Y101: 57.75047369 | Z101: 57.4406632 | AA101: 50.87169434 | AB101: 43.26885092 | AC101: 62.97575748 | AD101: 52.5251899 | AE101: 1 | AF101: 0 | AG101: 1 | AH101: 1 | AI101: 0 | AJ101: 1 | AK101: 1 | AL101: 1 | AM101: 0 | AN101: 1 | AO101: 1 | AP101: 1 | AQ101: 0 | AR101: 0 | AS101: 0 | AT101: 0 | AU101: 0 | AV101: 54.85805901 | AW101: 0 | AX101: 0 | AY101: 0
A102: 70 | B102: =OFFSET(InputPriceData!B$10,CalculationsAndCharts!$A102+$A$11,0,1,1) -> 2008-01-22 | C102: 2008-01-26 | D102: =OFFSET(InputPriceData!G$10,CalculationsAndCharts!$A102+$A$11,0,1,1) -> 7292000 | E102: =OFFSET(InputPriceData!C$10,CalculationsAndCharts!$A102+$A$11,0,1,1) -> 47.52 | F102: =OFFSET(InputPriceData!D$10,CalculationsAndCharts!$A102+$A$11,0,1,1) -> 54.59 | G102: =OFFSET(InputPriceData!E$10,CalculationsAndCharts!$A102+$A$11,0,1,1) -> 47.52 | H102: =OFFSET(InputPriceData!F$10,CalculationsAndCharts!$A102+$A$11,0,1,1) -> 52.1 | I102: 50.4325 | J102: 53.81220365 | K102: 51.58867591 | L102: 55.16366612 | M102: 49.92212808 | N102: 42.83346271 | O102: 58.55807682 | P102: 57.46917176 | Q102: 50.52325975 | R102: 42.84401561 | S102: 63.68175163 | T102: 53.434402 | U102: 51.055 | V102: 55.04874911 | W102: 49.99337767 | X102: 42.96345302 | Y102: 58.12956735 | Z102: 57.42918873 | AA102: 50.6283992 | AB102: 42.98726413 | AC102: 63.38963273 | AD102: 52.86950198 | AE102: 1 | AF102: 0 | AG102: 1 | AH102: 1 | AI102: 0 | AJ102: 1 | AK102: 1 | AL102: 1 | AM102: 0 | AN102: 1 | AO102: 1 | AP102: 1 | AQ102: 0 | AR102: 0 | AS102: 0 | AT102: 0 | AU102: 0 | AV102: 54.7922305 | AW102: 1 | AX102: 0 | AY102: 0
A103: 71 | B103: =OFFSET(InputPriceData!B$10,CalculationsAndCharts!$A103+$A$11,0,1,1) -> 2008-01-14 | C103: 2008-01-18 | D103: =OFFSET(InputPriceData!G$10,CalculationsAndCharts!$A103+$A$11,0,1,1) -> 5640300 | E103: =OFFSET(InputPriceData!C$10,CalculationsAndCharts!$A103+$A$11,0,1,1) -> 55.48 | F103: =OFFSET(InputPriceData!D$10,CalculationsAndCharts!$A103+$A$11,0,1,1) -> 55.54 | G103: =OFFSET(InputPriceData!E$10,CalculationsAndCharts!$A103+$A$11,0,1,1) -> 48.35 | H103: =OFFSET(InputPriceData!F$10,CalculationsAndCharts!$A103+$A$11,0,1,1) -> 50.68 | I103: 52.5125 | J103: 55.1119073 | K103: 52.87860183 | L103: 55.29607316 | M103: 49.72799705 | N103: 42.57091955 | O103: 59.27514791 | P103: 57.42884194 | Q103: 50.26600375 | R103: 42.55959916 | S103: 64.04811373 | T103: 54.50218208 | U103: 51.945 | V103: 55.19666575 | W103: 49.80614169 | X103: 42.70308545 | Y103: 58.87465761 | Z103: 57.40324879 | AA103: 50.37651811 | AB103: 42.70425912 | AC103: 63.78445116 | AD103: 53.96486407 | AE103: 0 | AF103: 0 | AG103: 0 | AH103: 0 | AI103: 0 | AJ103: 0 | AK103: 1 | AL103: 1 | AM103: 0 | AN103: 1 | AO103: 1 | AP103: 1 | AQ103: 0 | AR103: 1 | AS103: 1 | AT103: 0 | AU103: 0 | AV103: 54.88349255 | AW103: 1 | AX103: 0 | AY103: 0
A104: 72 | B104: =OFFSET(InputPriceData!B$10,CalculationsAndCharts!$A104+$A$11,0,1,1) -> 2008-01-07 | C104: 2008-01-11 | D104: =OFFSET(InputPriceData!G$10,CalculationsAndCharts!$A104+$A$11,0,1,1) -> 4937500 | E104: =OFFSET(InputPriceData!C$10,CalculationsAndCharts!$A104+$A$11,0,1,1) -> 53.61 | F104: =OFFSET(InputPriceData!D$10,CalculationsAndCharts!$A104+$A$11,0,1,1) -> 55.71 | G104: =OFFSET(InputPriceData!E$10,CalculationsAndCharts!$A104+$A$11,0,1,1) -> 52.4 | H104: =OFFSET(InputPriceData!F$10,CalculationsAndCharts!$A104+$A$11,0,1,1) -> 54.96 | I104: =AVERAGE(E104:H104) -> 54.17 | J104: 56.0538146 | K104: 54.6694073 | L104: 55.38560914 | M104: 49.521772 | N104: 42.30584261 | O104: 59.89735401 | P104: 57.36046024 | Q104: 50.00071345 | R104: 42.27417677 | S104: 64.35341715 | T104: 55.44129088 | U104: 54.055 | V104: 55.31709781 | W104: 49.60649265 | X104: 42.44000929 | Y104: 59.57182477 | Z104: 57.34875216 | AA104: 50.11626882 | AB104: 42.42010138 | AC104: 64.1175514 | AD104: 55.02609813 | AE104: 1 | AF104: 0 | AG104: 1 | AH104: 1 | AI104: 1 | AJ104: 1 | AK104: 1 | AL104: 1 | AM104: 1 | AN104: 1 | AO104: 1 | AP104: 1 | AQ104: 0 | AR104: 0 | AS104: 0 | AT104: 0 | AU104: 0 | AV104: 55.02598382 | AW104: 1 | AX104: 0 | AY104: 0
A105: 73 | B105: =OFFSET(InputPriceData!B$10,CalculationsAndCharts!$A105+$A$11,0,1,1) -> 2007-12-31 | C105: 2008-01-04 | D105: =OFFSET(InputPriceData!G$10,CalculationsAndCharts!$A105+$A$11,0,1,1) -> 4220100 | E105: =OFFSET(InputPriceData!C$10,CalculationsAndCharts!$A105+$A$11,0,1,1) -> 56.2 | F105: =OFFSET(InputPriceData!D$10,CalculationsAndCharts!$A105+$A$11,0,1,1) -> 56.72 | G105: =OFFSET(InputPriceData!E$10,CalculationsAndCharts!$A105+$A$11,0,1,1) -> 53.35 | H105: =OFFSET(InputPriceData!F$10,CalculationsAndCharts!$A105+$A$11,0,1,1) -> 53.4 | I105: 54.9175 | J105: 57.19012921 | K105: 55.6619396 | L105: 55.41213513 | M105: 49.30459285 | N105: 42.03858596 | O105: 60.36121281 | P105: 57.26650121 | Q105: 49.72813023 | R105: 41.98800875 | S105: 64.60312168 | T105: 56.11930394 | U105: 55.035 | V105: 55.36384217 | W105: 49.39498876 | X105: 42.17458398 | Y105: 60.08114423 | Z105: 57.26641614 | AA105: 49.84839907 | AB105: 42.13505814 | AC105: 64.38910936 | AD105: 55.77317911 | AE105: 0 | AF105: 0 | AG105: 0 | AH105: 0 | AI105: 0 | AJ105: 0 | AK105: 1 | AL105: 1 | AM105: 0 | AN105: 1 | AO105: 1 | AP105: 1 | AQ105: 0 | AR105: 1 | AS105: 1 | AT105: 0 | AU105: 0 | AV105: 55.02822056 | AW105: 1 | AX105: 0 | AY105: 0
A106: 74 | B106: =OFFSET(InputPriceData!B$10,CalculationsAndCharts!$A106+$A$11,0,1,1) -> 2007-12-24 | C106: 2007-12-28 | D106: =OFFSET(InputPriceData!G$10,CalculationsAndCharts!$A106+$A$11,0,1,1) -> 1257500 | E106: =OFFSET(InputPriceData!C$10,CalculationsAndCharts!$A106+$A$11,0,1,1) -> 56.59 | F106: =OFFSET(InputPriceData!D$10,CalculationsAndCharts!$A106+$A$11,0,1,1) -> 57.76 | G106: =OFFSET(InputPriceData!E$10,CalculationsAndCharts!$A106+$A$11,0,1,1) -> 56.36 | H106: =OFFSET(InputPriceData!F$10,CalculationsAndCharts!$A106+$A$11,0,1,1) -> 56.65 | I106: 56.84 | J106: 57.54025842 | K106: 57.1250646 | L106: 55.40288312 | M106: 49.07838758 | N106: 41.7694746 | O106: 60.7429612 | P106: 57.15188226 | Q106: 49.44893131 | R106: 41.70133758 | S106: 64.81019044 | T106: 56.67573196 | U106: 57.06 | V106: 55.37602151 | W106: 49.17392011 | X106: 41.90716158 | Y106: 60.51346579 | Z106: 57.16216695 | AA106: 49.5736577 | AB106: 41.84937885 | AC106: 64.61490662 | AD106: 56.41202496 | AE106: 1 | AF106: 0 | AG106: 1 | AH106: 1 | AI106: 1 | AJ106: 1 | AK106: 1 | AL106: 1 | AM106: 1 | AN106: 1 | AO106: 1 | AP106: 1 | AQ106: 0 | AR106: 0 | AS106: 0 | AT106: 1 | AU106: 1 | AV106: 55.08341448 | AW106: 0 | AX106: 1 | AY106: 100
A107: 75 | B107: =OFFSET(InputPriceData!B$10,CalculationsAndCharts!$A107+$A$11,0,1,1) -> 2007-12-17 | C107: 2007-12-21 | D107: =OFFSET(InputPriceData!G$10,CalculationsAndCharts!$A107+$A$11,0,1,1) -> 2928400 | E107: =OFFSET(InputPriceData!C$10,CalculationsAndCharts!$A107+$A$11,0,1,1) -> 57.21 | F107: =OFFSET(InputPriceData!D$10,CalculationsAndCharts!$A107+$A$11,0,1,1) -> 57.6 | G107: =OFFSET(InputPriceData!E$10,CalculationsAndCharts!$A107+$A$11,0,1,1) -> 54.87 | H107: =OFFSET(InputPriceData!F$10,CalculationsAndCharts!$A107+$A$11,0,1,1) -> 56.72 | I107: 56.6 | J107: 58.48051684 | K107: 57.10775842 | L107: 55.33909862 | M107: 48.84414701 | N107: 41.49877411 | O107: 60.98362895 | P107: 57.01887934 | Q107: 49.16363683 | R107: 41.41438967 | S107: 64.9801172 | T107: 56.9871407 | U107: 56.235 | V107: 55.31365194 | W107: 48.94421265 | X107: 41.63802237 | Y107: 60.74634024 | Z107: 57.03804477 | AA107: 49.2926018 | AB107: 41.56329445 | AC107: 64.79962337 | AD107: 56.69305711 | AE107: 1 | AF107: 0 | AG107: 1 | AH107: 1 | AI107: 1 | AJ107: 1 | AK107: 1 | AL107: 1 | AM107: 1 | AN107: 1 | AO107: 1 | AP107: 1 | AQ107: 0 | AR107: 0 | AS107: 0 | AT107: 1 | AU107: 1 | AV107: 55.03030989 | AW107: 0 | AX107: 1 | AY107: 100
A108: 76 | B108: =OFFSET(InputPriceData!B$10,CalculationsAndCharts!$A108+$A$11,0,1,1) -> 2007-12-10 | C108: 2007-12-14 | D108: =OFFSET(InputPriceData!G$10,CalculationsAndCharts!$A108+$A$11,0,1,1) -> 3107600 | E108: =OFFSET(InputPriceData!C$10,CalculationsAndCharts!$A108+$A$11,0,1,1) -> 60.56 | F108: =OFFSET(InputPriceData!D$10,CalculationsAndCharts!$A108+$A$11,0,1,1) -> 61.19 | G108: =OFFSET(InputPriceData!E$10,CalculationsAndCharts!$A108+$A$11,0,1,1) -> 57.27 | H108: =OFFSET(InputPriceData!F$10,CalculationsAndCharts!$A108+$A$11,0,1,1) -> 58.1 | I108: 59.28 | J108: 57.68103368 | K108: 58.85525842 | L108: 55.2735927 | M108: 48.60359324 | N108: 41.22672327 | O108: 61.23672163 | P108: 56.87203676 | Q108: 48.87270192 | R108: 41.12738051 | S108: 65.12538503 | T108: 57.34805824 | U108: 59.23 | V108: 55.27952794 | W108: 48.70830749 | X108: 41.36742273 | Y108: 61.08108407 | Z108: 56.9007005 | AA108: 49.00573354 | AB108: 41.27702381 | AC108: 64.96192468 | AD108: 57.20024346 | AE108: 1 | AF108: 0 | AG108: 1 | AH108: 1 | AI108: 0 | AJ108: 1 | AK108: 1 | AL108: 1 | AM108: 0 | AN108: 1 | AO108: 1 | AP108: 1 | AQ108: 0 | AR108: 0 | AS108: 0 | AT108: 1 | AU108: 1 | AV108: 54.97303226 | AW108: 0 | AX108: 1 | AY108: 100
A109: 77 | B109: =OFFSET(InputPriceData!B$10,CalculationsAndCharts!$A109+$A$11,0,1,1) -> 2007-12-03 | C109: 2007-12-07 | D109: =OFFSET(InputPriceData!G$10,CalculationsAndCharts!$A109+$A$11,0,1,1) -> 3292600 | E109: =OFFSET(InputPriceData!C$10,CalculationsAndCharts!$A109+$A$11,0,1,1) -> 57.83 | F109: =OFFSET(InputPriceData!D$10,CalculationsAndCharts!$A109+$A$11,0,1,1) -> 61 | G109: =OFFSET(InputPriceData!E$10,CalculationsAndCharts!$A109+$A$11,0,1,1) -> 56.94 | H109: =OFFSET(InputPriceData!F$10,CalculationsAndCharts!$A109+$A$11,0,1,1) -> 60.76 | I109: 59.1325 | J109: 56.22956735 | K109: 58.14790868 | L109: 55.14093841 | M109: 48.35655623 | N109: 40.95350586 | O109: 61.30665242 | P109: 56.71038177 | Q109: 48.57643026 | R109: 40.84051676 | S109: 65.24237127 | T109: 57.37093357 | U109: 58.97 | V109: 55.13321416 | W109: 48.46492896 | X109: 41.09553811 | Y109: 61.10039371 | Z109: 56.74587148 | AA109: 48.71332736 | AB109: 40.9907753 | AC109: 65.08840766 | AD109: 57.11237977 | AE109: 1 | AF109: 0 | AG109: 1 | AH109: 1 | AI109: 0 | AJ109: 1 | AK109: 1 | AL109: 1 | AM109: 0 | AN109: 1 | AO109: 1 | AP109: 1 | AQ109: 0 | AR109: 0 | AS109: 0 | AT109: 1 | AU109: 1 | AV109: 54.86703335 | AW109: 0 | AX109: 1 | AY109: 100
A110: 78 | B110: =OFFSET(InputPriceData!B$10,CalculationsAndCharts!$A110+$A$11,0,1,1) -> 2007-11-26 | C110: 2007-11-30 | D110: =OFFSET(InputPriceData!G$10,CalculationsAndCharts!$A110+$A$11,0,1,1) -> 4085300 | E110: =OFFSET(InputPriceData!C$10,CalculationsAndCharts!$A110+$A$11,0,1,1) -> 54.84 | F110: =OFFSET(InputPriceData!D$10,CalculationsAndCharts!$A110+$A$11,0,1,1) -> 58.5 | G110: =OFFSET(InputPriceData!E$10,CalculationsAndCharts!$A110+$A$11,0,1,1) -> 52.93 | H110: =OFFSET(InputPriceData!F$10,CalculationsAndCharts!$A110+$A$11,0,1,1) -> 58.03 | I110: 56.075 | J110: 56.3841347 | K110: 55.97228368 | L110: 55.02956914 | M110: 48.10528281 | N110: 40.67931881 | O110: 61.4521778 | P110: 56.54014952 | Q110: 48.2751728 | R110: 40.55400144 | S110: 65.34893161 | T110: 57.555424 | U110: 55.715 | V110: 54.99111098 | W110: 48.21795543 | X110: 40.82259771 | Y110: 61.14206435 | Z110: 56.58459287 | AA110: 48.41582572 | AB110: 40.70475485 | AC110: 65.21105631 | AD110: 57.0730724 | AE110: 1 | AF110: 0 | AG110: 1 | AH110: 1 | AI110: 0 | AJ110: 1 | AK110: 1 | AL110: 1 | AM110: 0 | AN110: 1 | AO110: 1 | AP110: 1 | AQ110: 0 | AR110: 0 | AS110: 0 | AT110: 1 | AU110: 1 | AV110: 54.66727177 | AW110: 0 | AX110: 1 | AY110: 100
A111: 79 | B111: =OFFSET(InputPriceData!B$10,CalculationsAndCharts!$A111+$A$11,0,1,1) -> 2007-11-19 | C111: 2007-11-23 | D111: =OFFSET(InputPriceData!G$10,CalculationsAndCharts!$A111+$A$11,0,1,1) -> 4114100 | E111: =OFFSET(InputPriceData!C$10,CalculationsAndCharts!$A111+$A$11,0,1,1) -> 55.73 | F111: =OFFSET(InputPriceData!D$10,CalculationsAndCharts!$A111+$A$11,0,1,1) -> 56.56 | G111: =OFFSET(InputPriceData!E$10,CalculationsAndCharts!$A111+$A$11,0,1,1) -> 53.89 | H111: =OFFSET(InputPriceData!F$10,CalculationsAndCharts!$A111+$A$11,0,1,1) -> 54.65 | I111: 55.2075 | J111: 57.5607694 | K111: 56.0547597 | L111: 54.99465379 | M111: 47.84882776 | N111: 40.40428311 | O111: 61.84176119 | P111: 56.35822255 | Q111: 47.96906255 | R111: 40.26803213 | S111: 65.43551212 | T111: 58.24801026 | U111: 55.225 | V111: 54.96430027 | W111: 47.96709782 | X111: 40.54869557 | Y111: 61.54030294 | Z111: 56.41579763 | AA111: 48.11327879 | AB111: 40.41915963 | AC111: 65.32671616 | AD111: 57.75388971 | AE111: 1 | AF111: 0 | AG111: 1 | AH111: 1 | AI111: 1 | AJ111: 1 | AK111: 1 | AL111: 1 | AM111: 1 | AN111: 1 | AO111: 1 | AP111: 1 | AQ111: 0 | AR111: 0 | AS111: 0 | AT111: 1 | AU111: 1 | AV111: 54.55328098 | AW111: 0 | AX111: 1 | AY111: 100
A112: 80 | B112: =OFFSET(InputPriceData!B$10,CalculationsAndCharts!$A112+$A$11,0,1,1) -> 2007-11-12 | C112: 2007-11-16 | D112: =OFFSET(InputPriceData!G$10,CalculationsAndCharts!$A112+$A$11,0,1,1) -> 4445000 | E112: =OFFSET(InputPriceData!C$10,CalculationsAndCharts!$A112+$A$11,0,1,1) -> 55.35 | F112: =OFFSET(InputPriceData!D$10,CalculationsAndCharts!$A112+$A$11,0,1,1) -> 58.24 | G112: =OFFSET(InputPriceData!E$10,CalculationsAndCharts!$A112+$A$11,0,1,1) -> 53.22 | H112: =OFFSET(InputPriceData!F$10,CalculationsAndCharts!$A112+$A$11,0,1,1) -> 56.81 | I112: 55.905 | J112: 59.2165388 | K112: 56.8895194 | L112: 54.95539061 | M112: 47.58416754 | N112: 40.12855923 | O112: 62.24222844 | P112: 56.15512852 | Q112: 47.65835292 | R112: 39.98280878 | S112: 65.47313559 | T112: 59.01132128 | U112: 55.73 | V112: 54.95464473 | W112: 47.70794217 | X112: 40.27393994 | Y112: 62.0140476 | Z112: 56.22600114 | AA112: 47.80577809 | AB112: 40.13419226 | AC112: 65.3948614 | AD112: 58.6332338 | AE112: 1 | AF112: 0 | AG112: 1 | AH112: 1 | AI112: 1 | AJ112: 1 | AK112: 1 | AL112: 1 | AM112: 1 | AN112: 1 | AO112: 1 | AP112: 1 | AQ112: 0 | AR112: 0 | AS112: 0 | AT112: 1 | AU112: 1 | AV112: 54.55000237 | AW112: 0 | AX112: 1 | AY112: 100
A113: 81 | B113: =OFFSET(InputPriceData!B$10,CalculationsAndCharts!$A113+$A$11,0,1,1) -> 2007-11-05 | C113: 2007-11-09 | D113: =OFFSET(InputPriceData!G$10,CalculationsAndCharts!$A113+$A$11,0,1,1) -> 5535300 | E113: =OFFSET(InputPriceData!C$10,CalculationsAndCharts!$A113+$A$11,0,1,1) -> 58.41 | F113: =OFFSET(InputPriceData!D$10,CalculationsAndCharts!$A113+$A$11,0,1,1) -> 59.35 | G113: =OFFSET(InputPriceData!E$10,CalculationsAndCharts!$A113+$A$11,0,1,1) -> 54.9 | H113: =OFFSET(InputPriceData!F$10,CalculationsAndCharts!$A113+$A$11,0,1,1) -> 55.65 | I113: 57.0775 | J113: 61.35557761 | K113: 58.6721638 | L113: 54.88375621 | M113: 47.31115928 | N113: 39.85242559 | O113: 62.57021638 | P113: 55.92968038 | Q113: 47.34365753 | R113: 39.69852937 | S113: 65.45659792 | T113: 59.68383484 | U113: 57.125 | V113: 54.92592787 | W113: 47.43954578 | X113: 39.99860652 | Y113: 62.45775277 | Z113: 56.01162905 | AA113: 47.49391798 | AB113: 39.85005945 | AC113: 65.40319266 | AD113: 59.51231289 | AE113: 1 | AF113: 0 | AG113: 1 | AH113: 1 | AI113: 0 | AJ113: 1 | AK113: 1 | AL113: 1 | AM113: 0 | AN113: 1 | AO113: 1 | AP113: 1 | AQ113: 0 | AR113: 0 | AS113: 0 | AT113: 1 | AU113: 1 | AV113: 54.47339228 | AW113: 0 | AX113: 1 | AY113: 100
A114: 82 | B114: =OFFSET(InputPriceData!B$10,CalculationsAndCharts!$A114+$A$11,0,1,1) -> 2007-10-29 | C114: 2007-11-02 | D114: =OFFSET(InputPriceData!G$10,CalculationsAndCharts!$A114+$A$11,0,1,1) -> 4037300 | E114: =OFFSET(InputPriceData!C$10,CalculationsAndCharts!$A114+$A$11,0,1,1) -> 62.94 | F114: =OFFSET(InputPriceData!D$10,CalculationsAndCharts!$A114+$A$11,0,1,1) -> 64.17 | G114: =OFFSET(InputPriceData!E$10,CalculationsAndCharts!$A114+$A$11,0,1,1) -> 58.7 | H114: =OFFSET(InputPriceData!F$10,CalculationsAndCharts!$A114+$A$11,0,1,1) -> 59.58 | I114: 61.3475 | J114: 61.36365521 | K114: 61.3952888 | L114: 54.74344482 | M114: 47.03069272 | N114: 39.57617619 | O114: 62.71443247 | P114: 55.6837346 | Q114: 47.02565668 | R114: 39.41537647 | S114: 65.38961023 | T114: 60.03925471 | U114: 61.435 | V114: 54.84448075 | W114: 47.16227237 | X114: 39.72301618 | Y114: 62.76964132 | Z114: 55.77288373 | AA114: 47.1784472 | AB114: 39.56695358 | AC114: 65.35026316 | AD114: 60.18901947 | AE114: 1 | AF114: 1 | AG114: 1 | AH114: 1 | AI114: 0 | AJ114: 1 | AK114: 1 | AL114: 0 | AM114: 0 | AN114: 1 | AO114: 1 | AP114: 1 | AQ114: 0 | AR114: 0 | AS114: 0 | AT114: 1 | AU114: 1 | AV114: 54.43350727 | AW114: 0 | AX114: 1 | AY114: 100
A115: 83 | B115: =OFFSET(InputPriceData!B$10,CalculationsAndCharts!$A115+$A$11,0,1,1) -> 2007-10-22 | C115: 2007-10-26 | D115: =OFFSET(InputPriceData!G$10,CalculationsAndCharts!$A115+$A$11,0,1,1) -> 3195700 | E115: =OFFSET(InputPriceData!C$10,CalculationsAndCharts!$A115+$A$11,0,1,1) -> 60.15 | F115: =OFFSET(InputPriceData!D$10,CalculationsAndCharts!$A115+$A$11,0,1,1) -> 62.51 | G115: =OFFSET(InputPriceData!E$10,CalculationsAndCharts!$A115+$A$11,0,1,1) -> 59.62 | H115: =OFFSET(InputPriceData!F$10,CalculationsAndCharts!$A115+$A$11,0,1,1) -> 62.4 | I115: 61.17 | J115: 61.55731043 | K115: 61.21432761 | L115: 54.49708022 | M115: 46.74503524 | N115: 39.30008299 | O115: 62.55621794 | P115: 55.42333838 | Q115: 46.70498713 | R115: 39.13351424 | S115: 65.28856801 | T115: 59.82386788 | U115: 61.065 | V115: 54.60038744 | W115: 46.87774613 | X115: 39.44748817 | Y115: 62.6154121 | Z115: 55.51374456 | AA115: 46.86013474 | AB115: 39.28504641 | AC115: 65.24587587 | AD115: 59.98494833 | AE115: 1 | AF115: 1 | AG115: 1 | AH115: 1 | AI115: 0 | AJ115: 1 | AK115: 1 | AL115: 0 | AM115: 0 | AN115: 1 | AO115: 1 | AP115: 1 | AQ115: 0 | AR115: 0 | AS115: 0 | AT115: 1 | AU115: 1 | AV115: 54.25904989 | AW115: 0 | AX115: 1 | AY115: 100
A116: 84 | B116: =OFFSET(InputPriceData!B$10,CalculationsAndCharts!$A116+$A$11,0,1,1) -> 2007-10-15 | C116: 2007-10-19 | D116: =OFFSET(InputPriceData!G$10,CalculationsAndCharts!$A116+$A$11,0,1,1) -> 3654300 | E116: =OFFSET(InputPriceData!C$10,CalculationsAndCharts!$A116+$A$11,0,1,1) -> 63.46 | F116: =OFFSET(InputPriceData!D$10,CalculationsAndCharts!$A116+$A$11,0,1,1) -> 64 | G116: =OFFSET(InputPriceData!E$10,CalculationsAndCharts!$A116+$A$11,0,1,1) -> 60.96 | H116: =OFFSET(InputPriceData!F$10,CalculationsAndCharts!$A116+$A$11,0,1,1) -> 61.2 | I116: 62.405 | J116: 60.70962085 | K116: 61.95606043 | L116: 54.24829328 | M116: 46.45792246 | N116: 39.02434402 | O116: 62.39545648 | P116: 55.15915766 | Q116: 46.38208523 | R116: 38.85308932 | S116: 65.18430661 | T116: 59.60660635 | U116: 62.48 | V116: 54.36095735 | W116: 46.59172238 | X116: 39.17229343 | Y116: 62.47999833 | Z116: 55.25071983 | AA116: 46.53963067 | AB116: 39.00448758 | AC116: 65.13775507 | AD116: 59.82224159 | AE116: 1 | AF116: 1 | AG116: 1 | AH116: 1 | AI116: 0 | AJ116: 1 | AK116: 0 | AL116: 0 | AM116: 0 | AN116: 0 | AO116: 1 | AP116: 1 | AQ116: 0 | AR116: 0 | AS116: 0 | AT116: 1 | AU116: 1 | AV116: 53.98308548 | AW116: 0 | AX116: 1 | AY116: 100
A117: 85 | B117: =OFFSET(InputPriceData!B$10,CalculationsAndCharts!$A117+$A$11,0,1,1) -> 2007-10-08 | C117: 2007-10-12 | D117: =OFFSET(InputPriceData!G$10,CalculationsAndCharts!$A117+$A$11,0,1,1) -> 3802900 | E117: =OFFSET(InputPriceData!C$10,CalculationsAndCharts!$A117+$A$11,0,1,1) -> 61.08 | F117: =OFFSET(InputPriceData!D$10,CalculationsAndCharts!$A117+$A$11,0,1,1) -> 63.84 | G117: =OFFSET(InputPriceData!E$10,CalculationsAndCharts!$A117+$A$11,0,1,1) -> 61.03 | H117: =OFFSET(InputPriceData!F$10,CalculationsAndCharts!$A117+$A$11,0,1,1) -> 63.66 | I117: 62.4025 | J117: 59.0167417 | K117: 61.06899585 | L117: 53.96282043 | M117: 46.16939021 | N117: 38.7490263 | O117: 62.12931695 | P117: 54.89114659 | Q117: 46.05700847 | R117: 38.57423762 | S117: 65.07665197 | T117: 59.18198192 | U117: 62.435 | V117: 54.06025207 | W117: 46.30397294 | X117: 38.89749976 | Y117: 62.16633715 | Z117: 54.98296878 | AA117: 46.21699774 | AB117: 38.72540821 | AC117: 65.02332133 | AD117: 59.30935297 | AE117: 1 | AF117: 1 | AG117: 1 | AH117: 1 | AI117: 0 | AJ117: 1 | AK117: 0 | AL117: 0 | AM117: 0 | AN117: 0 | AO117: 0 | AP117: 0 | AQ117: 1 | AR117: 0 | AS117: 1 | AT117: 1 | AU117: 1 | AV117: 53.73844431 | AW117: 0 | AX117: 1 | AY117: 100
A118: 86 | B118: =OFFSET(InputPriceData!B$10,CalculationsAndCharts!$A118+$A$11,0,1,1) -> 2007-10-01 | C118: 2007-10-05 | D118: =OFFSET(InputPriceData!G$10,CalculationsAndCharts!$A118+$A$11,0,1,1) -> 3756000 | E118: =OFFSET(InputPriceData!C$10,CalculationsAndCharts!$A118+$A$11,0,1,1) -> 58.52 | F118: =OFFSET(InputPriceData!D$10,CalculationsAndCharts!$A118+$A$11,0,1,1) -> 61.99 | G118: =OFFSET(InputPriceData!E$10,CalculationsAndCharts!$A118+$A$11,0,1,1) -> 58 | H118: =OFFSET(InputPriceData!F$10,CalculationsAndCharts!$A118+$A$11,0,1,1) -> 61.6 | I118: 60.0275 | J118: 58.00598341 | K118: 59.50587085 | L118: 53.69962874 | M118: 45.88074465 | N118: 38.474198 | O118: 61.9308503 | P118: 54.62306621 | Q118: 45.72981817 | R118: 38.29709796 | S118: 64.97684206 | T118: 58.88485853 | U118: 59.995 | V118: 53.75007622 | W118: 46.01670334 | X118: 38.62318594 | Y118: 61.82330457 | Z118: 54.7169181 | AA118: 45.89233214 | AB118: 38.44794193 | AC118: 64.92169979 | AD118: 58.72490935 | AE118: 1 | AF118: 0 | AG118: 1 | AH118: 1 | AI118: 0 | AJ118: 1 | AK118: 0 | AL118: 1 | AM118: 0 | AN118: 1 | AO118: 1 | AP118: 1 | AQ118: 0 | AR118: 0 | AS118: 0 | AT118: 0 | AU118: 0 | AV118: 53.40212039 | AW118: 0 | AX118: 1 | AY118: 50
A119: 87 | B119: =OFFSET(InputPriceData!B$10,CalculationsAndCharts!$A119+$A$11,0,1,1) -> 2007-09-24 | C119: 2007-09-28 | D119: =OFFSET(InputPriceData!G$10,CalculationsAndCharts!$A119+$A$11,0,1,1) -> 2361100 | E119: =OFFSET(InputPriceData!C$10,CalculationsAndCharts!$A119+$A$11,0,1,1) -> 58.75 | F119: =OFFSET(InputPriceData!D$10,CalculationsAndCharts!$A119+$A$11,0,1,1) -> 59.65 | G119: =OFFSET(InputPriceData!E$10,CalculationsAndCharts!$A119+$A$11,0,1,1) -> 56.86 | H119: =OFFSET(InputPriceData!F$10,CalculationsAndCharts!$A119+$A$11,0,1,1) -> 58.79 | I119: 58.5125 | J119: 57.49946682 | K119: 58.1304917 | L119: 53.48458274 | M119: 45.59115635 | N119: 38.19988146 | O119: 61.88016064 | P119: 54.35240754 | Q119: 45.40043862 | R119: 38.02181203 | S119: 64.87771879 | T119: 58.88260249 | U119: 58.255 | V119: 53.51878274 | W119: 45.73028212 | X119: 38.34935197 | Y119: 61.71485383 | Z119: 54.4537186 | AA119: 45.56549562 | AB119: 38.17222377 | AC119: 64.83689269 | AD119: 58.59281496 | AE119: 1 | AF119: 0 | AG119: 1 | AH119: 1 | AI119: 1 | AJ119: 1 | AK119: 1 | AL119: 1 | AM119: 1 | AN119: 1 | AO119: 1 | AP119: 1 | AQ119: 0 | AR119: 0 | AS119: 0 | AT119: 0 | AU119: 0 | AV119: 53.12422617 | AW119: 0 | AX119: 1 | AY119: 50
A120: 88 | B120: =OFFSET(InputPriceData!B$10,CalculationsAndCharts!$A120+$A$11,0,1,1) -> 2007-09-17 | C120: 2007-09-21 | D120: =OFFSET(InputPriceData!G$10,CalculationsAndCharts!$A120+$A$11,0,1,1) -> 3562800 | E120: =OFFSET(InputPriceData!C$10,CalculationsAndCharts!$A120+$A$11,0,1,1) -> 56.35 | F120: =OFFSET(InputPriceData!D$10,CalculationsAndCharts!$A120+$A$11,0,1,1) -> 59.76 | G120: =OFFSET(InputPriceData!E$10,CalculationsAndCharts!$A120+$A$11,0,1,1) -> 56 | H120: =OFFSET(InputPriceData!F$10,CalculationsAndCharts!$A120+$A$11,0,1,1) -> 57.92 | I120: 57.5075 | J120: 57.49143364 | K120: 57.68973341 | L120: 53.31251204 | M120: 45.29880722 | N120: 37.92613054 | O120: 61.96724499 | P120: 54.07360187 | Q120: 45.06888421 | R120: 37.74852956 | S120: 64.76268253 | T120: 59.17180746 | U120: 57.88 | V120: 53.34336729 | W120: 45.44181914 | X120: 38.07598418 | Y120: 61.78062864 | Z120: 54.18478766 | AA120: 45.23630218 | AB120: 37.89839889 | AC120: 64.74385533 | AD120: 58.81740194 | AE120: 1 | AF120: 0 | AG120: 1 | AH120: 1 | AI120: 1 | AJ120: 1 | AK120: 1 | AL120: 1 | AM120: 1 | AN120: 1 | AO120: 1 | AP120: 1 | AQ120: 0 | AR120: 0 | AS120: 0 | AT120: 0 | AU120: 0 | AV120: 52.93216604 | AW120: 0 | AX120: 1 | AY120: 50
A121: 89 | B121: =OFFSET(InputPriceData!B$10,CalculationsAndCharts!$A121+$A$11,0,1,1) -> 2007-09-10 | C121: 2007-09-14 | D121: =OFFSET(InputPriceData!G$10,CalculationsAndCharts!$A121+$A$11,0,1,1) -> 2845900 | E121: =OFFSET(InputPriceData!C$10,CalculationsAndCharts!$A121+$A$11,0,1,1) -> 57.53 | F121: =OFFSET(InputPriceData!D$10,CalculationsAndCharts!$A121+$A$11,0,1,1) -> 58.18 | G121: =OFFSET(InputPriceData!E$10,CalculationsAndCharts!$A121+$A$11,0,1,1) -> 56.21 | H121: =OFFSET(InputPriceData!F$10,CalculationsAndCharts!$A121+$A$11,0,1,1) -> 57.03 | I121: 57.2375 | J121: 57.74536728 | K121: 57.34321682 | L121: 53.15039273 | M121: 45.00200334 | N121: 37.65306844 | O121: 62.09823661 | P121: 53.78124471 | Q121: 44.73537615 | R121: 37.47740532 | S121: 64.61501101 | T121: 59.58146221 | U121: 57.195 | V121: 53.17534386 | W121: 45.14916921 | X121: 37.80317548 | Y121: 61.88169943 | Z121: 53.90346022 | AA121: 44.90487679 | AB121: 37.62662469 | AC121: 64.62237497 | AD121: 59.14102389 | AE121: 1 | AF121: 0 | AG121: 1 | AH121: 1 | AI121: 1 | AJ121: 1 | AK121: 1 | AL121: 1 | AM121: 1 | AN121: 1 | AO121: 1 | AP121: 1 | AQ121: 0 | AR121: 0 | AS121: 0 | AT121: 0 | AU121: 0 | AV121: 52.76308692 | AW121: 0 | AX121: 1 | AY121: 50
A122: 90 | B122: =OFFSET(InputPriceData!B$10,CalculationsAndCharts!$A122+$A$11,0,1,1) -> 2007-09-04 | C122: 2007-09-08 | D122: =OFFSET(InputPriceData!G$10,CalculationsAndCharts!$A122+$A$11,0,1,1) -> 2768500 | E122: =OFFSET(InputPriceData!C$10,CalculationsAndCharts!$A122+$A$11,0,1,1) -> 59.47 | F122: =OFFSET(InputPriceData!D$10,CalculationsAndCharts!$A122+$A$11,0,1,1) -> 59.75 | G122: =OFFSET(InputPriceData!E$10,CalculationsAndCharts!$A122+$A$11,0,1,1) -> 56.96 | H122: =OFFSET(InputPriceData!F$10,CalculationsAndCharts!$A122+$A$11,0,1,1) -> 57.34 | I122: 58.38 | J122: 57.11073455 | K122: 58.05018364 | L122: 52.99510295 | M122: 44.70021114 | N122: 37.38088567 | O122: 62.26556109 | P122: 53.47320798 | Q122: 44.40034398 | R122: 37.20859158 | S122: 64.42718357 | T122: 60.10393861 | U122: 58.355 | V122: 53.0264677 | W122: 44.85190348 | X122: 37.53110164 | Y122: 62.05479431 | Z122: 53.60796988 | AA122: 44.57159593 | AB122: 37.3570598 | AC122: 64.46618166 | AD122: 59.64340696 | AE122: 1 | AF122: 0 | AG122: 1 | AH122: 1 | AI122: 0 | AJ122: 1 | AK122: 1 | AL122: 1 | AM122: 0 | AN122: 1 | AO122: 1 | AP122: 1 | AQ122: 0 | AR122: 0 | AS122: 0 | AT122: 0 | AU122: 0 | AV122: 52.6184458 | AW122: 0 | AX122: 1 | AY122: 50
A123: 91 | B123: =OFFSET(InputPriceData!B$10,CalculationsAndCharts!$A123+$A$11,0,1,1) -> 2007-08-27 | C123: 2007-08-31 | D123: =OFFSET(InputPriceData!G$10,CalculationsAndCharts!$A123+$A$11,0,1,1) -> 2538100 | E123: =OFFSET(InputPriceData!C$10,CalculationsAndCharts!$A123+$A$11,0,1,1) -> 57.9 | F123: =OFFSET(InputPriceData!D$10,CalculationsAndCharts!$A123+$A$11,0,1,1) -> 58.7 | G123: =OFFSET(InputPriceData!E$10,CalculationsAndCharts!$A123+$A$11,0,1,1) -> 55.47 | H123: =OFFSET(InputPriceData!F$10,CalculationsAndCharts!$A123+$A$11,0,1,1) -> 58.45 | I123: 57.63 | J123: 56.5914691 | K123: 57.09786728 | L123: 52.80787773 | M123: 44.39299292 | N123: 37.10979954 | O123: 62.35445397 | P123: 53.14756527 | Q123: 44.06431198 | R123: 36.94223038 | S123: 64.19199024 | T123: 60.5169177 | U123: 57.085 | V123: 52.82911466 | W123: 44.54914184 | X123: 37.25996083 | Y123: 62.09987927 | Z123: 53.29512453 | AA123: 44.23691541 | AB123: 37.08985476 | AC123: 64.26448212 | AD123: 59.93527642 | AE123: 1 | AF123: 0 | AG123: 1 | AH123: 1 | AI123: 1 | AJ123: 1 | AK123: 1 | AL123: 1 | AM123: 1 | AN123: 1 | AO123: 1 | AP123: 1 | AQ123: 0 | AR123: 0 | AS123: 0 | AT123: 0 | AU123: 0 | AV123: 52.45839311 | AW123: 0 | AX123: 1 | AY123: 50
A124: 92 | B124: =OFFSET(InputPriceData!B$10,CalculationsAndCharts!$A124+$A$11,0,1,1) -> 2007-08-20 | C124: 2007-08-24 | D124: =OFFSET(InputPriceData!G$10,CalculationsAndCharts!$A124+$A$11,0,1,1) -> 4406600 | E124: =OFFSET(InputPriceData!C$10,CalculationsAndCharts!$A124+$A$11,0,1,1) -> 55.56 | F124: =OFFSET(InputPriceData!D$10,CalculationsAndCharts!$A124+$A$11,0,1,1) -> 58.44 | G124: =OFFSET(InputPriceData!E$10,CalculationsAndCharts!$A124+$A$11,0,1,1) -> 53.51 | H124: =OFFSET(InputPriceData!F$10,CalculationsAndCharts!$A124+$A$11,0,1,1) -> 58.21 | I124: 56.43 | J124: 56.75293821 | K124: 56.28323455 | L124: 52.64898923 | M124: 44.08133052 | N124: 36.84005163 | O124: 62.54302777 | P124: 52.80656939 | Q124: 43.72789519 | R124: 36.67844958 | S124: 63.91447218 | T124: 61.17158336 | U124: 55.975 | V124: 52.67148927 | W124: 44.24247618 | X124: 36.98999116 | Y124: 62.27703043 | Z124: 52.9690225 | AA124: 43.90142618 | AB124: 36.82514881 | AC124: 64.02793777 | AD124: 60.5261231 | AE124: 1 | AF124: 0 | AG124: 1 | AH124: 1 | AI124: 0 | AJ124: 1 | AK124: 1 | AL124: 1 | AM124: 0 | AN124: 1 | AO124: 1 | AP124: 1 | AQ124: 0 | AR124: 0 | AS124: 0 | AT124: 0 | AU124: 0 | AV124: 52.2552878 | AW124: 0 | AX124: 1 | AY124: 50
A125: 93 | B125: =OFFSET(InputPriceData!B$10,CalculationsAndCharts!$A125+$A$11,0,1,1) -> 2007-08-13 | C125: 2007-08-17 | D125: =OFFSET(InputPriceData!G$10,CalculationsAndCharts!$A125+$A$11,0,1,1) -> 7015300 | E125: =OFFSET(InputPriceData!C$10,CalculationsAndCharts!$A125+$A$11,0,1,1) -> 57.71 | F125: =OFFSET(InputPriceData!D$10,CalculationsAndCharts!$A125+$A$11,0,1,1) -> 58.16 | G125: =OFFSET(InputPriceData!E$10,CalculationsAndCharts!$A125+$A$11,0,1,1) -> 49.42 | H125: =OFFSET(InputPriceData!F$10,CalculationsAndCharts!$A125+$A$11,0,1,1) -> 54.85 | I125: 55.035 | J125: 58.47087641 | K125: 55.34918821 | L125: 52.51438755 | M125: 43.76400983 | N125: 36.57185612 | O125: 62.8229893 | P125: 52.44595982 | Q125: 43.391648 | R125: 36.417359 | S125: 63.58029447 | T125: 62.06568413 | U125: 53.79 | V125: 52.54913702 | W125: 43.93029051 | X125: 36.72138061 | Y125: 62.57792014 | Z125: 52.62428147 | AA125: 43.56558928 | AB125: 36.56306446 | AC125: 63.73914102 | AD125: 61.41669926 | AE125: 0 | AF125: 0 | AG125: 0 | AH125: 0 | AI125: 1 | AJ125: 0 | AK125: 1 | AL125: 1 | AM125: 1 | AN125: 1 | AO125: 1 | AP125: 1 | AQ125: 0 | AR125: 0 | AS125: 0 | AT125: 0 | AU125: 0 | AV125: 52.05343314 | AW125: 0 | AX125: 1 | AY125: 50
A126: 94 | B126: =OFFSET(InputPriceData!B$10,CalculationsAndCharts!$A126+$A$11,0,1,1) -> 2007-08-06 | C126: 2007-08-10 | D126: =OFFSET(InputPriceData!G$10,CalculationsAndCharts!$A126+$A$11,0,1,1) -> 5303600 | E126: =OFFSET(InputPriceData!C$10,CalculationsAndCharts!$A126+$A$11,0,1,1) -> 56.55 | F126: =OFFSET(InputPriceData!D$10,CalculationsAndCharts!$A126+$A$11,0,1,1) -> 60.25 | G126: =OFFSET(InputPriceData!E$10,CalculationsAndCharts!$A126+$A$11,0,1,1) -> 55.25 | H126: =OFFSET(InputPriceData!F$10,CalculationsAndCharts!$A126+$A$11,0,1,1) -> 56.54 | I126: 57.1475 | J126: 59.79425282 | K126: 58.11043821 | L126: 52.40939494 | M126: 43.43992177 | N126: 36.30548006 | O126: 63.21389958 | P126: 52.0616254 | Q126: 43.05630312 | R126: 36.159052 | S126: 63.17501884 | T126: 63.25278031 | U126: 57.75 | V126: 52.50317913 | W126: 43.61107397 | X126: 36.45438394 | Y126: 63.13069943 | Z126: 52.25562818 | AA126: 43.23008216 | AB126: 36.30371169 | AC126: 63.38034975 | AD126: 62.8810491 | AE126: 0 | AF126: 0 | AG126: 0 | AH126: 0 | AI126: 1 | AJ126: 0 | AK126: 1 | AL126: 1 | AM126: 1 | AN126: 1 | AO126: 1 | AP126: 1 | AQ126: 0 | AR126: 1 | AS126: 1 | AT126: 0 | AU126: 0 | AV126: 51.95863427 | AW126: 0 | AX126: 1 | AY126: 50
A127: 95 | B127: =OFFSET(InputPriceData!B$10,CalculationsAndCharts!$A127+$A$11,0,1,1) -> 2007-07-30 | C127: 2007-08-03 | D127: =OFFSET(InputPriceData!G$10,CalculationsAndCharts!$A127+$A$11,0,1,1) -> 4795600 | E127: =OFFSET(InputPriceData!C$10,CalculationsAndCharts!$A127+$A$11,0,1,1) -> 58.2 | F127: =OFFSET(InputPriceData!D$10,CalculationsAndCharts!$A127+$A$11,0,1,1) -> 60.73 | G127: =OFFSET(InputPriceData!E$10,CalculationsAndCharts!$A127+$A$11,0,1,1) -> 56.08 | H127: =OFFSET(InputPriceData!F$10,CalculationsAndCharts!$A127+$A$11,0,1,1) -> 56.7 | I127: 57.9275 | J127: 61.66100565 | K127: 59.33237782 | L127: 52.19824519 | M127: 43.10771906 | N127: 36.04124147 | O127: 63.31281987 | P127: 51.6485782 | Q127: 42.72277266 | R127: 35.90359826 | S127: 62.68101488 | T127: 63.94462486 | U127: 58.405 | V127: 52.30885244 | W127: 43.28173675 | X127: 36.18932135 | Y127: 63.27066842 | Z127: 51.85284777 | AA127: 42.89580268 | AB127: 36.04717945 | AC127: 62.91831471 | AD127: 63.62302213 | AE127: 0 | AF127: 0 | AG127: 0 | AH127: 0 | AI127: 1 | AJ127: 1 | AK127: 1 | AL127: 1 | AM127: 1 | AN127: 1 | AO127: 1 | AP127: 1 | AQ127: 0 | AR127: 0 | AS127: 0 | AT127: 1 | AU127: 1 | AV127: 51.80333374 | AW127: 0 | AX127: 1 | AY127: 100
A128: 96 | B128: =OFFSET(InputPriceData!B$10,CalculationsAndCharts!$A128+$A$11,0,1,1) -> 2007-07-23 | C128: 2007-07-27 | D128: =OFFSET(InputPriceData!G$10,CalculationsAndCharts!$A128+$A$11,0,1,1) -> 4962800 | E128: =OFFSET(InputPriceData!C$10,CalculationsAndCharts!$A128+$A$11,0,1,1) -> 63.06 | F128: =OFFSET(InputPriceData!D$10,CalculationsAndCharts!$A128+$A$11,0,1,1) -> 63.15 | G128: =OFFSET(InputPriceData!E$10,CalculationsAndCharts!$A128+$A$11,0,1,1) -> 56.21 | H128: =OFFSET(InputPriceData!F$10,CalculationsAndCharts!$A128+$A$11,0,1,1) -> 57.5 | I128: 59.98 | J128: 63.3420113 | K128: 60.71850565 | L128: 51.93401805 | M128: 42.7710329 | N128: 35.77952008 | O128: 63.26847553 | P128: 51.21656925 | Q128: 42.39218727 | R128: 35.65103624 | S128: 62.12418219 | T128: 64.41276888 | U128: 59.68 | V128: 52.08306919 | W128: 42.94739913 | X128: 35.9266393 | Y128: 63.33364949 | Z128: 51.42996552 | AA128: 42.56406027 | AB128: 35.79352674 | AC128: 62.39124249 | AD128: 64.2760565 | AE128: 1 | AF128: 0 | AG128: 1 | AH128: 1 | AI128: 0 | AJ128: 1 | AK128: 1 | AL128: 1 | AM128: 0 | AN128: 1 | AO128: 1 | AP128: 1 | AQ128: 0 | AR128: 0 | AS128: 0 | AT128: 1 | AU128: 1 | AV128: 51.63734505 | AW128: 0 | AX128: 1 | AY128: 100
A129: 97 | B129: =OFFSET(InputPriceData!B$10,CalculationsAndCharts!$A129+$A$11,0,1,1) -> 2007-07-16 | C129: 2007-07-20 | D129: =OFFSET(InputPriceData!G$10,CalculationsAndCharts!$A129+$A$11,0,1,1) -> 2928800 | E129: =OFFSET(InputPriceData!C$10,CalculationsAndCharts!$A129+$A$11,0,1,1) -> 64.14 | F129: =OFFSET(InputPriceData!D$10,CalculationsAndCharts!$A129+$A$11,0,1,1) -> 64.48 | G129: =OFFSET(InputPriceData!E$10,CalculationsAndCharts!$A129+$A$11,0,1,1) -> 62 | H129: =OFFSET(InputPriceData!F$10,CalculationsAndCharts!$A129+$A$11,0,1,1) -> 62.59 | I129: 63.3025 | J129: 63.3815226 | K129: 63.29100565 | L129: 51.60866666 | M129: 42.43166308 | N129: 35.52057516 | O129: 63.0515859 | P129: 50.77020235 | Q129: 42.06535831 | R129: 35.40136398 | S129: 61.51589611 | T129: 64.58727568 | U129: 63.24 | V129: 51.80170139 | W129: 42.60904098 | X129: 35.66661116 | Y129: 63.24459238 | Z129: 50.98908834 | AA129: 42.23569341 | AB129: 35.54276624 | AC129: 61.80295102 | AD129: 64.68623375 | AE129: 1 | AF129: 1 | AG129: 1 | AH129: 1 | AI129: 0 | AJ129: 1 | AK129: 1 | AL129: 0 | AM129: 0 | AN129: 1 | AO129: 1 | AP129: 1 | AQ129: 0 | AR129: 0 | AS129: 0 | AT129: 1 | AU129: 1 | AV129: 51.43861098 | AW129: 0 | AX129: 1 | AY129: 100
A130: 98 | B130: =OFFSET(InputPriceData!B$10,CalculationsAndCharts!$A130+$A$11,0,1,1) -> 2007-07-09 | C130: 2007-07-13 | D130: =OFFSET(InputPriceData!G$10,CalculationsAndCharts!$A130+$A$11,0,1,1) -> 2742100 | E130: =OFFSET(InputPriceData!C$10,CalculationsAndCharts!$A130+$A$11,0,1,1) -> 64.8 | F130: =OFFSET(InputPriceData!D$10,CalculationsAndCharts!$A130+$A$11,0,1,1) -> 65.15 | G130: =OFFSET(InputPriceData!E$10,CalculationsAndCharts!$A130+$A$11,0,1,1) -> 62.02 | H130: =OFFSET(InputPriceData!F$10,CalculationsAndCharts!$A130+$A$11,0,1,1) -> 64.1 | I130: 64.0175 | J130: 62.7455452 | K130: 63.4832613 | L130: 51.17598744 | M130: 42.09177406 | N130: 35.26460894 | O130: 62.51724908 | P130: 50.3153363 | Q130: 41.74295668 | R130: 35.15454938 | S130: 60.87168823 | T130: 64.16280993 | U130: 63.585 | V130: 51.3780607 | W130: 42.26857207 | X130: 35.40948412 | Y130: 62.73794999 | Z130: 50.53518078 | AA130: 41.9114936 | AB130: 35.29488004 | AC130: 61.16594159 | AD130: 64.3099584 | AE130: 1 | AF130: 1 | AG130: 1 | AH130: 1 | AI130: 1 | AJ130: 1 | AK130: 1 | AL130: 0 | AM130: 1 | AN130: 1 | AO130: 1 | AP130: 1 | AQ130: 0 | AR130: 0 | AS130: 0 | AT130: 1 | AU130: 1 | AV130: 51.06059779 | AW130: 0 | AX130: 1 | AY130: 100
A131: 99 | B131: =OFFSET(InputPriceData!B$10,CalculationsAndCharts!$A131+$A$11,0,1,1) -> 2007-07-02 | C131: 2007-07-06 | D131: =OFFSET(InputPriceData!G$10,CalculationsAndCharts!$A131+$A$11,0,1,1) -> 2207700 | E131: =OFFSET(InputPriceData!C$10,CalculationsAndCharts!$A131+$A$11,0,1,1) -> 61.66 | F131: =OFFSET(InputPriceData!D$10,CalculationsAndCharts!$A131+$A$11,0,1,1) -> 64.82 | G131: =OFFSET(InputPriceData!E$10,CalculationsAndCharts!$A131+$A$11,0,1,1) -> 61.66 | H131: =OFFSET(InputPriceData!F$10,CalculationsAndCharts!$A131+$A$11,0,1,1) -> 64.78 | I131: 63.23 | J131: 62.26109039 | K131: 62.9927726 | L131: 50.72016248 | M131: 41.75532171 | N131: 35.01175098 | O131: 61.90627328 | P131: 49.8634136 | Q131: 41.42546114 | R131: 34.91053429 | S131: 60.22439168 | T131: 63.58815488 | U131: 63.24 | V131: 50.92595183 | W131: 41.93118361 | X131: 35.15544383 | Y131: 62.13974851 | Z131: 50.08322636 | AA131: 41.59209778 | AB131: 35.04982028 | AC131: 60.52320605 | AD131: 63.75629098 | AE131: 1 | AF131: 1 | AG131: 1 | AH131: 1 | AI131: 0 | AJ131: 1 | AK131: 1 | AL131: 0 | AM131: 0 | AN131: 1 | AO131: 1 | AP131: 1 | AQ131: 0 | AR131: 0 | AS131: 0 | AT131: 1 | AU131: 1 | AV131: 50.61858416 | AW131: 0 | AX131: 1 | AY131: 100
A132: 100 | B132: =OFFSET(InputPriceData!B$10,CalculationsAndCharts!$A132+$A$11,0,1,1) -> 2007-06-25 | C132: 2007-06-29 | D132: =OFFSET(InputPriceData!G$10,CalculationsAndCharts!$A132+$A$11,0,1,1) -> 3735900 | E132: =OFFSET(InputPriceData!C$10,CalculationsAndCharts!$A132+$A$11,0,1,1) -> 62.65 | F132: =OFFSET(InputPriceData!D$10,CalculationsAndCharts!$A132+$A$11,0,1,1) -> 62.84 | G132: =OFFSET(InputPriceData!E$10,CalculationsAndCharts!$A132+$A$11,0,1,1) -> 59.27 | H132: =OFFSET(InputPriceData!F$10,CalculationsAndCharts!$A132+$A$11,0,1,1) -> 61.86 | I132: 61.655 | J132: 62.86718079 | K132: 61.66484039 | L132: 50.26562137 | M132: 41.42329057 | N132: 34.7619891 | O132: 61.28898147 | P132: 49.41738176 | Q132: 41.11294438 | R132: 34.66924071 | S132: 59.58255285 | T132: 62.9954101 | U132: 61.055 | V132: 50.46987597 | W132: 41.59804404 | X132: 34.90449051 | Y132: 61.51998631 | Z132: 49.63668851 | AA132: 41.27761153 | AB132: 34.80751371 | AC132: 59.88474463 | AD132: 63.15522798 | AE132: 1 | AF132: 1 | AG132: 1 | AH132: 1 | AI132: 1 | AJ132: 1 | AK132: 1 | AL132: 0 | AM132: 1 | AN132: 1 | AO132: 1 | AP132: 1 | AQ132: 0 | AR132: 0 | AS132: 0 | AT132: 1 | AU132: 1 | AV132: 50.13853617 | AW132: 0 | AX132: 1 | AY132: 100
A133: 101 | B133: =OFFSET(InputPriceData!B$10,CalculationsAndCharts!$A133+$A$11,0,1,1) -> 2007-06-18 | C133: 2007-06-22 | D133: =OFFSET(InputPriceData!G$10,CalculationsAndCharts!$A133+$A$11,0,1,1) -> 3282900 | E133: =OFFSET(InputPriceData!C$10,CalculationsAndCharts!$A133+$A$11,0,1,1) -> 64.51 | F133: =OFFSET(InputPriceData!D$10,CalculationsAndCharts!$A133+$A$11,0,1,1) -> 64.6 | G133: =OFFSET(InputPriceData!E$10,CalculationsAndCharts!$A133+$A$11,0,1,1) -> 61.59 | H133: =OFFSET(InputPriceData!F$10,CalculationsAndCharts!$A133+$A$11,0,1,1) -> 62.98 | I133: 63.42 | J133: 62.31436157 | K133: 62.98109039 | L133: 49.84342807 | M133: 41.09579684 | N133: 34.51527423 | O133: 60.75816791 | P133: 48.97769288 | Q133: 40.80537262 | R133: 34.43058501 | S133: 58.94754579 | T133: 62.56879003 | U133: 63.095 | V133: 50.07783434 | W133: 41.26945767 | X133: 34.65658112 | Y133: 61.08171113 | Z133: 49.19656637 | AA133: 40.96801609 | AB133: 34.56788046 | AC133: 59.25353129 | AD133: 62.90989097 | AE133: 1 | AF133: 1 | AG133: 1 | AH133: 1 | AI133: 0 | AJ133: 1 | AK133: 0 | AL133: 0 | AM133: 0 | AN133: 0 | AO133: 1 | AP133: 1 | AQ133: 0 | AR133: 0 | AS133: 0 | AT133: 1 | AU133: 1 | AV133: 49.74119841 | AW133: 0 | AX133: 1 | AY133: 100
A134: 102 | B134: =OFFSET(InputPriceData!B$10,CalculationsAndCharts!$A134+$A$11,0,1,1) -> 2007-06-11 | C134: 2007-06-15 | D134: =OFFSET(InputPriceData!G$10,CalculationsAndCharts!$A134+$A$11,0,1,1) -> 2973200 | E134: =OFFSET(InputPriceData!C$10,CalculationsAndCharts!$A134+$A$11,0,1,1) -> 61.87 | F134: =OFFSET(InputPriceData!D$10,CalculationsAndCharts!$A134+$A$11,0,1,1) -> 64.64 | G134: =OFFSET(InputPriceData!E$10,CalculationsAndCharts!$A134+$A$11,0,1,1) -> 61.36 | H134: =OFFSET(InputPriceData!F$10,CalculationsAndCharts!$A134+$A$11,0,1,1) -> 64.2 | I134: 63.0175 | J134: 61.61122314 | K134: 62.65718079 | L134: 49.35684798 | M134: 40.7718105 | N134: 34.27155117 | O134: 60.02666362 | P134: 48.54137899 | Q134: 40.5026941 | R134: 34.19448177 | S134: 58.31053646 | T134: 61.74279078 | U134: 63 | V134: 49.5957171 | W134: 40.9432215 | X134: 34.41165976 | Y134: 60.36914655 | Z134: 48.75637582 | AA134: 40.66325497 | AB134: 34.3308384 | AC134: 58.61020095 | AD134: 62.12809215 | AE134: 1 | AF134: 1 | AG134: 1 | AH134: 1 | AI134: 0 | AJ134: 1 | AK134: 0 | AL134: 0 | AM134: 0 | AN134: 0 | AO134: 0 | AP134: 0 | AQ134: 1 | AR134: 0 | AS134: 1 | AT134: 1 | AU134: 1 | AV134: 49.29242547 | AW134: 0 | AX134: 1 | AY134: 100
A135: 103 | B135: =OFFSET(InputPriceData!B$10,CalculationsAndCharts!$A135+$A$11,0,1,1) -> 2007-06-04 | C135: 2007-06-08 | D135: =OFFSET(InputPriceData!G$10,CalculationsAndCharts!$A135+$A$11,0,1,1) -> 4558200 | E135: =OFFSET(InputPriceData!C$10,CalculationsAndCharts!$A135+$A$11,0,1,1) -> 63.26 | F135: =OFFSET(InputPriceData!D$10,CalculationsAndCharts!$A135+$A$11,0,1,1) -> 64.16 | G135: =OFFSET(InputPriceData!E$10,CalculationsAndCharts!$A135+$A$11,0,1,1) -> 59.6 | H135: =OFFSET(InputPriceData!F$10,CalculationsAndCharts!$A135+$A$11,0,1,1) -> 61.89 | I135: 62.2275 | J135: 60.99494629 | K135: 61.74561157 | L135: 48.86424306 | M135: 40.45384615 | N135: 34.03080082 | O135: 59.26199157 | P135: 48.11599808 | Q135: 40.20496503 | R135: 33.96084428 | S135: 57.69394344 | T135: 60.8300397 | U135: 61.88 | V135: 49.09926218 | W135: 40.6227587 | X135: 34.16975007 | Y135: 59.59926049 | Z135: 48.3262732 | AA135: 40.36350975 | AB135: 34.09630445 | AC135: 57.9845948 | AD135: 61.21392619 | AE135: 1 | AF135: 1 | AG135: 1 | AH135: 1 | AI135: 1 | AJ135: 1 | AK135: 0 | AL135: 0 | AM135: 1 | AN135: 0 | AO135: 1 | AP135: 1 | AQ135: 0 | AR135: 0 | AS135: 0 | AT135: 1 | AU135: 1 | AV135: 48.78708396 | AW135: 0 | AX135: 1 | AY135: 100
A136: 104 | B136: =OFFSET(InputPriceData!B$10,CalculationsAndCharts!$A136+$A$11,0,1,1) -> 2007-05-29 | C136: 2007-06-02 | D136: =OFFSET(InputPriceData!G$10,CalculationsAndCharts!$A136+$A$11,0,1,1) -> 3967300 | E136: =OFFSET(InputPriceData!C$10,CalculationsAndCharts!$A136+$A$11,0,1,1) -> 61.65 | F136: =OFFSET(InputPriceData!D$10,CalculationsAndCharts!$A136+$A$11,0,1,1) -> 64.17 | G136: =OFFSET(InputPriceData!E$10,CalculationsAndCharts!$A136+$A$11,0,1,1) -> 59.14 | H136: =OFFSET(InputPriceData!F$10,CalculationsAndCharts!$A136+$A$11,0,1,1) -> 64.12 | I136: 62.27 | J136: 59.71989257 | K136: 61.32497314 | L136: 48.38715534 | M136: 40.14234997 | N136: 33.79291026 | O136: 58.52732638 | P136: 47.70318351 | Q136: 39.9119638 | R136: 33.72958054 | S136: 57.10323966 | T136: 59.9514131 | U136: 61.655 | V136: 48.62590152 | W136: 40.30881413 | X136: 33.93074975 | Y136: 58.88201191 | Z136: 47.90875515 | AA136: 40.06859258 | AB136: 33.86418573 | AC136: 57.38467343 | AD136: 60.37935039 | AE136: 1 | AF136: 1 | AG136: 1 | AH136: 1 | AI136: 1 | AJ136: 1 | AK136: 0 | AL136: 0 | AM136: 1 | AN136: 0 | AO136: 0 | AP136: 0 | AQ136: 0 | AR136: 0 | AS136: 0 | AT136: 1 | AU136: 1 | AV136: 48.34291732 | AW136: 0 | AX136: 1 | AY136: 100
A137: 105 | B137: =OFFSET(InputPriceData!B$10,CalculationsAndCharts!$A137+$A$11,0,1,1) -> 2007-05-21 | C137: 2007-05-25 | D137: =OFFSET(InputPriceData!G$10,CalculationsAndCharts!$A137+$A$11,0,1,1) -> 3874000 | E137: =OFFSET(InputPriceData!C$10,CalculationsAndCharts!$A137+$A$11,0,1,1) -> 60.76 | F137: =OFFSET(InputPriceData!D$10,CalculationsAndCharts!$A137+$A$11,0,1,1) -> 62.36 | G137: =OFFSET(InputPriceData!E$10,CalculationsAndCharts!$A137+$A$11,0,1,1) -> 59.6 | H137: =OFFSET(InputPriceData!F$10,CalculationsAndCharts!$A137+$A$11,0,1,1) -> 60.64 | I137: 60.84 | J137: 58.59978514 | K137: 60.09989257 | L137: 47.9079769 | M137: 39.8369868 | N137: 33.55774582 | O137: 57.77071612 | P137: 47.30228933 | Q137: 39.62340011 | R137: 33.50060339 | S137: 56.53727104 | T137: 59.00416121 | U137: 60.98 | V137: 48.14334231 | W137: 40.00077385 | X137: 33.69452514 | Y137: 58.12223052 | Z137: 47.50233823 | AA137: 39.77821619 | AB137: 33.63439289 | AC137: 56.80675901 | AD137: 59.43770202 | AE137: 1 | AF137: 1 | AG137: 1 | AH137: 1 | AI137: 1 | AJ137: 1 | AK137: 0 | AL137: 0 | AM137: 1 | AN137: 0 | AO137: 0 | AP137: 0 | AQ137: 0 | AR137: 0 | AS137: 0 | AT137: 1 | AU137: 1 | AV137: 47.80810096 | AW137: 0 | AX137: 1 | AY137: 100
A138: 106 | B138: =OFFSET(InputPriceData!B$10,CalculationsAndCharts!$A138+$A$11,0,1,1) -> 2007-05-14 | C138: 2007-05-18 | D138: =OFFSET(InputPriceData!G$10,CalculationsAndCharts!$A138+$A$11,0,1,1) -> 3714600 | E138: =OFFSET(InputPriceData!C$10,CalculationsAndCharts!$A138+$A$11,0,1,1) -> 58.81 | F138: =OFFSET(InputPriceData!D$10,CalculationsAndCharts!$A138+$A$11,0,1,1) -> 60.91 | G138: =OFFSET(InputPriceData!E$10,CalculationsAndCharts!$A138+$A$11,0,1,1) -> 58.05 | H138: =OFFSET(InputPriceData!F$10,CalculationsAndCharts!$A138+$A$11,0,1,1) -> 60.59 | I138: 59.59 | J138: 57.60957028 | K138: 58.92978514 | L138: 47.45642447 | M138: 39.53806124 | N138: 33.32518134 | O138: 57.08027102 | P138: 46.91456982 | Q138: 39.3389968 | R138: 33.27383314 | S138: 56.00055217 | T138: 58.15998988 | U138: 59.48 | V138: 47.66791055 | W138: 39.69919724 | X138: 33.46096037 | Y138: 57.36710028 | Z138: 47.10900889 | AA138: 39.4921376 | AB138: 33.40684388 | AC138: 56.25745775 | AD138: 58.47674281 | AE138: 1 | AF138: 1 | AG138: 1 | AH138: 1 | AI138: 0 | AJ138: 1 | AK138: 0 | AL138: 0 | AM138: 0 | AN138: 0 | AO138: 0 | AP138: 0 | AQ138: 0 | AR138: 0 | AS138: 0 | AT138: 1 | AU138: 1 | AV138: 47.37312133 | AW138: 0 | AX138: 1 | AY138: 100
A139: 107 | B139: =OFFSET(InputPriceData!B$10,CalculationsAndCharts!$A139+$A$11,0,1,1) -> 2007-05-07 | C139: 2007-05-11 | D139: =OFFSET(InputPriceData!G$10,CalculationsAndCharts!$A139+$A$11,0,1,1) -> 3148800 | E139: =OFFSET(InputPriceData!C$10,CalculationsAndCharts!$A139+$A$11,0,1,1) -> 58.47 | F139: =OFFSET(InputPriceData!D$10,CalculationsAndCharts!$A139+$A$11,0,1,1) -> 59.27 | G139: =OFFSET(InputPriceData!E$10,CalculationsAndCharts!$A139+$A$11,0,1,1) -> 57.23 | H139: =OFFSET(InputPriceData!F$10,CalculationsAndCharts!$A139+$A$11,0,1,1) -> 59.15 | I139: 58.53 | J139: 56.68914057 | K139: 57.79457028 | L139: 47.03148519 | M139: 39.24478853 | N139: 33.09507468 | O139: 56.45516464 | P139: 46.53806236 | Q139: 39.05842003 | R139: 33.04919745 | S139: 55.48812446 | T139: 57.42220483 | U139: 58.25 | V139: 47.23042575 | W139: 39.40405971 | X139: 33.22991456 | Y139: 56.70901267 | Z139: 46.72907958 | AA139: 39.21003126 | AB139: 33.18146263 | AC139: 55.7386076 | AD139: 57.67941775 | AE139: 1 | AF139: 1 | AG139: 1 | AH139: 1 | AI139: 1 | AJ139: 1 | AK139: 0 | AL139: 0 | AM139: 1 | AN139: 0 | AO139: 0 | AP139: 0 | AQ139: 0 | AR139: 0 | AS139: 0 | AT139: 1 | AU139: 1 | AV139: 46.92509154 | AW139: 0 | AX139: 1 | AY139: 100
A140: 108 | B140: =OFFSET(InputPriceData!B$10,CalculationsAndCharts!$A140+$A$11,0,1,1) -> 2007-04-30 | C140: 2007-05-04 | D140: =OFFSET(InputPriceData!G$10,CalculationsAndCharts!$A140+$A$11,0,1,1) -> 2790800 | E140: =OFFSET(InputPriceData!C$10,CalculationsAndCharts!$A140+$A$11,0,1,1) -> 56.51 | F140: =OFFSET(InputPriceData!D$10,CalculationsAndCharts!$A140+$A$11,0,1,1) -> 58.42 | G140: =OFFSET(InputPriceData!E$10,CalculationsAndCharts!$A140+$A$11,0,1,1) -> 54.92 | H140: =OFFSET(InputPriceData!F$10,CalculationsAndCharts!$A140+$A$11,0,1,1) -> 58.27 | I140: 57.03 | J140: 56.34828114 | K140: 56.67957028 | L140: 46.63285241 | M140: 38.95639236 | N140: 32.8673075 | O140: 55.89668764 | P140: 46.17076228 | Q140: 38.78139624 | R140: 32.82663365 | S140: 54.99473178 | T140: 56.7986435 | U140: 56.67 | V140: 46.82229337 | W140: 39.11419431 | X140: 33.00124252 | Y140: 56.12553972 | Z140: 46.35945243 | AA140: 38.93154798 | AB140: 32.95818231 | AC140: 55.24189564 | AD140: 57.0091838 | AE140: 1 | AF140: 1 | AG140: 1 | AH140: 1 | AI140: 0 | AJ140: 1 | AK140: 0 | AL140: 0 | AM140: 0 | AN140: 0 | AO140: 0 | AP140: 0 | AQ140: 1 | AR140: 0 | AS140: 1 | AT140: 1 | AU140: 1 | AV140: 46.51068787 | AW140: 0 | AX140: 1 | AY140: 100
A141: 109 | B141: =OFFSET(InputPriceData!B$10,CalculationsAndCharts!$A141+$A$11,0,1,1) -> 2007-04-23 | C141: 2007-04-27 | D141: =OFFSET(InputPriceData!G$10,CalculationsAndCharts!$A141+$A$11,0,1,1) -> 3133900 | E141: =OFFSET(InputPriceData!C$10,CalculationsAndCharts!$A141+$A$11,0,1,1) -> 57.05 | F141: =OFFSET(InputPriceData!D$10,CalculationsAndCharts!$A141+$A$11,0,1,1) -> 57.7 | G141: =OFFSET(InputPriceData!E$10,CalculationsAndCharts!$A141+$A$11,0,1,1) -> 55.11 | H141: =OFFSET(InputPriceData!F$10,CalculationsAndCharts!$A141+$A$11,0,1,1) -> 56.45 | I141: 56.5775 | J141: 56.11906227 | K141: 56.37664057 | L141: 46.26075174 | M141: 38.67207902 | N141: 32.64178584 | O141: 55.40780399 | P141: 45.81054282 | Q141: 38.50771601 | R141: 32.60608688 | S141: 54.51456731 | T141: 56.30104068 | U141: 56.405 | V141: 46.4575635 | W141: 38.82870916 | X141: 32.7748369 | Y141: 55.66139992 | Z141: 45.99774549 | AA141: 38.65644041 | AB141: 32.73694654 | AC141: 54.76086178 | AD141: 56.56193807 | AE141: 1 | AF141: 1 | AG141: 1 | AH141: 1 | AI141: 1 | AJ141: 1 | AK141: 0 | AL141: 0 | AM141: 1 | AN141: 0 | AO141: 1 | AP141: 1 | AQ141: 0 | AR141: 0 | AS141: 0 | AT141: 1 | AU141: 1 | AV141: 46.11206712 | AW141: 0 | AX141: 1 | AY141: 100
A142: 110 | B142: =OFFSET(InputPriceData!B$10,CalculationsAndCharts!$A142+$A$11,0,1,1) -> 2007-04-16 | C142: 2007-04-20 | D142: =OFFSET(InputPriceData!G$10,CalculationsAndCharts!$A142+$A$11,0,1,1) -> 2290500 | E142: =OFFSET(InputPriceData!C$10,CalculationsAndCharts!$A142+$A$11,0,1,1) -> 57.48 | F142: =OFFSET(InputPriceData!D$10,CalculationsAndCharts!$A142+$A$11,0,1,1) -> 57.65 | G142: =OFFSET(InputPriceData!E$10,CalculationsAndCharts!$A142+$A$11,0,1,1) -> 55.15 | H142: =OFFSET(InputPriceData!F$10,CalculationsAndCharts!$A142+$A$11,0,1,1) -> 57.11 | I142: 56.8475 | J142: 55.39062455 | K142: 56.25953114 | L142: 45.88608919 | M142: 38.39101707 | N142: 32.41844164 | O142: 54.90365801 | P142: 45.4550887 | Q142: 38.23724095 | R142: 32.38750803 | S142: 54.0410513 | T142: 55.76626472 | U142: 56.4 | V142: 46.08913992 | W142: 38.54615899 | X142: 32.55061941 | Y142: 55.17956219 | Z142: 45.63983236 | AA142: 38.38454022 | AB142: 32.51770603 | AC142: 54.28358245 | AD142: 56.07554194 | AE142: 1 | AF142: 1 | AG142: 1 | AH142: 1 | AI142: 1 | AJ142: 1 | AK142: 0 | AL142: 0 | AM142: 1 | AN142: 0 | AO142: 0 | AP142: 0 | AQ142: 0 | AR142: 0 | AS142: 0 | AT142: 1 | AU142: 1 | AV142: 45.76162871 | AW142: 0 | AX142: 1 | AY142: 100
A143: 111 | B143: =OFFSET(InputPriceData!B$10,CalculationsAndCharts!$A143+$A$11,0,1,1) -> 2007-04-09 | C143: 2007-04-13 | D143: =OFFSET(InputPriceData!G$10,CalculationsAndCharts!$A143+$A$11,0,1,1) -> 1746500 | E143: =OFFSET(InputPriceData!C$10,CalculationsAndCharts!$A143+$A$11,0,1,1) -> 56.79 | F143: =OFFSET(InputPriceData!D$10,CalculationsAndCharts!$A143+$A$11,0,1,1) -> 57.35 | G143: =OFFSET(InputPriceData!E$10,CalculationsAndCharts!$A143+$A$11,0,1,1) -> 55.32 | H143: =OFFSET(InputPriceData!F$10,CalculationsAndCharts!$A143+$A$11,0,1,1) -> 56.99 | I143: 56.6125 | J143: 54.16874909 | K143: 55.57499955 | L143: 45.50188764 | M143: 38.11342181 | N143: 32.19723515 | O143: 54.36263265 | P143: 45.10514169 | Q143: 37.96991325 | R143: 32.17085125 | S143: 53.57653658 | T143: 55.14872872 | U143: 56.335 | V143: 45.70725622 | W143: 38.26678933 | X143: 32.32856239 | Y143: 54.64996304 | Z143: 45.28650904 | AA143: 38.1158257 | AB143: 32.30041587 | AC143: 53.81246588 | AD143: 55.4874602 | AE143: 1 | AF143: 1 | AG143: 1 | AH143: 1 | AI143: 1 | AJ143: 1 | AK143: 0 | AL143: 0 | AM143: 1 | AN143: 0 | AO143: 0 | AP143: 0 | AQ143: 0 | AR143: 0 | AS143: 0 | AT143: 1 | AU143: 1 | AV143: 45.37693816 | AW143: 0 | AX143: 1 | AY143: 100
A144: 112 | B144: =OFFSET(InputPriceData!B$10,CalculationsAndCharts!$A144+$A$11,0,1,1) -> 2007-04-02 | C144: 2007-04-06 | D144: =OFFSET(InputPriceData!G$10,CalculationsAndCharts!$A144+$A$11,0,1,1) -> 3039000 | E144: =OFFSET(InputPriceData!C$10,CalculationsAndCharts!$A144+$A$11,0,1,1) -> 54.73 | F144: =OFFSET(InputPriceData!D$10,CalculationsAndCharts!$A144+$A$11,0,1,1) -> 56.64 | G144: =OFFSET(InputPriceData!E$10,CalculationsAndCharts!$A144+$A$11,0,1,1) -> 54.36 | H144: =OFFSET(InputPriceData!F$10,CalculationsAndCharts!$A144+$A$11,0,1,1) -> 56.39 | I144: 55.53 | J144: 52.80749818 | K144: 54.44624909 | L144: 45.12880942 | M144: 37.83977493 | N144: 31.97811712 | O144: 53.84522062 | P144: 44.76227166 | Q144: 37.70564553 | R144: 31.95607118 | S144: 53.12594956 | T144: 54.56449167 | U144: 55.5 | V144: 45.31363608 | W144: 37.99121648 | X144: 32.10862806 | Y144: 54.07588683 | Z144: 44.93971444 | AA144: 37.85024484 | AB144: 32.08503032 | AC144: 53.35343915 | AD144: 54.79833452 | AE144: 1 | AF144: 1 | AG144: 1 | AH144: 1 | AI144: 0 | AJ144: 1 | AK144: 0 | AL144: 0 | AM144: 0 | AN144: 0 | AO144: 0 | AP144: 0 | AQ144: 1 | AR144: 0 | AS144: 1 | AT144: 1 | AU144: 1 | AV144: 44.98327505 | AW144: 0 | AX144: 1 | AY144: 100
A145: 113 | B145: =OFFSET(InputPriceData!B$10,CalculationsAndCharts!$A145+$A$11,0,1,1) -> 2007-03-26 | C145: 2007-03-30 | D145: =OFFSET(InputPriceData!G$10,CalculationsAndCharts!$A145+$A$11,0,1,1) -> 2286900 | E145: =OFFSET(InputPriceData!C$10,CalculationsAndCharts!$A145+$A$11,0,1,1) -> 54.34 | F145: =OFFSET(InputPriceData!D$10,CalculationsAndCharts!$A145+$A$11,0,1,1) -> 54.84 | G145: =OFFSET(InputPriceData!E$10,CalculationsAndCharts!$A145+$A$11,0,1,1) -> 52.44 | H145: =OFFSET(InputPriceData!F$10,CalculationsAndCharts!$A145+$A$11,0,1,1) -> 54.03 | I145: 53.9125 | J145: 51.70249637 | K145: 53.03937318 | L145: 44.78371906 | M145: 37.56981068 | N145: 31.76101868 | O145: 53.40274383 | P145: 44.42586614 | Q145: 37.44428901 | R145: 31.74312398 | S145: 52.68785538 | T145: 54.11763227 | U145: 53.64 | V145: 44.93636334 | W145: 37.72001576 | X145: 31.89075441 | Y145: 53.53979715 | Z145: 44.60133769 | AA145: 37.58767189 | AB145: 31.87150386 | AC145: 52.91250126 | AD145: 54.16709304 | AE145: 1 | AF145: 1 | AG145: 1 | AH145: 1 | AI145: 1 | AJ145: 1 | AK145: 1 | AL145: 0 | AM145: 1 | AN145: 1 | AO145: 1 | AP145: 1 | AQ145: 0 | AR145: 0 | AS145: 0 | AT145: 1 | AU145: 1 | AV145: 44.59660641 | AW145: 0 | AX145: 1 | AY145: 100
A146: 114 | B146: =OFFSET(InputPriceData!B$10,CalculationsAndCharts!$A146+$A$11,0,1,1) -> 2007-03-19 | C146: 2007-03-23 | D146: =OFFSET(InputPriceData!G$10,CalculationsAndCharts!$A146+$A$11,0,1,1) -> 2301500 | E146: =OFFSET(InputPriceData!C$10,CalculationsAndCharts!$A146+$A$11,0,1,1) -> 50.75 | F146: =OFFSET(InputPriceData!D$10,CalculationsAndCharts!$A146+$A$11,0,1,1) -> 54.47 | G146: =OFFSET(InputPriceData!E$10,CalculationsAndCharts!$A146+$A$11,0,1,1) -> 50.6 | H146: =OFFSET(InputPriceData!F$10,CalculationsAndCharts!$A146+$A$11,0,1,1) -> 54.05 | I146: 52.4675 | J146: 50.93749273 | K146: 52.11874818 | L146: 44.4779541 | M146: 37.30262889 | N146: 31.54587824 | O146: 53.07185385 | P146: 44.09338919 | Q146: 37.18571208 | R146: 31.53196972 | S146: 52.25500106 | T146: 53.88870665 | U146: 52.535 | V146: 44.61400642 | W146: 37.45274362 | X146: 31.67485584 | Y146: 53.15864424 | Z146: 44.27028364 | AA146: 37.32790649 | AB146: 31.65979393 | AC146: 52.48692538 | AD146: 53.83036311 | AE146: 1 | AF146: 0 | AG146: 1 | AH146: 1 | AI146: 0 | AJ146: 1 | AK146: 1 | AL146: 1 | AM146: 0 | AN146: 1 | AO146: 1 | AP146: 1 | AQ146: 0 | AR146: 0 | AS146: 0 | AT146: 1 | AU146: 1 | AV146: 44.27683035 | AW146: 0 | AX146: 1 | AY146: 100
A147: 115 | B147: =OFFSET(InputPriceData!B$10,CalculationsAndCharts!$A147+$A$11,0,1,1) -> 2007-03-12 | C147: 2007-03-16 | D147: =OFFSET(InputPriceData!G$10,CalculationsAndCharts!$A147+$A$11,0,1,1) -> 3868900 | E147: =OFFSET(InputPriceData!C$10,CalculationsAndCharts!$A147+$A$11,0,1,1) -> 51.8 | F147: =OFFSET(InputPriceData!D$10,CalculationsAndCharts!$A147+$A$11,0,1,1) -> 51.8 | G147: =OFFSET(InputPriceData!E$10,CalculationsAndCharts!$A147+$A$11,0,1,1) -> 49 | H147: =OFFSET(InputPriceData!F$10,CalculationsAndCharts!$A147+$A$11,0,1,1) -> 50.3 | I147: 50.725 | J147: 51.14998546 | K147: 50.66874637 | L147: 44.19496172 | M147: 37.03687611 | N147: 31.33266525 | O147: 52.8069221 | P147: 43.76085346 | Q147: 36.92987218 | R147: 31.32257186 | S147: 51.81551569 | T147: 53.79832852 | U147: 50.4 | V147: 44.32063629 | W147: 37.18751167 | X147: 31.46086 | Y147: 52.86023387 | Z147: 43.94108509 | AA147: 37.07078141 | AB147: 31.44986384 | AC147: 52.0607749 | AD147: 53.65969284 | AE147: 1 | AF147: 0 | AG147: 1 | AH147: 1 | AI147: 0 | AJ147: 1 | AK147: 1 | AL147: 1 | AM147: 0 | AN147: 1 | AO147: 1 | AP147: 1 | AQ147: 0 | AR147: 0 | AS147: 0 | AT147: 1 | AU147: 1 | AV147: 43.94553647 | AW147: 0 | AX147: 1 | AY147: 100
A148: 116 | B148: =OFFSET(InputPriceData!B$10,CalculationsAndCharts!$A148+$A$11,0,1,1) -> 2007-03-05 | C148: 2007-03-09 | D148: =OFFSET(InputPriceData!G$10,CalculationsAndCharts!$A148+$A$11,0,1,1) -> 4352100 | E148: =OFFSET(InputPriceData!C$10,CalculationsAndCharts!$A148+$A$11,0,1,1) -> 47.81 | F148: =OFFSET(InputPriceData!D$10,CalculationsAndCharts!$A148+$A$11,0,1,1) -> 51.75 | G148: =OFFSET(InputPriceData!E$10,CalculationsAndCharts!$A148+$A$11,0,1,1) -> 47.31 | H148: =OFFSET(InputPriceData!F$10,CalculationsAndCharts!$A148+$A$11,0,1,1) -> 51.33 | I148: 49.55 | J148: 52.74997092 | K148: 50.58998546 | L148: 43.95519192 | M148: 36.77176183 | N148: 31.12139818 | O148: 52.67168848 | P148: 43.42581388 | Q148: 36.67687288 | R148: 31.11489407 | S148: 51.36171708 | T148: 53.98165987 | U148: 49.53 | V148: 44.09547467 | W148: 36.92332187 | X148: 31.24876179 | Y148: 52.7652202 | Z148: 43.61074625 | AA148: 36.81632572 | AB148: 31.24168171 | AC148: 51.62494331 | AD148: 53.90549709 | AE148: 1 | AF148: 0 | AG148: 1 | AH148: 1 | AI148: 0 | AJ148: 1 | AK148: 1 | AL148: 1 | AM148: 0 | AN148: 1 | AO148: 1 | AP148: 1 | AQ148: 0 | AR148: 0 | AS148: 0 | AT148: 1 | AU148: 1 | AV148: 43.73013092 | AW148: 0 | AX148: 1 | AY148: 100
A149: 117 | B149: =OFFSET(InputPriceData!B$10,CalculationsAndCharts!$A149+$A$11,0,1,1) -> 2007-02-26 | C149: 2007-03-02 | D149: =OFFSET(InputPriceData!G$10,CalculationsAndCharts!$A149+$A$11,0,1,1) -> 5874000 | E149: =OFFSET(InputPriceData!C$10,CalculationsAndCharts!$A149+$A$11,0,1,1) -> 54.47 | F149: =OFFSET(InputPriceData!D$10,CalculationsAndCharts!$A149+$A$11,0,1,1) -> 54.97 | G149: =OFFSET(InputPriceData!E$10,CalculationsAndCharts!$A149+$A$11,0,1,1) -> 46.7 | H149: =OFFSET(InputPriceData!F$10,CalculationsAndCharts!$A149+$A$11,0,1,1) -> 49.23 | I149: 51.3425 | J149: 54.15744184 | K149: 51.79248546 | L149: 43.70945883 | M149: 36.50570886 | N149: 30.91212546 | O149: 52.52337537 | P149: 43.08337408 | Q149: 36.4269121 | R149: 30.90889485 | S149: 50.8782808 | T149: 54.16846994 | U149: 50.835 | V149: 43.89419596 | W149: 36.65768658 | X149: 31.0385929 | Y149: 52.74812103 | Z149: 43.27169166 | AA149: 36.56468051 | AB149: 31.03521341 | AC149: 51.15624686 | AD149: 54.3399952 | AE149: 1 | AF149: 1 | AG149: 1 | AH149: 1 | AI149: 0 | AJ149: 1 | AK149: 1 | AL149: 0 | AM149: 0 | AN149: 1 | AO149: 1 | AP149: 1 | AQ149: 0 | AR149: 0 | AS149: 0 | AT149: 1 | AU149: 1 | AV149: 43.47250824 | AW149: 0 | AX149: 1 | AY149: 100
A150: 118 | B150: =OFFSET(InputPriceData!B$10,CalculationsAndCharts!$A150+$A$11,0,1,1) -> 2007-02-20 | C150: 2007-02-24 | D150: =OFFSET(InputPriceData!G$10,CalculationsAndCharts!$A150+$A$11,0,1,1) -> 3069100 | E150: =OFFSET(InputPriceData!C$10,CalculationsAndCharts!$A150+$A$11,0,1,1) -> 55.18 | F150: =OFFSET(InputPriceData!D$10,CalculationsAndCharts!$A150+$A$11,0,1,1) -> 55.95 | G150: =OFFSET(InputPriceData!E$10,CalculationsAndCharts!$A150+$A$11,0,1,1) -> 54.07 | H150: =OFFSET(InputPriceData!F$10,CalculationsAndCharts!$A150+$A$11,0,1,1) -> 54.8 | I150: 55 | J150: 53.31488368 | K150: 54.39494184 | L150: 43.41008747 | M150: 36.2389033 | N150: 30.7049557 | O150: 52.2185082 | P150: 42.7337444 | Q150: 36.18037647 | R150: 30.70452384 | S150: 50.36462764 | T150: 54.07238877 | U150: 55.01 | V150: 43.63712914 | W150: 36.38966771 | X150: 30.83047832 | Y150: 52.5728626 | Z150: 42.92071279 | AA150: 36.31627269 | AB150: 30.83041833 | AC150: 50.64373864 | AD150: 54.50198655 | AE150: 1 | AF150: 1 | AG150: 1 | AH150: 1 | AI150: 1 | AJ150: 1 | AK150: 0 | AL150: 0 | AM150: 1 | AN150: 0 | AO150: 1 | AP150: 1 | AQ150: 0 | AR150: 0 | AS150: 0 | AT150: 1 | AU150: 1 | AV150: 43.27733903 | AW150: 0 | AX150: 1 | AY150: 100
A151: 119 | B151: =OFFSET(InputPriceData!B$10,CalculationsAndCharts!$A151+$A$11,0,1,1) -> 2007-02-12 | C151: 2007-02-16 | D151: =OFFSET(InputPriceData!G$10,CalculationsAndCharts!$A151+$A$11,0,1,1) -> 2668300 | E151: =OFFSET(InputPriceData!C$10,CalculationsAndCharts!$A151+$A$11,0,1,1) -> 53.4 | F151: =OFFSET(InputPriceData!D$10,CalculationsAndCharts!$A151+$A$11,0,1,1) -> 55.52 | G151: =OFFSET(InputPriceData!E$10,CalculationsAndCharts!$A151+$A$11,0,1,1) -> 52.31 | H151: =OFFSET(InputPriceData!F$10,CalculationsAndCharts!$A151+$A$11,0,1,1) -> 55 | I151: 54.0575 | J151: 52.57226737 | K151: 53.61494184 | L151: 43.00324101 | M151: 35.97330389 | N151: 30.49999468 | O151: 51.58980605 | P151: 42.38245686 | Q151: 35.93765914 | R151: 30.50171448 | S151: 49.83610763 | T151: 53.34350446 | U151: 53.915 | V151: 43.2159117 | W151: 36.12124322 | X151: 30.62458241 | Y151: 51.90858787 | Z151: 42.56322576 | AA151: 36.0716638 | AB151: 30.62723854 | AC151: 50.10192444 | AD151: 53.7152513 | AE151: 1 | AF151: 1 | AG151: 1 | AH151: 1 | AI151: 1 | AJ151: 1 | AK151: 0 | AL151: 0 | AM151: 1 | AN151: 0 | AO151: 0 | AP151: 0 | AQ151: 0 | AR151: 0 | AS151: 0 | AT151: 1 | AU151: 1 | AV151: 42.88674035 | AW151: 0 | AX151: 1 | AY151: 100
A152: 120 | B152: =OFFSET(InputPriceData!B$10,CalculationsAndCharts!$A152+$A$11,0,1,1) -> 2007-02-05 | C152: 2007-02-09 | D152: =OFFSET(InputPriceData!G$10,CalculationsAndCharts!$A152+$A$11,0,1,1) -> 2290000 | E152: =OFFSET(InputPriceData!C$10,CalculationsAndCharts!$A152+$A$11,0,1,1) -> 53.63 | F152: =OFFSET(InputPriceData!D$10,CalculationsAndCharts!$A152+$A$11,0,1,1) -> 54.63 | G152: =OFFSET(InputPriceData!E$10,CalculationsAndCharts!$A152+$A$11,0,1,1) -> 53.09 | H152: =OFFSET(InputPriceData!F$10,CalculationsAndCharts!$A152+$A$11,0,1,1) -> 53.6 | I152: 53.7375 | J152: 51.40703473 | K152: 52.79539237 | L152: 42.61021506 | M152: 35.71293585 | N152: 30.29727952 | O152: 50.98911715 | P152: 42.04144392 | Q152: 35.69896293 | R152: 30.3003832 | S152: 49.32782619 | T152: 52.65040811 | U152: 53.86 | V152: 42.81964917 | W152: 35.85847772 | X152: 30.42100238 | Y152: 51.30451675 | Z152: 42.21710124 | AA152: 35.83123558 | AB152: 30.42559316 | AC152: 49.58319016 | AD152: 53.02584334 | AE152: 1 | AF152: 1 | AG152: 1 | AH152: 1 | AI152: 1 | AJ152: 1 | AK152: 0 | AL152: 0 | AM152: 1 | AN152: 0 | AO152: 0 | AP152: 0 | AQ152: 0 | AR152: 0 | AS152: 0 | AT152: 1 | AU152: 1 | AV152: 42.47612138 | AW152: 0 | AX152: 1 | AY152: 100
A153: 121 | B153: =OFFSET(InputPriceData!B$10,CalculationsAndCharts!$A153+$A$11,0,1,1) -> 2007-01-29 | C153: 2007-02-02 | D153: =OFFSET(InputPriceData!G$10,CalculationsAndCharts!$A153+$A$11,0,1,1) -> 3487600 | E153: =OFFSET(InputPriceData!C$10,CalculationsAndCharts!$A153+$A$11,0,1,1) -> 51.07 | F153: =OFFSET(InputPriceData!D$10,CalculationsAndCharts!$A153+$A$11,0,1,1) -> 53.69 | G153: =OFFSET(InputPriceData!E$10,CalculationsAndCharts!$A153+$A$11,0,1,1) -> 50.2 | H153: =OFFSET(InputPriceData!F$10,CalculationsAndCharts!$A153+$A$11,0,1,1) -> 53.44 | I153: 52.1 | J153: 50.71406947 | K153: 51.67601737 | L153: 42.23298627 | M153: 35.45748106 | N153: 30.09669966 | O153: 50.42321527 | P153: 41.71004862 | Q153: 35.46405622 | R153: 30.1004358 | S153: 48.83841299 | T153: 52.00801756 | U153: 51.945 | V153: 42.41074729 | W153: 35.60065655 | X153: 30.21961441 | Y153: 50.64988662 | Z153: 41.8805303 | AA153: 35.59472203 | AB153: 30.22538418 | AC153: 49.08280897 | AD153: 52.21696427 | AE153: 1 | AF153: 1 | AG153: 1 | AH153: 1 | AI153: 0 | AJ153: 1 | AK153: 0 | AL153: 0 | AM153: 0 | AN153: 0 | AO153: 0 | AP153: 0 | AQ153: 1 | AR153: 0 | AS153: 1 | AT153: 1 | AU153: 1 | AV153: 42.09904075 | AW153: 0 | AX153: 1 | AY153: 100
A154: 122 | B154: =OFFSET(InputPriceData!B$10,CalculationsAndCharts!$A154+$A$11,0,1,1) -> 2007-01-22 | C154: 2007-01-26 | D154: =OFFSET(InputPriceData!G$10,CalculationsAndCharts!$A154+$A$11,0,1,1) -> 3654900 | E154: =OFFSET(InputPriceData!C$10,CalculationsAndCharts!$A154+$A$11,0,1,1) -> 50.95 | F154: =OFFSET(InputPriceData!D$10,CalculationsAndCharts!$A154+$A$11,0,1,1) -> 52.64 | G154: =OFFSET(InputPriceData!E$10,CalculationsAndCharts!$A154+$A$11,0,1,1) -> 50.05 | H154: =OFFSET(InputPriceData!F$10,CalculationsAndCharts!$A154+$A$11,0,1,1) -> 51.09 | I154: 51.1825 | J154: 50.24563894 | K154: 51.02953473 | L154: 41.88324437 | M154: 35.20653643 | N154: 29.8981522 | O154: 49.92827605 | P154: 41.38733874 | Q154: 35.23272317 | R154: 29.9017832 | S154: 48.3656299 | T154: 51.49092219 | U154: 51.345 | V154: 42.05762682 | W154: 35.34843097 | X154: 30.02031655 | Y154: 50.1479041 | Z154: 41.55573932 | AA154: 35.36191432 | AB154: 30.02651982 | AC154: 48.60799482 | AD154: 51.68781337 | AE154: 1 | AF154: 1 | AG154: 1 | AH154: 1 | AI154: 1 | AJ154: 1 | AK154: 1 | AL154: 0 | AM154: 1 | AN154: 1 | AO154: 1 | AP154: 1 | AQ154: 0 | AR154: 0 | AS154: 0 | AT154: 1 | AU154: 1 | AV154: 41.71460145 | AW154: 0 | AX154: 1 | AY154: 100
A155: 123 | B155: =OFFSET(InputPriceData!B$10,CalculationsAndCharts!$A155+$A$11,0,1,1) -> 2007-01-16 | C155: 2007-01-20 | D155: =OFFSET(InputPriceData!G$10,CalculationsAndCharts!$A155+$A$11,0,1,1) -> 2649000 | E155: =OFFSET(InputPriceData!C$10,CalculationsAndCharts!$A155+$A$11,0,1,1) -> 50.54 | F155: =OFFSET(InputPriceData!D$10,CalculationsAndCharts!$A155+$A$11,0,1,1) -> 51.44 | G155: =OFFSET(InputPriceData!E$10,CalculationsAndCharts!$A155+$A$11,0,1,1) -> 49.19 | H155: =OFFSET(InputPriceData!F$10,CalculationsAndCharts!$A155+$A$11,0,1,1) -> 50.5 | I155: 50.4175 | J155: 50.07377787 | K155: 50.28031947 | L155: 41.54449288 | M155: 34.95925095 | N155: 29.70154538 | O155: 49.45727118 | P155: 41.07100773 | Q155: 35.00477445 | R155: 29.70434097 | S155: 47.90304082 | T155: 51.01150153 | U155: 50.315 | V155: 41.71365003 | W155: 35.09994223 | X155: 29.82297898 | Y155: 49.66410238 | Z155: 41.237511 | AA155: 35.13251339 | AB155: 29.82891261 | AC155: 48.14390542 | AD155: 51.18429934 | AE155: 1 | AF155: 1 | AG155: 1 | AH155: 1 | AI155: 1 | AJ155: 1 | AK155: 1 | AL155: 0 | AM155: 1 | AN155: 1 | AO155: 1 | AP155: 1 | AQ155: 0 | AR155: 0 | AS155: 0 | AT155: 1 | AU155: 1 | AV155: 41.39679133 | AW155: 0 | AX155: 1 | AY155: 100
A156: 124 | B156: =OFFSET(InputPriceData!B$10,CalculationsAndCharts!$A156+$A$11,0,1,1) -> 2007-01-08 | C156: 2007-01-12 | D156: =OFFSET(InputPriceData!G$10,CalculationsAndCharts!$A156+$A$11,0,1,1) -> 3317400 | E156: =OFFSET(InputPriceData!C$10,CalculationsAndCharts!$A156+$A$11,0,1,1) -> 50.15 | F156: =OFFSET(InputPriceData!D$10,CalculationsAndCharts!$A156+$A$11,0,1,1) -> 50.64 | G156: =OFFSET(InputPriceData!E$10,CalculationsAndCharts!$A156+$A$11,0,1,1) -> 47.85 | H156: =OFFSET(InputPriceData!F$10,CalculationsAndCharts!$A156+$A$11,0,1,1) -> 50.35 | I156: 49.7475 | J156: 50.40005575 | K156: 49.65938894 | L156: 41.22094375 | M156: 34.7153531 | N156: 29.50681554 | O156: 49.02358749 | P156: 40.76040538 | Q156: 34.78009914 | R156: 29.50802862 | S156: 47.44894734 | T156: 50.59822764 | U156: 49.245 | V156: 41.39508152 | W156: 34.85499009 | X156: 29.62753589 | Y156: 49.24781017 | Z156: 40.92541502 | AA156: 34.90640237 | AB156: 29.63248295 | AC156: 47.6895209 | AD156: 50.80609943 | AE156: 1 | AF156: 1 | AG156: 1 | AH156: 1 | AI156: 1 | AJ156: 1 | AK156: 1 | AL156: 0 | AM156: 1 | AN156: 1 | AO156: 1 | AP156: 1 | AQ156: 0 | AR156: 0 | AS156: 0 | AT156: 1 | AU156: 1 | AV156: 41.08820799 | AW156: 0 | AX156: 1 | AY156: 100
A157: 125 | B157: =OFFSET(InputPriceData!B$10,CalculationsAndCharts!$A157+$A$11,0,1,1) -> 2007-01-03 | C157: 2007-01-07 | D157: =OFFSET(InputPriceData!G$10,CalculationsAndCharts!$A157+$A$11,0,1,1) -> 2358400 | E157: =OFFSET(InputPriceData!C$10,CalculationsAndCharts!$A157+$A$11,0,1,1) -> 52.07 | F157: =OFFSET(InputPriceData!D$10,CalculationsAndCharts!$A157+$A$11,0,1,1) -> 52.12 | G157: =OFFSET(InputPriceData!E$10,CalculationsAndCharts!$A157+$A$11,0,1,1) -> 49.9 | H157: =OFFSET(InputPriceData!F$10,CalculationsAndCharts!$A157+$A$11,0,1,1) -> 50.05 | I157: 51.035 | J157: 49.7651115 | K157: 50.67130575 | L157: 40.90840874 | M157: 34.4744053 | N157: 29.31390674 | O157: 48.61591708 | P157: 40.4543616 | Q157: 34.55860632 | R157: 29.31276675 | S157: 47.0000326 | T157: 50.23180155 | U157: 51.01 | V157: 41.1043438 | W157: 34.61276448 | X157: 29.43392648 | Y157: 48.90866441 | Z157: 40.61717816 | AA157: 34.68347598 | AB157: 29.43715261 | AC157: 47.23825916 | AD157: 50.57906966 | AE157: 1 | AF157: 1 | AG157: 1 | AH157: 1 | AI157: 0 | AJ157: 1 | AK157: 1 | AL157: 0 | AM157: 0 | AN157: 1 | AO157: 1 | AP157: 1 | AQ157: 0 | AR157: 0 | AS157: 0 | AT157: 1 | AU157: 1 | AV157: 40.77424894 | AW157: 0 | AX157: 1 | AY157: 100
A158: 126 | B158: =OFFSET(InputPriceData!B$10,CalculationsAndCharts!$A158+$A$11,0,1,1) -> 2006-12-26 | C158: 2006-12-30 | D158: =OFFSET(InputPriceData!G$10,CalculationsAndCharts!$A158+$A$11,0,1,1) -> 735600 | E158: =OFFSET(InputPriceData!C$10,CalculationsAndCharts!$A158+$A$11,0,1,1) -> 49.32 | F158: =OFFSET(InputPriceData!D$10,CalculationsAndCharts!$A158+$A$11,0,1,1) -> 51.25 | G158: =OFFSET(InputPriceData!E$10,CalculationsAndCharts!$A158+$A$11,0,1,1) -> 49.09 | H158: =OFFSET(InputPriceData!F$10,CalculationsAndCharts!$A158+$A$11,0,1,1) -> 51.25 | I158: 50.2275 | J158: 49.30272299 | K158: 49.96755575 | L158: 40.54681996 | M158: 34.23610887 | N158: 29.12277717 | O158: 48.05491044 | P158: 40.15208177 | Q158: 34.34024501 | R158: 29.1184764 | S158: 46.55398667 | T158: 49.55583421 | U158: 50.17 | V158: 40.73746764 | W158: 34.37233562 | X158: 29.24211767 | Y158: 48.33751372 | Z158: 40.31008608 | AA158: 34.46370923 | AB158: 29.24284433 | AC158: 46.78197488 | AD158: 49.89305256 | AE158: 1 | AF158: 1 | AG158: 1 | AH158: 1 | AI158: 0 | AJ158: 1 | AK158: 1 | AL158: 0 | AM158: 0 | AN158: 1 | AO158: 1 | AP158: 1 | AQ158: 0 | AR158: 0 | AS158: 0 | AT158: 1 | AU158: 1 | AV158: 40.4598167 | AW158: 0 | AX158: 1 | AY158: 100
A159: 127 | B159: =OFFSET(InputPriceData!B$10,CalculationsAndCharts!$A159+$A$11,0,1,1) -> 2006-12-18 | C159: 2006-12-22 | D159: =OFFSET(InputPriceData!G$10,CalculationsAndCharts!$A159+$A$11,0,1,1) -> 1816600 | E159: =OFFSET(InputPriceData!C$10,CalculationsAndCharts!$A159+$A$11,0,1,1) -> 50.72 | F159: =OFFSET(InputPriceData!D$10,CalculationsAndCharts!$A159+$A$11,0,1,1) -> 51.23 | G159: =OFFSET(InputPriceData!E$10,CalculationsAndCharts!$A159+$A$11,0,1,1) -> 45 | H159: =OFFSET(InputPriceData!F$10,CalculationsAndCharts!$A159+$A$11,0,1,1) -> 49.14 | I159: 49.0225 | J159: 49.58294598 | K159: 48.7088615 | L159: 40.19790382 | M159: 34.00237883 | N159: 28.93339451 | O159: 47.51996948 | P159: 39.85938441 | Q159: 34.1249918 | R159: 28.92507756 | S159: 46.1282554 | T159: 48.91168357 | U159: 48.115 | V159: 40.38811459 | W159: 34.13658999 | X159: 29.05210959 | Y159: 47.80668339 | Z159: 40.01277395 | AA159: 34.24717675 | AB159: 29.04947897 | AC159: 46.34627054 | AD159: 49.26709624 | AE159: 1 | AF159: 1 | AG159: 1 | AH159: 1 | AI159: 1 | AJ159: 1 | AK159: 1 | AL159: 0 | AM159: 1 | AN159: 1 | AO159: 1 | AP159: 1 | AQ159: 0 | AR159: 0 | AS159: 0 | AT159: 1 | AU159: 1 | AV159: 40.09404777 | AW159: 0 | AX159: 1 | AY159: 100
A160: 128 | B160: =OFFSET(InputPriceData!B$10,CalculationsAndCharts!$A160+$A$11,0,1,1) -> 2006-12-11 | C160: 2006-12-15 | D160: =OFFSET(InputPriceData!G$10,CalculationsAndCharts!$A160+$A$11,0,1,1) -> 1692400 | E160: =OFFSET(InputPriceData!C$10,CalculationsAndCharts!$A160+$A$11,0,1,1) -> 50.81 | F160: =OFFSET(InputPriceData!D$10,CalculationsAndCharts!$A160+$A$11,0,1,1) -> 51.37 | G160: =OFFSET(InputPriceData!E$10,CalculationsAndCharts!$A160+$A$11,0,1,1) -> 49.8 | H160: =OFFSET(InputPriceData!F$10,CalculationsAndCharts!$A160+$A$11,0,1,1) -> 50.88 | I160: 50.715 | J160: 48.45089196 | K160: 49.74669598 | L160: 39.88268317 | M160: 33.77291494 | N160: 28.74565435 | O160: 47.07495902 | P160: 39.57565904 | Q160: 33.91260689 | R160: 28.73248814 | S160: 45.72164459 | T160: 48.42827346 | U160: 50.585 | V160: 40.10193365 | W160: 33.90505204 | X160: 28.8637955 | Y160: 47.45444032 | Z160: 39.72411063 | AA160: 34.03363612 | AB160: 28.85697164 | AC160: 45.92839519 | AD160: 48.98048545 | AE160: 1 | AF160: 1 | AG160: 1 | AH160: 1 | AI160: 1 | AJ160: 1 | AK160: 0 | AL160: 0 | AM160: 1 | AN160: 0 | AO160: 0 | AP160: 0 | AQ160: 0 | AR160: 0 | AS160: 0 | AT160: 1 | AU160: 1 | AV160: 39.78740532 | AW160: 0 | AX160: 1 | AY160: 100
A161: 129 | B161: =OFFSET(InputPriceData!B$10,CalculationsAndCharts!$A161+$A$11,0,1,1) -> 2006-12-04 | C161: 2006-12-08 | D161: =OFFSET(InputPriceData!G$10,CalculationsAndCharts!$A161+$A$11,0,1,1) -> 2548500 | E161: =OFFSET(InputPriceData!C$10,CalculationsAndCharts!$A161+$A$11,0,1,1) -> 48.31 | F161: =OFFSET(InputPriceData!D$10,CalculationsAndCharts!$A161+$A$11,0,1,1) -> 50.77 | G161: =OFFSET(InputPriceData!E$10,CalculationsAndCharts!$A161+$A$11,0,1,1) -> 47.47 | H161: =OFFSET(InputPriceData!F$10,CalculationsAndCharts!$A161+$A$11,0,1,1) -> 50.57 | I161: 49.28 | J161: 47.62178393 | K161: 48.78544598 | L161: 39.51734936 | M161: 33.54662723 | N161: 28.55945951 | O161: =3*L161-3*M161+N161 -> 46.4716259 | P161: 39.29790718 | Q161: 33.70286421 | R161: 28.54063189 | S161: 45.32576081 | T161: 47.61749099 | U161: =AVERAGE(F161:G161) -> 49.12 | V161: 39.71367193 | W161: 33.67553791 | X161: 28.6770823 | Y161: 46.79148437 | Z161: 39.43780213 | AA161: 33.8228778 | AB161: 28.66524333 | AC161: 45.5100163 | AD161: 48.07295243 | AE161: =IF(OR(K161>=J161,K162>=J162,K163>=J163),1,IF(H161>=K161,1,IF(OR(F161>F162,G161>G162),1,0))) -> 1 | AF161: =IF((AD161-T161)>=0,1,0) -> 1 | AG161: 1 | AH161: =IF(OR(AG161=1,OR(AND(AG162=1,(H161>=E161)),H161>=H162)),1,0) -> 1 | AI161: =IF(AND(ABS(H161-E161)<(F161-G161)*$B$20,F161>=G162),1,0) -> 0 | AJ161: 1 | AK161: =IF(OR(K161<J161,K162<J162,K163<J163),1,0) -> 0 | AL161: =IF((AD161-T161)<0,1,0) -> 0 | AM161: =IF(AND(ABS(H161-E161)<(F161-G161)*$B$20,G161<=F162),1,0) -> 0 | AN161: 0 | AO161: =IF(OR(AN161=1,OR(AND(AN162=1,(H161<E161)),H161<H162)),1,0) -> 0 | AP161: 0 | AQ161: 1 | AR161: 0 | AS161: 1 | AT161: 1 | AU161: 1 | AV161: =H161*$C$19+$D$19*AV162 -> 39.41138517 | AW161: =IF(H161<AV161,1,0) -> 0 | AX161: 1 | AY161: 100
A162: 130 | B162: =OFFSET(InputPriceData!B$10,CalculationsAndCharts!$A162+$A$11,0,1,1) -> 2006-11-27 | C162: =B162+4 -> 2006-12-01 | D162: =OFFSET(InputPriceData!G$10,CalculationsAndCharts!$A162+$A$11,0,1,1) -> 2222000 | E162: =OFFSET(InputPriceData!C$10,CalculationsAndCharts!$A162+$A$11,0,1,1) -> 48.27 | F162: =OFFSET(InputPriceData!D$10,CalculationsAndCharts!$A162+$A$11,0,1,1) -> 48.83 | G162: =OFFSET(InputPriceData!E$10,CalculationsAndCharts!$A162+$A$11,0,1,1) -> 46.35 | H162: =OFFSET(InputPriceData!F$10,CalculationsAndCharts!$A162+$A$11,0,1,1) -> 47.75 | I162: 47.8 | J162: =(I163+J163)/2 -> 47.44356785 | K162: =(I162+J162+MAX(F162,J162)+MIN(G162,J162))/4 -> 47.60589196 | L162: =$C$18*K162+$D$18*L163 -> 39.17408652 | M162: =$C$18*L162+$D$18*M163 -> 33.32548937 | N162: =$C$18*M162+$D$18*N163 -> 28.3747496 | O162: 45.92054104 | P162: =$C$18*O162+$D$18*P163 -> 39.0322139 | Q162: =$C$18*P162+$D$18*Q163 -> 33.4956404 | R162: =$C$18*Q162+$D$18*R163 -> 28.3494381 | S162: =3*P162-3*Q162+R162 -> 44.9591586 | T162: =2*O162-S162 -> 46.88192348 | U162: 47.59 | V162: =$C$18*U162+$D$18*V163 -> 39.36528941 | W162: =$C$18*V162+$D$18*W163 -> 33.45190332 | X162: =$C$18*W162+$D$18*X163 -> 28.49195431 | Y162: =3*V162-3*W162+X162 -> 46.2321126 | Z162: =$C$18*Y162+$D$18*Z163 -> 39.16544352 | AA162: =$C$18*Z162+$D$18*AA163 -> 33.61491764 | AB162: =$C$18*AA162+$D$18*AB163 -> 28.47421983 | AC162: =3*Z162-3*AA162+AB162 -> 45.12579747 | AD162: =2*Y162-AC162 -> 47.33842772 | AE162: 1 | AF162: 1 | AG162: =IF(OR(AE162=1, AF162=1),1,0) -> 1 | AH162: 1 | AI162: 1 | AJ162: =IF(OR(AH162=1,AND(AH163=1,AI162=1)),1,0) -> 1 | AK162: 0 | AL162: 0 | AM162: 1 | AN162: =IF(OR(AK162=1, AL162=1),1,0) -> 0 | AO162: 1 | AP162: =IF(OR(AO162=1,AND(AO163=1,AM162=1)),1,0) -> 1 | AQ162: =IF(AND(AP162=0,AP163=1,AJ162=1),1,0) -> 0 | AR162: =IF(AND(AJ162=0,AJ163=1,AP162=1),1,0) -> 0 | AS162: =IF(OR(AQ162=1,AR162=1),1,0) -> 0 | AT162: =IF(OR(AQ162=1,AR162=1),IF(AQ162=1,1,0),AT163) -> 1 | AU162: =IF(AQ162=1,1,IF(AR162=1,0,AT162)) -> 1 | AV162: 39.03312704 | AW162: 0 | AX162: =IF(AU162=1,1,IF(AND(AU162=0, AW162=1),0,AX163)) -> 1 | AY162: =IF(AU162=1,100,IF(AND(AU162=0, AX162=1),50,IF(AND(AU162=0, AX162=0),0,AY163))) -> 100
A163: 131 | B163: =OFFSET(InputPriceData!B$10,CalculationsAndCharts!$A163+$A$11,0,1,1) -> 2006-11-20 | C163: 2006-11-24 | D163: =OFFSET(InputPriceData!G$10,CalculationsAndCharts!$A163+$A$11,0,1,1) -> 1245200 | E163: =OFFSET(InputPriceData!C$10,CalculationsAndCharts!$A163+$A$11,0,1,1) -> 47.42 | F163: =OFFSET(InputPriceData!D$10,CalculationsAndCharts!$A163+$A$11,0,1,1) -> 48.78 | G163: =OFFSET(InputPriceData!E$10,CalculationsAndCharts!$A163+$A$11,0,1,1) -> 47.3 | H163: =OFFSET(InputPriceData!F$10,CalculationsAndCharts!$A163+$A$11,0,1,1) -> 48.26 | I163: 47.94 | J163: 46.94713571 | K163: 47.65356785 | L163: 38.86179743 | M163: 33.10887466 | N163: 28.19138887 | O163: 45.45015717 | P163: 38.77709067 | Q163: 33.29058212 | R163: 28.15883802 | S163: 44.61836367 | T163: 46.28195066 | U163: 48.04 | V163: 39.0606705 | W163: 33.23288902 | X163: 28.3082525 | Y163: 45.79159695 | Z163: 38.90371504 | AA163: 33.40934261 | AB163: 28.28382361 | AC163: 44.7669409 | AD163: 46.81625299 | AE163: 1 | AF163: 1 | AG163: 1 | AH163: 1 | AI163: 0 | AJ163: 1 | AK163: 0 | AL163: 0 | AM163: 0 | AN163: 0 | AO163: 0 | AP163: 0 | AQ163: 0 | AR163: 0 | AS163: 0 | AT163: 1 | AU163: 1 | AV163: 38.73763982 | AW163: 0 | AX163: 1 | AY163: 100
A164: 132 | B164: =OFFSET(InputPriceData!B$10,CalculationsAndCharts!$A164+$A$11,0,1,1) -> 2006-11-13 | C164: 2006-11-17 | D164: =OFFSET(InputPriceData!G$10,CalculationsAndCharts!$A164+$A$11,0,1,1) -> 1565000 | E164: =OFFSET(InputPriceData!C$10,CalculationsAndCharts!$A164+$A$11,0,1,1) -> 47.03 | F164: =OFFSET(InputPriceData!D$10,CalculationsAndCharts!$A164+$A$11,0,1,1) -> 48.7 | G164: =OFFSET(InputPriceData!E$10,CalculationsAndCharts!$A164+$A$11,0,1,1) -> 46.86 | H164: =OFFSET(InputPriceData!F$10,CalculationsAndCharts!$A164+$A$11,0,1,1) -> 47.6 | I164: 47.5475 | J164: 46.34677141 | K164: 47.23526071 | L164: 38.5361763 | M164: 32.89580345 | N164: 28.00925976 | O164: 44.93037832 | P164: 38.52994006 | Q164: 33.0873781 | R164: 27.96877342 | S164: 44.2964593 | T164: 45.56429734 | U164: 47.78 | V164: 38.72810274 | W164: 33.01704526 | X164: 28.12585855 | Y164: 45.259031 | Z164: 38.6486083 | AA164: 33.20584733 | AB164: 28.09398958 | AC164: 44.42227248 | AD164: 46.09578952 | AE164: 1 | AF164: 1 | AG164: 1 | AH164: 1 | AI164: 1 | AJ164: 1 | AK164: 0 | AL164: 0 | AM164: 1 | AN164: 0 | AO164: 0 | AP164: 0 | AQ164: 1 | AR164: 0 | AS164: 1 | AT164: 1 | AU164: 1 | AV164: 38.41484795 | AW164: 0 | AX164: 1 | AY164: 100
A165: 133 | B165: =OFFSET(InputPriceData!B$10,CalculationsAndCharts!$A165+$A$11,0,1,1) -> 2006-11-06 | C165: 2006-11-10 | D165: =OFFSET(InputPriceData!G$10,CalculationsAndCharts!$A165+$A$11,0,1,1) -> 2828300 | E165: =OFFSET(InputPriceData!C$10,CalculationsAndCharts!$A165+$A$11,0,1,1) -> 46.18 | F165: =OFFSET(InputPriceData!D$10,CalculationsAndCharts!$A165+$A$11,0,1,1) -> 48.09 | G165: =OFFSET(InputPriceData!E$10,CalculationsAndCharts!$A165+$A$11,0,1,1) -> 46.07 | H165: =OFFSET(InputPriceData!F$10,CalculationsAndCharts!$A165+$A$11,0,1,1) -> 47.09 | I165: 46.8575 | J165: 45.83604283 | K165: 46.65489641 | L165: 38.21398799 | M165: 32.68690075 | N165: 27.82827666 | O165: 44.40953838 | P165: 38.29288679 | Q165: 32.88580173 | R165: 27.77919547 | S165: 44.00045065 | T165: 44.81862612 | U165: 47.08 | V165: 38.39284729 | W165: 32.80552461 | X165: 27.94470349 | Y165: 44.70667152 | Z165: 38.40377783 | AA165: 33.00426359 | AB165: 27.90466151 | AC165: 44.10320422 | AD165: 45.31013882 | AE165: 1 | AF165: 1 | AG165: 1 | AH165: 1 | AI165: 1 | AJ165: 1 | AK165: 0 | AL165: 0 | AM165: 1 | AN165: 0 | AO165: 0 | AP165: 1 | AQ165: 0 | AR165: 0 | AS165: 0 | AT165: 1 | AU165: 1 | AV165: 38.10348686 | AW165: 0 | AX165: 1 | AY165: 100
A166: 134 | B166: =OFFSET(InputPriceData!B$10,CalculationsAndCharts!$A166+$A$11,0,1,1) -> 2006-10-30 | C166: 2006-11-03 | D166: =OFFSET(InputPriceData!G$10,CalculationsAndCharts!$A166+$A$11,0,1,1) -> 3561800 | E166: =OFFSET(InputPriceData!C$10,CalculationsAndCharts!$A166+$A$11,0,1,1) -> 45.77 | F166: =OFFSET(InputPriceData!D$10,CalculationsAndCharts!$A166+$A$11,0,1,1) -> 47.12 | G166: =OFFSET(InputPriceData!E$10,CalculationsAndCharts!$A166+$A$11,0,1,1) -> 44.68 | H166: =OFFSET(InputPriceData!F$10,CalculationsAndCharts!$A166+$A$11,0,1,1) -> 46.05 | I166: 45.905 | J166: 45.76708565 | K166: 45.86802141 | L166: 37.90136176 | M166: 32.48219382 | N166: 27.64832762 | O166: 43.90583143 | P166: 38.06634414 | Q166: 32.68553932 | R166: 27.59006191 | S166: 43.73247636 | T166: 44.07918651 | U166: 45.9 | V166: 38.07110089 | W166: 32.59858673 | X166: 27.76467308 | Y166: 44.18221555 | Z166: 38.17033733 | AA166: 32.80428159 | AB166: 27.71578736 | AC166: 43.81395458 | AD166: 44.55047652 | AE166: 1 | AF166: 1 | AG166: 1 | AH166: 1 | AI166: 1 | AJ166: 1 | AK166: 0 | AL166: 0 | AM166: 1 | AN166: 0 | AO166: 1 | AP166: 1 | AQ166: 0 | AR166: 0 | AS166: 0 | AT166: 1 | AU166: 1 | AV166: 37.79885929 | AW166: 0 | AX166: 1 | AY166: 100
A167: 135 | B167: =OFFSET(InputPriceData!B$10,CalculationsAndCharts!$A167+$A$11,0,1,1) -> 2006-10-23 | C167: 2006-10-27 | D167: =OFFSET(InputPriceData!G$10,CalculationsAndCharts!$A167+$A$11,0,1,1) -> 2348500 | E167: =OFFSET(InputPriceData!C$10,CalculationsAndCharts!$A167+$A$11,0,1,1) -> 46.48 | F167: =OFFSET(InputPriceData!D$10,CalculationsAndCharts!$A167+$A$11,0,1,1) -> 47.71 | G167: =OFFSET(InputPriceData!E$10,CalculationsAndCharts!$A167+$A$11,0,1,1) -> 45.81 | H167: =OFFSET(InputPriceData!F$10,CalculationsAndCharts!$A167+$A$11,0,1,1) -> 46.08 | I167: 46.52 | J167: 45.01417131 | K167: 46.06458565 | L167: 37.60630029 | M167: 32.28148389 | N167: 27.46929554 | O167: 43.44374472 | P167: 37.85006683 | Q167: 32.48625026 | R167: 27.40134052 | S167: 43.49279025 | T167: 43.39469918 | U167: 46.76 | V167: 37.78114166 | W167: 32.39590102 | X167: 27.58563924 | Y167: 43.74136116 | Z167: 37.94767517 | AA167: 32.60553878 | AB167: 27.52732461 | AC167: 43.55373378 | AD167: 43.92898854 | AE167: 1 | AF167: 1 | AG167: 1 | AH167: 1 | AI167: 1 | AJ167: 1 | AK167: 0 | AL167: 0 | AM167: 1 | AN167: 0 | AO167: 1 | AP167: 1 | AQ167: 0 | AR167: 0 | AS167: 0 | AT167: 1 | AU167: 1 | AV167: 37.51915961 | AW167: 0 | AX167: 1 | AY167: 100
A168: 136 | B168: =OFFSET(InputPriceData!B$10,CalculationsAndCharts!$A168+$A$11,0,1,1) -> 2006-10-16 | C168: 2006-10-20 | D168: =OFFSET(InputPriceData!G$10,CalculationsAndCharts!$A168+$A$11,0,1,1) -> 2486700 | E168: =OFFSET(InputPriceData!C$10,CalculationsAndCharts!$A168+$A$11,0,1,1) -> 46.23 | F168: =OFFSET(InputPriceData!D$10,CalculationsAndCharts!$A168+$A$11,0,1,1) -> 46.8 | G168: =OFFSET(InputPriceData!E$10,CalculationsAndCharts!$A168+$A$11,0,1,1) -> 45.22 | H168: =OFFSET(InputPriceData!F$10,CalculationsAndCharts!$A168+$A$11,0,1,1) -> 46.59 | I168: =AVERAGE(E168:H168) -> 46.21 | J168: 43.81834261 | K168: 45.16167131 | L168: 37.29303046 | M168: 32.08426847 | N168: 27.29106634 | O168: 42.9173523 | P168: 37.64289358 | Q168: 32.28759038 | R168: 27.21301053 | S168: 43.27892011 | T168: 42.55578448 | U168: 46.01 | V168: 37.44859135 | W168: 32.19644767 | X168: 27.4074814 | Y168: 43.16391246 | Z168: 37.73309421 | AA168: 32.40768188 | AB168: 27.3392426 | AC168: 43.31547959 | AD168: 43.01234533 | AE168: 1 | AF168: 1 | AG168: 1 | AH168: 1 | AI168: 1 | AJ168: 1 | AK168: 0 | AL168: 0 | AM168: 1 | AN168: 0 | AO168: 0 | AP168: 0 | AQ168: 0 | AR168: 0 | AS168: 0 | AT168: 1 | AU168: 1 | AV168: 37.22896163 | AW168: 0 | AX168: 1 | AY168: 100
A169: 137 | B169: =OFFSET(InputPriceData!B$10,CalculationsAndCharts!$A169+$A$11,0,1,1) -> 2006-10-09 | C169: 2006-10-13 | D169: =OFFSET(InputPriceData!G$10,CalculationsAndCharts!$A169+$A$11,0,1,1) -> 1777000 | E169: =OFFSET(InputPriceData!C$10,CalculationsAndCharts!$A169+$A$11,0,1,1) -> 43.96 | F169: =OFFSET(InputPriceData!D$10,CalculationsAndCharts!$A169+$A$11,0,1,1) -> 46.21 | G169: =OFFSET(InputPriceData!E$10,CalculationsAndCharts!$A169+$A$11,0,1,1) -> 43.55 | H169: =OFFSET(InputPriceData!F$10,CalculationsAndCharts!$A169+$A$11,0,1,1) -> 46.02 | I169: 44.935 | J169: 42.70168523 | K169: 44.13709261 | L169: 37.00159932 | M169: 31.89135136 | N169: 27.11354034 | O169: 42.4442842 | P169: 37.44754325 | Q169: 32.08924582 | R169: 27.02506313 | S169: 43.09995543 | T169: 41.78861297 | U169: 44.88 | V169: 37.13150214 | W169: 32.00192383 | X169: 27.23011227 | Y169: 42.61884723 | Z169: 37.53195279 | AA169: 32.21044438 | AB169: 27.15152263 | AC169: 43.11604785 | AD169: 42.12164661 | AE169: 1 | AF169: 1 | AG169: 1 | AH169: 1 | AI169: 0 | AJ169: 1 | AK169: 0 | AL169: 0 | AM169: 0 | AN169: 0 | AO169: 0 | AP169: 0 | AQ169: 1 | AR169: 0 | AS169: 1 | AT169: 1 | AU169: 1 | AV169: 36.9116383 | AW169: 0 | AX169: 1 | AY169: 100
A170: 138 | B170: =OFFSET(InputPriceData!B$10,CalculationsAndCharts!$A170+$A$11,0,1,1) -> 2006-10-02 | C170: 2006-10-06 | D170: =OFFSET(InputPriceData!G$10,CalculationsAndCharts!$A170+$A$11,0,1,1) -> 3922700 | E170: =OFFSET(InputPriceData!C$10,CalculationsAndCharts!$A170+$A$11,0,1,1) -> 43.48 | F170: =OFFSET(InputPriceData!D$10,CalculationsAndCharts!$A170+$A$11,0,1,1) -> 44.38 | G170: =OFFSET(InputPriceData!E$10,CalculationsAndCharts!$A170+$A$11,0,1,1) -> 41.9 | H170: =OFFSET(InputPriceData!F$10,CalculationsAndCharts!$A170+$A$11,0,1,1) -> 43.97 | I170: 43.4325 | J170: 41.97087046 | K170: 42.92084261 | L170: 36.73732179 | M170: 31.70208292 | N170: 26.93658437 | O170: 42.04230097 | P170: 37.26247877 | Q170: 31.89079036 | R170: 26.83750081 | S170: 42.95256605 | T170: 41.1320359 | U170: 43.14 | V170: 36.84452074 | W170: 31.81193944 | X170: 27.05337851 | Y170: 42.15112241 | Z170: 37.34354929 | AA170: 32.01335148 | AB170: 26.96415516 | AC170: 42.95474859 | AD170: 41.34749623 | AE170: 1 | AF170: 1 | AG170: 1 | AH170: 1 | AI170: 1 | AJ170: 1 | AK170: 0 | AL170: 0 | AM170: 1 | AN170: 0 | AO170: 0 | AP170: 1 | AQ170: 0 | AR170: 0 | AS170: 0 | AT170: 1 | AU170: 1 | AV170: 36.60288027 | AW170: 0 | AX170: 1 | AY170: 100
A171: 139 | B171: =OFFSET(InputPriceData!B$10,CalculationsAndCharts!$A171+$A$11,0,1,1) -> 2006-09-25 | C171: 2006-09-29 | D171: =OFFSET(InputPriceData!G$10,CalculationsAndCharts!$A171+$A$11,0,1,1) -> 2002100 | E171: =OFFSET(InputPriceData!C$10,CalculationsAndCharts!$A171+$A$11,0,1,1) -> 41.45 | F171: =OFFSET(InputPriceData!D$10,CalculationsAndCharts!$A171+$A$11,0,1,1) -> 43.31 | G171: =OFFSET(InputPriceData!E$10,CalculationsAndCharts!$A171+$A$11,0,1,1) -> 41.01 | H171: =OFFSET(InputPriceData!F$10,CalculationsAndCharts!$A171+$A$11,0,1,1) -> 43.21 | I171: 42.245 | J171: 41.69674091 | K171: 42.06543523 | L171: 36.5083025 | M171: 31.51559259 | N171: 26.76008443 | O171: 41.73821414 | P171: 37.08544832 | Q171: 31.69183894 | R171: 26.65034193 | S171: 42.83117009 | T171: 40.64525819 | U171: 42.16 | V171: 36.61135484 | W171: 31.62554754 | X171: 26.87713552 | Y171: 41.83455742 | Z171: 37.16549103 | AA171: 31.81593675 | AB171: 26.77714789 | AC171: 42.82581073 | AD171: 40.8433041 | AE171: 1 | AF171: 1 | AG171: 1 | AH171: 1 | AI171: 0 | AJ171: 1 | AK171: 1 | AL171: 0 | AM171: 0 | AN171: 1 | AO171: 1 | AP171: 1 | AQ171: 0 | AR171: 0 | AS171: 0 | AT171: 1 | AU171: 1 | AV171: 36.3531474 | AW171: 0 | AX171: 1 | AY171: 100
A172: 140 | B172: =OFFSET(InputPriceData!B$10,CalculationsAndCharts!$A172+$A$11,0,1,1) -> 2006-09-18 | C172: 2006-09-22 | D172: =OFFSET(InputPriceData!G$10,CalculationsAndCharts!$A172+$A$11,0,1,1) -> 3562700 | E172: =OFFSET(InputPriceData!C$10,CalculationsAndCharts!$A172+$A$11,0,1,1) -> 42.49 | F172: =OFFSET(InputPriceData!D$10,CalculationsAndCharts!$A172+$A$11,0,1,1) -> 43.48 | G172: =OFFSET(InputPriceData!E$10,CalculationsAndCharts!$A172+$A$11,0,1,1) -> 41.01 | H172: =OFFSET(InputPriceData!F$10,CalculationsAndCharts!$A172+$A$11,0,1,1) -> 41.69 | I172: 42.1675 | J172: 41.22598182 | K172: 41.97087046 | L172: 36.30248277 | M172: 31.33067741 | N172: 26.5839545 | O172: 41.49937056 | P172: 36.91312366 | Q172: 31.49207563 | R172: 26.46361982 | S172: 42.72676393 | T172: 40.27197719 | U172: 42.245 | V172: 36.40584947 | W172: 31.44088801 | X172: 26.7012684 | Y172: 41.59615277 | Z172: 36.99256264 | AA172: 31.61780511 | AB172: 26.59052608 | AC172: 42.71479869 | AD172: 40.47750684 | AE172: 1 | AF172: 1 | AG172: 1 | AH172: 1 | AI172: 1 | AJ172: 1 | AK172: 1 | AL172: 0 | AM172: 1 | AN172: 1 | AO172: 1 | AP172: 1 | AQ172: 0 | AR172: 0 | AS172: 0 | AT172: 1 | AU172: 1 | AV172: 36.12071172 | AW172: 0 | AX172: 1 | AY172: 100
A173: 141 | B173: =OFFSET(InputPriceData!B$10,CalculationsAndCharts!$A173+$A$11,0,1,1) -> 2006-09-11 | C173: 2006-09-15 | D173: =OFFSET(InputPriceData!G$10,CalculationsAndCharts!$A173+$A$11,0,1,1) -> 2049900 | E173: =OFFSET(InputPriceData!C$10,CalculationsAndCharts!$A173+$A$11,0,1,1) -> 40.08 | F173: =OFFSET(InputPriceData!D$10,CalculationsAndCharts!$A173+$A$11,0,1,1) -> 42.71 | G173: =OFFSET(InputPriceData!E$10,CalculationsAndCharts!$A173+$A$11,0,1,1) -> 39.7 | H173: =OFFSET(InputPriceData!F$10,CalculationsAndCharts!$A173+$A$11,0,1,1) -> 42.29 | I173: 41.195 | J173: 41.25696364 | K173: 41.21549091 | L173: 36.09254248 | M173: 31.14653647 | N173: 26.40814994 | O173: 41.24616798 | P173: 36.74326267 | Q173: 31.29129607 | R173: 26.27738072 | S173: 42.63328051 | T173: 39.85905544 | U173: 41.205 | V173: 36.18958463 | W173: 31.25700055 | X173: 26.52572694 | Y173: 41.32347918 | Z173: 36.8220593 | AA173: 31.41874001 | AB173: 26.40433056 | AC173: 42.61428844 | AD173: 40.03266992 | AE173: 1 | AF173: 1 | AG173: 1 | AH173: 1 | AI173: 0 | AJ173: 1 | AK173: 1 | AL173: 0 | AM173: 0 | AN173: 1 | AO173: 1 | AP173: 1 | AQ173: 0 | AR173: 0 | AS173: 0 | AT173: 1 | AU173: 1 | AV173: 35.93192229 | AW173: 0 | AX173: 1 | AY173: 100
A174: 142 | B174: =OFFSET(InputPriceData!B$10,CalculationsAndCharts!$A174+$A$11,0,1,1) -> 2006-09-05 | C174: 2006-09-09 | D174: =OFFSET(InputPriceData!G$10,CalculationsAndCharts!$A174+$A$11,0,1,1) -> 1986700 | E174: =OFFSET(InputPriceData!C$10,CalculationsAndCharts!$A174+$A$11,0,1,1) -> 42.21 | F174: =OFFSET(InputPriceData!D$10,CalculationsAndCharts!$A174+$A$11,0,1,1) -> 42.72 | G174: =OFFSET(InputPriceData!E$10,CalculationsAndCharts!$A174+$A$11,0,1,1) -> 40.01 | H174: =OFFSET(InputPriceData!F$10,CalculationsAndCharts!$A174+$A$11,0,1,1) -> 40.62 | I174: 41.39 | J174: 41.12392728 | K174: 41.31098182 | L174: 35.90280365 | M174: 30.96335106 | N174: 26.23265415 | O174: 41.05101191 | P174: 36.5764884 | Q174: 31.08937138 | R174: 26.09168015 | S174: 42.5530312 | T174: 39.54899262 | U174: 41.365 | V174: 36.00382851 | W174: 31.07431225 | X174: 26.35049458 | Y174: 41.13904335 | Z174: 36.65534005 | AA174: 31.21861707 | AB174: 26.21861169 | AC174: 42.52878062 | AD174: 39.74930608 | AE174: 1 | AF174: 1 | AG174: 1 | AH174: 1 | AI174: 0 | AJ174: 1 | AK174: 0 | AL174: 0 | AM174: 0 | AN174: 0 | AO174: 1 | AP174: 1 | AQ174: 0 | AR174: 0 | AS174: 0 | AT174: 1 | AU174: 1 | AV174: 35.71639423 | AW174: 0 | AX174: 1 | AY174: 100
A175: 143 | B175: =OFFSET(InputPriceData!B$10,CalculationsAndCharts!$A175+$A$11,0,1,1) -> 2006-08-28 | C175: 2006-09-01 | D175: =OFFSET(InputPriceData!G$10,CalculationsAndCharts!$A175+$A$11,0,1,1) -> 993800 | E175: =OFFSET(InputPriceData!C$10,CalculationsAndCharts!$A175+$A$11,0,1,1) -> 40.83 | F175: =OFFSET(InputPriceData!D$10,CalculationsAndCharts!$A175+$A$11,0,1,1) -> 42.28 | G175: =OFFSET(InputPriceData!E$10,CalculationsAndCharts!$A175+$A$11,0,1,1) -> 40.63 | H175: =OFFSET(InputPriceData!F$10,CalculationsAndCharts!$A175+$A$11,0,1,1) -> 42.01 | I175: 41.4375 | J175: 40.81035456 | K175: 41.28946364 | L175: 35.70250075 | M175: 30.78040837 | N175: 26.05744315 | O175: 40.82372029 | P175: 36.4107653 | Q175: 30.88614482 | R175: 25.90658048 | S175: 42.48044191 | T175: 39.16699867 | U175: 41.455 | V175: 35.8052666 | W175: 30.89173758 | X175: 26.17553837 | Y175: 40.91612544 | Z175: 36.48927697 | AA175: 31.01725696 | AB175: 26.0334263 | AC175: 42.44948631 | AD175: 39.38276458 | AE175: 1 | AF175: 1 | AG175: 1 | AH175: 1 | AI175: 0 | AJ175: 1 | AK175: 0 | AL175: 0 | AM175: 0 | AN175: 0 | AO175: 0 | AP175: 0 | AQ175: 1 | AR175: 0 | AS175: 1 | AT175: 1 | AU175: 1 | AV175: 35.5501703 | AW175: 0 | AX175: 1 | AY175: 100
A176: 144 | B176: =OFFSET(InputPriceData!B$10,CalculationsAndCharts!$A176+$A$11,0,1,1) -> 2006-08-21 | C176: 2006-08-25 | D176: =OFFSET(InputPriceData!G$10,CalculationsAndCharts!$A176+$A$11,0,1,1) -> 1718100 | E176: =OFFSET(InputPriceData!C$10,CalculationsAndCharts!$A176+$A$11,0,1,1) -> 41.8 | F176: =OFFSET(InputPriceData!D$10,CalculationsAndCharts!$A176+$A$11,0,1,1) -> 41.8 | G176: =OFFSET(InputPriceData!E$10,CalculationsAndCharts!$A176+$A$11,0,1,1) -> 40.11 | H176: =OFFSET(InputPriceData!F$10,CalculationsAndCharts!$A176+$A$11,0,1,1) -> 40.79 | I176: 41.125 | J176: 40.49570913 | K176: 40.88267728 | L176: 35.4955762 | M176: 30.59810866 | N176: 25.88251851 | O176: 40.57492115 | P176: 36.24732253 | Q176: 30.68152925 | R176: 25.72215217 | S176: 42.41953199 | T176: 38.73031031 | U176: 40.955 | V176: 35.59601722 | W176: 30.70975502 | X176: 26.00086433 | Y176: 40.65965091 | Z176: 36.32531961 | AA176: 30.81458956 | AB176: 25.84883998 | AC176: 42.38103016 | AD176: 38.93827167 | AE176: 1 | AF176: 1 | AG176: 1 | AH176: 1 | AI176: 0 | AJ176: 1 | AK176: 0 | AL176: 0 | AM176: 0 | AN176: 0 | AO176: 1 | AP176: 1 | AQ176: 0 | AR176: 0 | AS176: 0 | AT176: 1 | AU176: 1 | AV176: 35.33119302 | AW176: 0 | AX176: 1 | AY176: 100
A177: 145 | B177: =OFFSET(InputPriceData!B$10,CalculationsAndCharts!$A177+$A$11,0,1,1) -> 2006-08-14 | C177: 2006-08-18 | D177: =OFFSET(InputPriceData!G$10,CalculationsAndCharts!$A177+$A$11,0,1,1) -> 1422400 | E177: =OFFSET(InputPriceData!C$10,CalculationsAndCharts!$A177+$A$11,0,1,1) -> 40.5 | F177: =OFFSET(InputPriceData!D$10,CalculationsAndCharts!$A177+$A$11,0,1,1) -> 42.05 | G177: =OFFSET(InputPriceData!E$10,CalculationsAndCharts!$A177+$A$11,0,1,1) -> 40.06 | H177: =OFFSET(InputPriceData!F$10,CalculationsAndCharts!$A177+$A$11,0,1,1) -> 41.78 | I177: 41.0975 | J177: 39.89391825 | K177: 40.73383413 | L177: 35.29605394 | M177: 30.41672097 | N177: 25.70786703 | O177: 40.34586594 | P177: 36.0870411 | Q177: 30.47538876 | R177: 25.53847153 | S177: 42.37342854 | T177: 38.31830334 | U177: 41.055 | V177: 35.39753637 | W177: 30.52878235 | X177: 25.82646097 | Y177: 40.43272305 | Z177: 36.16478883 | AA177: 30.61048844 | AB177: 25.66492333 | AC177: 42.32782448 | AD177: 38.53762161 | AE177: 1 | AF177: 1 | AG177: 1 | AH177: 1 | AI177: 0 | AJ177: 1 | AK177: 0 | AL177: 0 | AM177: 0 | AN177: 0 | AO177: 0 | AP177: 0 | AQ177: 1 | AR177: 0 | AS177: 1 | AT177: 1 | AU177: 1 | AV177: 35.14614872 | AW177: 0 | AX177: 1 | AY177: 100
A178: 146 | B178: =OFFSET(InputPriceData!B$10,CalculationsAndCharts!$A178+$A$11,0,1,1) -> 2006-08-07 | C178: 2006-08-11 | D178: =OFFSET(InputPriceData!G$10,CalculationsAndCharts!$A178+$A$11,0,1,1) -> 1096300 | E178: =OFFSET(InputPriceData!C$10,CalculationsAndCharts!$A178+$A$11,0,1,1) -> 40.6 | F178: =OFFSET(InputPriceData!D$10,CalculationsAndCharts!$A178+$A$11,0,1,1) -> 41.15 | G178: =OFFSET(InputPriceData!E$10,CalculationsAndCharts!$A178+$A$11,0,1,1) -> 39.43 | H178: =OFFSET(InputPriceData!F$10,CalculationsAndCharts!$A178+$A$11,0,1,1) -> 40.3 | I178: 40.37 | J178: 39.41783651 | K178: 40.08891825 | L178: 35.09465467 | M178: 30.23600493 | N178: 25.53346503 | O178: 40.10941425 | P178: 35.92930684 | Q178: 30.26754978 | R178: 25.35562275 | S178: 42.34089392 | T178: 37.87793458 | U178: 40.29 | V178: 35.18800068 | W178: 30.34845812 | X178: 25.65230092 | Y178: 40.17092859 | Z178: 36.00671719 | AA178: 30.40477361 | AB178: 25.48175425 | AC178: 42.28758497 | AD178: 38.05427221 | AE178: 1 | AF178: 1 | AG178: 1 | AH178: 1 | AI178: 1 | AJ178: 1 | AK178: 0 | AL178: 0 | AM178: 1 | AN178: 0 | AO178: 1 | AP178: 1 | AQ178: 0 | AR178: 0 | AS178: 0 | AT178: 1 | AU178: 1 | AV178: 34.92127241 | AW178: 0 | AX178: 1 | AY178: 100
A179: 147 | B179: =OFFSET(InputPriceData!B$10,CalculationsAndCharts!$A179+$A$11,0,1,1) -> 2006-07-31 | C179: 2006-08-04 | D179: =OFFSET(InputPriceData!G$10,CalculationsAndCharts!$A179+$A$11,0,1,1) -> 1673400 | E179: =OFFSET(InputPriceData!C$10,CalculationsAndCharts!$A179+$A$11,0,1,1) -> 40.3 | F179: =OFFSET(InputPriceData!D$10,CalculationsAndCharts!$A179+$A$11,0,1,1) -> 41.22 | G179: =OFFSET(InputPriceData!E$10,CalculationsAndCharts!$A179+$A$11,0,1,1) -> 39.05 | H179: =OFFSET(InputPriceData!F$10,CalculationsAndCharts!$A179+$A$11,0,1,1) -> 40.57 | I179: 40.285 | J179: 38.55067302 | K179: 39.65158651 | L179: 34.90968195 | M179: 30.05605494 | N179: 25.35929688 | O179: 39.9201779 | P179: 35.77448805 | Q179: 30.05785508 | R179: 25.17369952 | S179: 42.32359844 | T179: 37.51675737 | U179: 40.135 | V179: 34.99903775 | W179: 30.16921581 | X179: 25.47836917 | Y179: 39.96783498 | Z179: 35.85248714 | AA179: 30.19729422 | AB179: 25.2994202 | AC179: 42.26499894 | AD179: 37.67067103 | AE179: 1 | AF179: 1 | AG179: 1 | AH179: 1 | AI179: 1 | AJ179: 1 | AK179: 0 | AL179: 0 | AM179: 1 | AN179: 0 | AO179: 1 | AP179: 1 | AQ179: 0 | AR179: 0 | AS179: 0 | AT179: 1 | AU179: 1 | AV179: 34.73894266 | AW179: 0 | AX179: 1 | AY179: 100
A180: 148 | B180: =OFFSET(InputPriceData!B$10,CalculationsAndCharts!$A180+$A$11,0,1,1) -> 2006-07-24 | C180: 2006-07-28 | D180: =OFFSET(InputPriceData!G$10,CalculationsAndCharts!$A180+$A$11,0,1,1) -> 1797400 | E180: =OFFSET(InputPriceData!C$10,CalculationsAndCharts!$A180+$A$11,0,1,1) -> 38.85 | F180: =OFFSET(InputPriceData!D$10,CalculationsAndCharts!$A180+$A$11,0,1,1) -> 40.76 | G180: =OFFSET(InputPriceData!E$10,CalculationsAndCharts!$A180+$A$11,0,1,1) -> 38.74 | H180: =OFFSET(InputPriceData!F$10,CalculationsAndCharts!$A180+$A$11,0,1,1) -> 40.7 | I180: 39.7625 | J180: 37.33884604 | K180: 38.80004802 | L180: 34.73405585 | M180: 29.87629098 | N180: 25.18534288 | O180: 39.75863751 | P180: 35.62094398 | Q180: 29.84612793 | R180: 24.99280487 | S180: 42.31725302 | T180: 37.20002199 | U180: 39.75 | V180: 34.80881692 | W180: 29.99033351 | X180: 25.30463411 | Y180: 39.76008433 | Z180: 35.70006684 | AA180: 29.98784263 | AB180: 25.11801746 | AC180: 42.2546901 | AD180: 37.26547857 | AE180: 1 | AF180: 1 | AG180: 1 | AH180: 1 | AI180: 0 | AJ180: 1 | AK180: 0 | AL180: 0 | AM180: 0 | AN180: 0 | AO180: 0 | AP180: 0 | AQ180: 1 | AR180: 0 | AS180: 1 | AT180: 1 | AU180: 1 | AV180: 34.5412797 | AW180: 0 | AX180: 1 | AY180: 100
A181: 149 | B181: =OFFSET(InputPriceData!B$10,CalculationsAndCharts!$A181+$A$11,0,1,1) -> 2006-07-17 | C181: 2006-07-21 | D181: =OFFSET(InputPriceData!G$10,CalculationsAndCharts!$A181+$A$11,0,1,1) -> 1597300 | E181: =OFFSET(InputPriceData!C$10,CalculationsAndCharts!$A181+$A$11,0,1,1) -> 35.9 | F181: =OFFSET(InputPriceData!D$10,CalculationsAndCharts!$A181+$A$11,0,1,1) -> 39.86 | G181: =OFFSET(InputPriceData!E$10,CalculationsAndCharts!$A181+$A$11,0,1,1) -> 35.85 | H181: =OFFSET(InputPriceData!F$10,CalculationsAndCharts!$A181+$A$11,0,1,1) -> 38.17 | I181: 37.445 | J181: 37.23269208 | K181: 37.59692302 | L181: 34.58346355 | M181: 29.69637376 | N181: 25.01160406 | O181: 39.67287343 | P181: 35.46769607 | Q181: 29.63224585 | R181: 24.81305217 | S181: 42.31940282 | T181: 37.02634405 | U181: 37.855 | V181: 34.62581014 | W181: 29.81187116 | X181: 25.13108968 | Y181: 39.57290661 | Z181: 35.54969583 | AA181: 29.77627877 | AB181: 24.93765357 | AC181: 42.25790473 | AD181: 36.8879085 | AE181: 1 | AF181: 0 | AG181: 1 | AH181: 1 | AI181: 0 | AJ181: 1 | AK181: 0 | AL181: 1 | AM181: 0 | AN181: 1 | AO181: 1 | AP181: 1 | AQ181: 0 | AR181: 0 | AS181: 0 | AT181: 0 | AU181: 0 | AV181: 34.33250952 | AW181: 0 | AX181: 1 | AY181: 50
A182: 150 | B182: =OFFSET(InputPriceData!B$10,CalculationsAndCharts!$A182+$A$11,0,1,1) -> 2006-07-10 | C182: 2006-07-14 | D182: =OFFSET(InputPriceData!G$10,CalculationsAndCharts!$A182+$A$11,0,1,1) -> 1544000 | E182: =OFFSET(InputPriceData!C$10,CalculationsAndCharts!$A182+$A$11,0,1,1) -> 39.13 | F182: =OFFSET(InputPriceData!D$10,CalculationsAndCharts!$A182+$A$11,0,1,1) -> 39.29 | G182: =OFFSET(InputPriceData!E$10,CalculationsAndCharts!$A182+$A$11,0,1,1) -> 35.72 | H182: =OFFSET(InputPriceData!F$10,CalculationsAndCharts!$A182+$A$11,0,1,1) -> 35.86 | I182: 37.5 | J182: 36.96538415 | K182: 37.36884604 | L182: 34.47185394 | M182: 29.51537044 | N182: 24.83809407 | O182: 39.70754459 | P182: 35.31194876 | Q182: 29.41611807 | R182: 24.63456351 | S182: 42.32205559 | T182: 37.09303359 | U182: 37.505 | V182: 34.50621052 | W182: 29.63357713 | X182: 24.95772741 | Y182: 39.57562757 | Z182: 35.40068802 | AA182: 29.56244851 | AB182: 24.75844523 | AC182: 42.27316375 | AD182: 36.8780914 | AE182: 1 | AF182: 0 | AG182: 1 | AH182: 1 | AI182: 0 | AJ182: 1 | AK182: 0 | AL182: 1 | AM182: 0 | AN182: 1 | AO182: 1 | AP182: 1 | AQ182: 0 | AR182: 0 | AS182: 0 | AT182: 0 | AU182: 0 | AV182: 34.20242509 | AW182: 0 | AX182: 1 | AY182: 50
A183: 151 | B183: =OFFSET(InputPriceData!B$10,CalculationsAndCharts!$A183+$A$11,0,1,1) -> 2006-07-03 | C183: 2006-07-07 | D183: =OFFSET(InputPriceData!G$10,CalculationsAndCharts!$A183+$A$11,0,1,1) -> 2262400 | E183: =OFFSET(InputPriceData!C$10,CalculationsAndCharts!$A183+$A$11,0,1,1) -> 37.86 | F183: =OFFSET(InputPriceData!D$10,CalculationsAndCharts!$A183+$A$11,0,1,1) -> 39.75 | G183: =OFFSET(InputPriceData!E$10,CalculationsAndCharts!$A183+$A$11,0,1,1) -> 37.37 | H183: =OFFSET(InputPriceData!F$10,CalculationsAndCharts!$A183+$A$11,0,1,1) -> 38.86 | I183: 38.46 | J183: 35.47076831 | K183: 37.28788415 | L183: 34.36455794 | M183: 29.33179697 | N183: 24.66486162 | O183: 39.76314451 | P183: 35.14914892 | Q183: 29.19775397 | R183: 24.4574689 | S183: 42.31165374 | T183: 37.21463528 | U183: 38.56 | V183: 34.39514424 | W183: 29.45310922 | X183: 24.78454779 | Y183: 39.61065283 | Z183: 35.24606063 | AA183: 29.34621742 | AB183: 24.58051918 | AC183: 42.28004881 | AD183: 36.94125685 | AE183: 1 | AF183: 0 | AG183: 1 | AH183: 1 | AI183: 1 | AJ183: 1 | AK183: 1 | AL183: 1 | AM183: 0 | AN183: 1 | AO183: 1 | AP183: 1 | AQ183: 0 | AR183: 0 | AS183: 0 | AT183: 0 | AU183: 0 | AV183: 34.14623611 | AW183: 0 | AX183: 1 | AY183: 50
A184: 152 | B184: =OFFSET(InputPriceData!B$10,CalculationsAndCharts!$A184+$A$11,0,1,1) -> 2006-06-26 | C184: 2006-06-30 | D184: =OFFSET(InputPriceData!G$10,CalculationsAndCharts!$A184+$A$11,0,1,1) -> 1878000 | E184: =OFFSET(InputPriceData!C$10,CalculationsAndCharts!$A184+$A$11,0,1,1) -> 35.64 | F184: =OFFSET(InputPriceData!D$10,CalculationsAndCharts!$A184+$A$11,0,1,1) -> 37.23 | G184: =OFFSET(InputPriceData!E$10,CalculationsAndCharts!$A184+$A$11,0,1,1) -> 34.13 | H184: =OFFSET(InputPriceData!F$10,CalculationsAndCharts!$A184+$A$11,0,1,1) -> 37.15 | I184: 36.0375 | J184: 34.90403662 | K184: 35.57538415 | L184: 34.2562866 | M184: 29.14539842 | N184: 24.49201216 | O184: 39.82467669 | P184: 34.97826019 | Q184: 28.97733193 | R184: 24.28190279 | S184: 42.28468755 | T184: 37.36466583 | U184: 35.68 | V184: 34.24089032 | W184: 29.27007089 | X184: 24.6116381 | Y184: 39.5240964 | Z184: 35.08440907 | AA184: 29.12770471 | AB184: 24.40401184 | AC184: 42.27412491 | AD184: 36.77406789 | AE184: 1 | AF184: 0 | AG184: 1 | AH184: 1 | AI184: 1 | AJ184: 1 | AK184: 1 | AL184: 1 | AM184: 1 | AN184: 1 | AO184: 1 | AP184: 1 | AQ184: 0 | AR184: 0 | AS184: 0 | AT184: 0 | AU184: 0 | AV184: 33.98644751 | AW184: 0 | AX184: 1 | AY184: 50
A185: 153 | B185: =OFFSET(InputPriceData!B$10,CalculationsAndCharts!$A185+$A$11,0,1,1) -> 2006-06-19 | C185: 2006-06-23 | D185: =OFFSET(InputPriceData!G$10,CalculationsAndCharts!$A185+$A$11,0,1,1) -> 1449300 | E185: =OFFSET(InputPriceData!C$10,CalculationsAndCharts!$A185+$A$11,0,1,1) -> 34.34 | F185: =OFFSET(InputPriceData!D$10,CalculationsAndCharts!$A185+$A$11,0,1,1) -> 35.65 | G185: =OFFSET(InputPriceData!E$10,CalculationsAndCharts!$A185+$A$11,0,1,1) -> 32.99 | H185: =OFFSET(InputPriceData!F$10,CalculationsAndCharts!$A185+$A$11,0,1,1) -> 35.4 | I185: 34.595 | J185: 35.21307324 | K185: 34.61201831 | L185: 34.20743113 | M185: 28.95610626 | N185: 24.31966452 | O185: 40.07363912 | P185: 34.79876328 | Q185: 28.75507533 | R185: 24.107998 | S185: 42.23906185 | T185: 37.90821639 | U185: 34.32 | V185: 34.18758996 | W185: 29.08596647 | X185: 24.43910356 | Y185: 39.74397404 | Z185: 34.9199762 | AA185: 28.90708603 | AB185: 24.22906025 | AC185: 42.26773077 | AD185: 37.22021732 | AE185: 1 | AF185: 0 | AG185: 1 | AH185: 1 | AI185: 1 | AJ185: 1 | AK185: 1 | AL185: 1 | AM185: 1 | AN185: 1 | AO185: 1 | AP185: 1 | AQ185: 0 | AR185: 0 | AS185: 0 | AT185: 0 | AU185: 0 | AV185: 33.87920844 | AW185: 0 | AX185: 1 | AY185: 50
A186: 154 | B186: =OFFSET(InputPriceData!B$10,CalculationsAndCharts!$A186+$A$11,0,1,1) -> 2006-06-12 | C186: 2006-06-16 | D186: =OFFSET(InputPriceData!G$10,CalculationsAndCharts!$A186+$A$11,0,1,1) -> 2133800 | E186: =OFFSET(InputPriceData!C$10,CalculationsAndCharts!$A186+$A$11,0,1,1) -> 34.06 | F186: =OFFSET(InputPriceData!D$10,CalculationsAndCharts!$A186+$A$11,0,1,1) -> 34.57 | G186: =OFFSET(InputPriceData!E$10,CalculationsAndCharts!$A186+$A$11,0,1,1) -> 31.15 | H186: =OFFSET(InputPriceData!F$10,CalculationsAndCharts!$A186+$A$11,0,1,1) -> 34.04 | I186: 33.455 | J186: 36.97114647 | K186: 34.63682324 | L186: 34.19244642 | M186: 28.76161275 | N186: 24.14794445 | O186: 40.44044547 | P186: 34.60339751 | Q186: 28.53123504 | R186: 23.93588403 | S186: 42.15237145 | T186: 38.72851949 | U186: 32.86 | V186: 34.18268589 | W186: 28.89701745 | X186: 24.26699752 | Y186: 40.12400284 | Z186: 34.74130962 | AA186: 28.68438639 | AB186: 24.05580003 | AC186: 42.2265697 | AD186: 38.02143598 | AE186: 0 | AF186: 0 | AG186: 0 | AH186: 1 | AI186: 1 | AJ186: 1 | AK186: 1 | AL186: 1 | AM186: 1 | AN186: 1 | AO186: 1 | AP186: 1 | AQ186: 0 | AR186: 0 | AS186: 0 | AT186: 0 | AU186: 0 | AV186: 33.82765618 | AW186: 0 | AX186: 1 | AY186: 50
A187: 155 | B187: =OFFSET(InputPriceData!B$10,CalculationsAndCharts!$A187+$A$11,0,1,1) -> 2006-06-05 | C187: 2006-06-09 | D187: =OFFSET(InputPriceData!G$10,CalculationsAndCharts!$A187+$A$11,0,1,1) -> 1592700 | E187: =OFFSET(InputPriceData!C$10,CalculationsAndCharts!$A187+$A$11,0,1,1) -> 37.65 | F187: =OFFSET(InputPriceData!D$10,CalculationsAndCharts!$A187+$A$11,0,1,1) -> 38 | G187: =OFFSET(InputPriceData!E$10,CalculationsAndCharts!$A187+$A$11,0,1,1) -> 33.65 | H187: =OFFSET(InputPriceData!F$10,CalculationsAndCharts!$A187+$A$11,0,1,1) -> 33.85 | I187: 35.7875 | J187: 38.15479294 | K187: 36.43677147 | L187: 34.17598802 | M187: 28.56047076 | N187: 23.97706785 | O187: 40.82361963 | P187: 34.38721055 | Q187: 28.30634013 | R187: 23.76568584 | S187: 42.0082971 | T187: 39.63894216 | U187: 35.825 | V187: 34.23167425 | W187: 28.70125195 | X187: 24.0955153 | Y187: 40.68678221 | Z187: 34.54195061 | AA187: 28.4600559 | AB187: 23.88437091 | AC187: 42.13005502 | AD187: 39.2435094 | AE187: 0 | AF187: 0 | AG187: 0 | AH187: 0 | AI187: 0 | AJ187: 0 | AK187: 1 | AL187: 1 | AM187: 0 | AN187: 1 | AO187: 1 | AP187: 1 | AQ187: 0 | AR187: 1 | AS187: 1 | AT187: 0 | AU187: 0 | AV187: 33.82045809 | AW187: 0 | AX187: 1 | AY187: 50
A188: 156 | B188: =OFFSET(InputPriceData!B$10,CalculationsAndCharts!$A188+$A$11,0,1,1) -> 2006-05-30 | C188: 2006-06-03 | D188: =OFFSET(InputPriceData!G$10,CalculationsAndCharts!$A188+$A$11,0,1,1) -> 2053700 | E188: =OFFSET(InputPriceData!C$10,CalculationsAndCharts!$A188+$A$11,0,1,1) -> 37.94 | F188: =OFFSET(InputPriceData!D$10,CalculationsAndCharts!$A188+$A$11,0,1,1) -> 38.25 | G188: =OFFSET(InputPriceData!E$10,CalculationsAndCharts!$A188+$A$11,0,1,1) -> 35.41 | H188: =OFFSET(InputPriceData!F$10,CalculationsAndCharts!$A188+$A$11,0,1,1) -> 37.8 | I188: 37.35 | J188: 38.95958588 | K188: 37.66979294 | L188: 34.0922553 | M188: 28.35248864 | N188: 23.80731219 | O188: 41.02661217 | P188: 34.14882503 | Q188: 28.08112271 | R188: 23.59751346 | S188: 41.80062042 | T188: 40.25260391 | U188: 36.83 | V188: 34.17266219 | W188: 28.4964215 | X188: 23.92493246 | Y188: 40.95365455 | Z188: 34.31436425 | AA188: 28.23480054 | AB188: 23.7149011 | AC188: 41.95359222 | AD188: 39.95371687 | AE188: 1 | AF188: 0 | AG188: 1 | AH188: 1 | AI188: 1 | AJ188: 1 | AK188: 1 | AL188: 1 | AM188: 1 | AN188: 1 | AO188: 1 | AP188: 1 | AQ188: 0 | AR188: 0 | AS188: 0 | AT188: 1 | AU188: 1 | AV188: 33.81945667 | AW188: 0 | AX188: 1 | AY188: 100
A189: 157 | B189: =OFFSET(InputPriceData!B$10,CalculationsAndCharts!$A189+$A$11,0,1,1) -> 2006-05-22 | C189: 2006-05-26 | D189: =OFFSET(InputPriceData!G$10,CalculationsAndCharts!$A189+$A$11,0,1,1) -> 2280600 | E189: =OFFSET(InputPriceData!C$10,CalculationsAndCharts!$A189+$A$11,0,1,1) -> 37.55 | F189: =OFFSET(InputPriceData!D$10,CalculationsAndCharts!$A189+$A$11,0,1,1) -> 38.71 | G189: =OFFSET(InputPriceData!E$10,CalculationsAndCharts!$A189+$A$11,0,1,1) -> 35.48 | H189: =OFFSET(InputPriceData!F$10,CalculationsAndCharts!$A189+$A$11,0,1,1) -> 38.21 | I189: 37.4875 | J189: 40.43167177 | K189: 38.45771088 | L189: 33.95975391 | M189: 28.13990469 | N189: 23.63897232 | O189: 41.09851997 | P189: 33.89409217 | Q189: 27.85639299 | R189: 23.43145386 | S189: 41.54455139 | T189: 40.65248854 | U189: 37.095 | V189: 34.07424227 | W189: 28.28619036 | X189: 23.75561806 | Y189: 41.11977379 | Z189: 34.06846461 | AA189: 28.00963152 | AB189: 23.54749741 | AC189: 41.72399669 | AD189: 40.51555089 | AE189: 1 | AF189: 0 | AG189: 1 | AH189: 1 | AI189: 1 | AJ189: 1 | AK189: 1 | AL189: 1 | AM189: 1 | AN189: 1 | AO189: 1 | AP189: 1 | AQ189: 0 | AR189: 0 | AS189: 0 | AT189: 1 | AU189: 1 | AV189: 33.68452299 | AW189: 0 | AX189: 1 | AY189: 100
A190: 158 | B190: =OFFSET(InputPriceData!B$10,CalculationsAndCharts!$A190+$A$11,0,1,1) -> 2006-05-15 | C190: 2006-05-19 | D190: =OFFSET(InputPriceData!G$10,CalculationsAndCharts!$A190+$A$11,0,1,1) -> 2318800 | E190: =OFFSET(InputPriceData!C$10,CalculationsAndCharts!$A190+$A$11,0,1,1) -> 40.15 | F190: =OFFSET(InputPriceData!D$10,CalculationsAndCharts!$A190+$A$11,0,1,1) -> 41.21 | G190: =OFFSET(InputPriceData!E$10,CalculationsAndCharts!$A190+$A$11,0,1,1) -> 38.06 | H190: =OFFSET(InputPriceData!F$10,CalculationsAndCharts!$A190+$A$11,0,1,1) -> 38.89 | I190: 39.5775 | J190: 41.28584354 | K190: 40.05229677 | L190: 33.79316291 | M190: 27.92435472 | N190: 23.47227112 | O190: 41.07869568 | P190: 33.62726151 | Q190: 27.6327745 | R190: 23.26756723 | S190: 41.25102825 | T190: 40.90636312 | U190: 39.635 | V190: 33.96236235 | W190: 28.07181807 | X190: 23.58781908 | Y190: 41.25945195 | Z190: 33.80730501 | AA190: 27.78523029 | AB190: 23.38223319 | AC190: 41.44845734 | AD190: 41.07044655 | AE190: 1 | AF190: 1 | AG190: 1 | AH190: 1 | AI190: 1 | AJ190: 1 | AK190: 1 | AL190: 0 | AM190: 1 | AN190: 1 | AO190: 1 | AP190: 1 | AQ190: 0 | AR190: 0 | AS190: 0 | AT190: 1 | AU190: 1 | AV190: 33.53111699 | AW190: 0 | AX190: 1 | AY190: 100
A191: 159 | B191: =OFFSET(InputPriceData!B$10,CalculationsAndCharts!$A191+$A$11,0,1,1) -> 2006-05-08 | C191: 2006-05-12 | D191: =OFFSET(InputPriceData!G$10,CalculationsAndCharts!$A191+$A$11,0,1,1) -> 1049300 | E191: =OFFSET(InputPriceData!C$10,CalculationsAndCharts!$A191+$A$11,0,1,1) -> 42.69 | F191: =OFFSET(InputPriceData!D$10,CalculationsAndCharts!$A191+$A$11,0,1,1) -> 44.04 | G191: =OFFSET(InputPriceData!E$10,CalculationsAndCharts!$A191+$A$11,0,1,1) -> 40.5 | H191: =OFFSET(InputPriceData!F$10,CalculationsAndCharts!$A191+$A$11,0,1,1) -> 41.2 | I191: 42.1075 | J191: 40.46418707 | K191: 41.76896854 | L191: 33.56134314 | M191: 27.70699145 | N191: 23.30737913 | O191: 40.87043418 | P191: 33.35128247 | Q191: 27.41075647 | R191: 23.10589288 | S191: 40.92747089 | T191: 40.81339747 | U191: 42.27 | V191: 33.75226466 | W191: 27.85364976 | X191: 23.42174505 | Y191: 41.11758976 | Z191: 33.53129957 | AA191: 27.56219049 | AB191: 23.21915922 | AC191: 41.12648646 | AD191: 41.10869306 | AE191: 1 | AF191: 1 | AG191: 1 | AH191: 1 | AI191: 1 | AJ191: 1 | AK191: 0 | AL191: 0 | AM191: 1 | AN191: 0 | AO191: 1 | AP191: 1 | AQ191: 0 | AR191: 0 | AS191: 0 | AT191: 1 | AU191: 1 | AV191: 33.34945994 | AW191: 0 | AX191: 1 | AY191: 100
A192: 160 | B192: =OFFSET(InputPriceData!B$10,CalculationsAndCharts!$A192+$A$11,0,1,1) -> 2006-05-01 | C192: 2006-05-05 | D192: =OFFSET(InputPriceData!G$10,CalculationsAndCharts!$A192+$A$11,0,1,1) -> 925100 | E192: =OFFSET(InputPriceData!C$10,CalculationsAndCharts!$A192+$A$11,0,1,1) -> 40.69 | F192: =OFFSET(InputPriceData!D$10,CalculationsAndCharts!$A192+$A$11,0,1,1) -> 43.07 | G192: =OFFSET(InputPriceData!E$10,CalculationsAndCharts!$A192+$A$11,0,1,1) -> 40.6 | H192: =OFFSET(InputPriceData!F$10,CalculationsAndCharts!$A192+$A$11,0,1,1) -> 42.65 | I192: 41.7525 | J192: 39.17587415 | K192: 40.79356207 | L192: 33.25735701 | M192: 27.49016361 | N192: 23.14443053 | O192: 40.44601072 | P192: 33.07279537 | Q192: 27.19073699 | R192: 22.94645349 | S192: 40.59262864 | T192: 40.29939279 | U192: 41.835 | V192: 33.43679299 | W192: 27.63518254 | X192: 23.25760043 | Y192: 40.66243176 | Z192: 33.25032586 | AA192: 27.34111237 | AB192: 23.05830621 | AC192: 40.78594666 | AD192: 40.53891686 | AE192: 1 | AF192: 1 | AG192: 1 | AH192: 1 | AI192: 0 | AJ192: 1 | AK192: 0 | AL192: 0 | AM192: 0 | AN192: 0 | AO192: 0 | AP192: 0 | AQ192: 1 | AR192: 0 | AS192: 1 | AT192: 1 | AU192: 1 | AV192: 33.08333994 | AW192: 0 | AX192: 1 | AY192: 100
A193: 161 | B193: =OFFSET(InputPriceData!B$10,CalculationsAndCharts!$A193+$A$11,0,1,1) -> 2006-04-24 | C193: 2006-04-28 | D193: =OFFSET(InputPriceData!G$10,CalculationsAndCharts!$A193+$A$11,0,1,1) -> 1227900 | E193: =OFFSET(InputPriceData!C$10,CalculationsAndCharts!$A193+$A$11,0,1,1) -> 39.5 | F193: =OFFSET(InputPriceData!D$10,CalculationsAndCharts!$A193+$A$11,0,1,1) -> 40.64 | G193: =OFFSET(InputPriceData!E$10,CalculationsAndCharts!$A193+$A$11,0,1,1) -> 39 | H193: =OFFSET(InputPriceData!F$10,CalculationsAndCharts!$A193+$A$11,0,1,1) -> 40.5 | I193: 39.91 | J193: 38.44174829 | K193: 39.35837415 | L193: 32.9782383 | M193: 27.27656386 | N193: 22.98347745 | O193: 40.08850079 | P193: 32.79971332 | Q193: 26.97288297 | R193: 22.7892578 | S193: 40.26974884 | T193: 39.90725273 | U193: 39.82 | V193: 33.12574828 | W193: 27.42030808 | X193: 23.09546776 | Y193: 40.21178836 | Z193: 32.97580342 | AA193: 27.12225261 | AB193: 22.89968376 | AC193: 40.46033617 | AD193: 39.96324055 | AE193: 1 | AF193: 1 | AG193: 1 | AH193: 1 | AI193: 0 | AJ193: 1 | AK193: 1 | AL193: 0 | AM193: 0 | AN193: 1 | AO193: 1 | AP193: 1 | AQ193: 0 | AR193: 0 | AS193: 0 | AT193: 1 | AU193: 1 | AV193: 32.75904638 | AW193: 0 | AX193: 1 | AY193: 100
A194: 162 | B194: =OFFSET(InputPriceData!B$10,CalculationsAndCharts!$A194+$A$11,0,1,1) -> 2006-04-17 | C194: 2006-04-21 | D194: =OFFSET(InputPriceData!G$10,CalculationsAndCharts!$A194+$A$11,0,1,1) -> 818400 | E194: =OFFSET(InputPriceData!C$10,CalculationsAndCharts!$A194+$A$11,0,1,1) -> 37.87 | F194: =OFFSET(InputPriceData!D$10,CalculationsAndCharts!$A194+$A$11,0,1,1) -> 39.84 | G194: =OFFSET(InputPriceData!E$10,CalculationsAndCharts!$A194+$A$11,0,1,1) -> 37.86 | H194: =OFFSET(InputPriceData!F$10,CalculationsAndCharts!$A194+$A$11,0,1,1) -> 39.55 | I194: 38.78 | J194: 38.10349658 | K194: 38.64587415 | L194: 32.74193698 | M194: 27.06539073 | N194: 22.82447425 | O194: 39.85411299 | P194: 32.52975823 | Q194: 26.75707444 | R194: 22.63430872 | S194: 39.95236008 | T194: 39.75586589 | U194: 38.85 | V194: 32.87781303 | W194: 27.20899548 | X194: 22.93528848 | Y194: 39.94174114 | Z194: 32.70780397 | AA194: 26.90545444 | AB194: 22.74329232 | AC194: 40.15034094 | AD194: 39.73314135 | AE194: 1 | AF194: 0 | AG194: 1 | AH194: 1 | AI194: 0 | AJ194: 1 | AK194: 1 | AL194: 1 | AM194: 0 | AN194: 1 | AO194: 1 | AP194: 1 | AQ194: 0 | AR194: 0 | AS194: 0 | AT194: 1 | AU194: 1 | AV194: 32.49664117 | AW194: 0 | AX194: 1 | AY194: 100
A195: 163 | B195: =OFFSET(InputPriceData!B$10,CalculationsAndCharts!$A195+$A$11,0,1,1) -> 2006-04-10 | C195: 2006-04-14 | D195: =OFFSET(InputPriceData!G$10,CalculationsAndCharts!$A195+$A$11,0,1,1) -> 859700 | E195: =OFFSET(InputPriceData!C$10,CalculationsAndCharts!$A195+$A$11,0,1,1) -> 38.07 | F195: =OFFSET(InputPriceData!D$10,CalculationsAndCharts!$A195+$A$11,0,1,1) -> 38.41 | G195: =OFFSET(InputPriceData!E$10,CalculationsAndCharts!$A195+$A$11,0,1,1) -> 37.16 | H195: =OFFSET(InputPriceData!F$10,CalculationsAndCharts!$A195+$A$11,0,1,1) -> 37.73 | I195: 37.8425 | J195: 38.36449317 | K195: 37.94424829 | L195: 32.52327264 | M195: 26.85514828 | N195: 22.66740327 | O195: 39.67177635 | P195: 32.25848583 | Q195: 26.54327134 | R195: 22.4816137 | S195: 39.62725717 | T195: 39.71629552 | U195: 37.785 | V195: 32.65662092 | W195: 26.99903927 | X195: 22.77700304 | Y195: 39.74974799 | Z195: 32.43988038 | AA195: 26.6905526 | AB195: 22.58913817 | AC195: 39.83712149 | AD195: 39.66237448 | AE195: 1 | AF195: 0 | AG195: 1 | AH195: 1 | AI195: 1 | AJ195: 1 | AK195: 1 | AL195: 1 | AM195: 1 | AN195: 1 | AO195: 1 | AP195: 1 | AQ195: 0 | AR195: 0 | AS195: 0 | AT195: 1 | AU195: 1 | AV195: 32.25754426 | AW195: 0 | AX195: 1 | AY195: 100
A196: 164 | B196: =OFFSET(InputPriceData!B$10,CalculationsAndCharts!$A196+$A$11,0,1,1) -> 2006-04-03 | C196: 2006-04-07 | D196: =OFFSET(InputPriceData!G$10,CalculationsAndCharts!$A196+$A$11,0,1,1) -> 1632600 | E196: =OFFSET(InputPriceData!C$10,CalculationsAndCharts!$A196+$A$11,0,1,1) -> 38.39 | F196: =OFFSET(InputPriceData!D$10,CalculationsAndCharts!$A196+$A$11,0,1,1) -> 39.58 | G196: =OFFSET(InputPriceData!E$10,CalculationsAndCharts!$A196+$A$11,0,1,1) -> 37.88 | H196: =OFFSET(InputPriceData!F$10,CalculationsAndCharts!$A196+$A$11,0,1,1) -> 38.05 | I196: 38.475 | J196: 38.25398634 | K196: 38.54724658 | L196: 32.32249576 | M196: 26.64521775 | N196: 22.5123016 | O196: 39.54413565 | P196: 31.98391951 | Q196: 26.33159673 | R196: 22.33118193 | S196: 39.28815029 | T196: 39.800121 | U196: 38.73 | V196: 32.46668096 | W196: 26.78949921 | X196: 22.62063133 | Y196: 39.65217656 | Z196: 32.16914454 | AA196: 26.47761454 | AB196: 22.43723393 | AC196: 39.51182394 | AD196: 39.79252918 | AE196: 1 | AF196: 0 | AG196: 1 | AH196: 1 | AI196: 1 | AJ196: 1 | AK196: 1 | AL196: 1 | AM196: 1 | AN196: 1 | AO196: 1 | AP196: 1 | AQ196: 0 | AR196: 0 | AS196: 0 | AT196: 1 | AU196: 1 | AV196: 32.07203729 | AW196: 0 | AX196: 1 | AY196: 100
A197: 165 | B197: =OFFSET(InputPriceData!B$10,CalculationsAndCharts!$A197+$A$11,0,1,1) -> 2006-03-27 | C197: 2006-03-31 | D197: =OFFSET(InputPriceData!G$10,CalculationsAndCharts!$A197+$A$11,0,1,1) -> 806600 | E197: =OFFSET(InputPriceData!C$10,CalculationsAndCharts!$A197+$A$11,0,1,1) -> 38.3 | F197: =OFFSET(InputPriceData!D$10,CalculationsAndCharts!$A197+$A$11,0,1,1) -> 38.45 | G197: =OFFSET(InputPriceData!E$10,CalculationsAndCharts!$A197+$A$11,0,1,1) -> 37.33 | H197: =OFFSET(InputPriceData!F$10,CalculationsAndCharts!$A197+$A$11,0,1,1) -> 38.34 | I197: 38.105 | J197: 38.40297268 | K197: 38.07199317 | L197: 32.09194943 | M197: 26.43494819 | N197: 22.35923064 | O197: 39.33023437 | P197: 31.70391151 | Q197: 26.12225144 | R197: 22.18301842 | S197: 38.92799863 | T197: 39.7324701 | U197: 37.89 | V197: 32.23470618 | W197: 26.57923322 | X197: 22.46622881 | Y197: 39.43264768 | Z197: 31.8919952 | AA197: 26.26681713 | AB197: 22.2875902 | AC197: 39.16312443 | AD197: 39.70217093 | AE197: 1 | AF197: 0 | AG197: 1 | AH197: 1 | AI197: 1 | AJ197: 1 | AK197: 1 | AL197: 1 | AM197: 1 | AN197: 1 | AO197: 1 | AP197: 1 | AQ197: 0 | AR197: 0 | AS197: 0 | AT197: 1 | AU197: 1 | AV197: 31.86939449 | AW197: 0 | AX197: 1 | AY197: 100
A198: 166 | B198: =OFFSET(InputPriceData!B$10,CalculationsAndCharts!$A198+$A$11,0,1,1) -> 2006-03-20 | C198: 2006-03-24 | D198: =OFFSET(InputPriceData!G$10,CalculationsAndCharts!$A198+$A$11,0,1,1) -> 614500 | E198: =OFFSET(InputPriceData!C$10,CalculationsAndCharts!$A198+$A$11,0,1,1) -> 38.99 | F198: =OFFSET(InputPriceData!D$10,CalculationsAndCharts!$A198+$A$11,0,1,1) -> 39.35 | G198: =OFFSET(InputPriceData!E$10,CalculationsAndCharts!$A198+$A$11,0,1,1) -> 38 | H198: =OFFSET(InputPriceData!F$10,CalculationsAndCharts!$A198+$A$11,0,1,1) -> 38.5 | I198: 38.71 | J198: 38.09594536 | K198: 38.53898634 | L198: 31.87046633 | M198: 26.22542963 | N198: 22.20827813 | O198: 39.14338825 | P198: 31.42145511 | Q198: 25.91552329 | R198: 22.0371209 | S198: 38.55491636 | T198: 39.73186015 | U198: 38.675 | V198: 32.02525085 | W198: 26.36977126 | X198: 22.31389532 | Y198: 39.28033409 | Z198: 31.61271178 | AA198: 26.0584772 | AB198: 22.14021143 | AC198: 38.80291517 | AD198: 39.757753 | AE198: 1 | AF198: 1 | AG198: 1 | AH198: 1 | AI198: 1 | AJ198: 1 | AK198: 1 | AL198: 0 | AM198: 1 | AN198: 1 | AO198: 1 | AP198: 1 | AQ198: 0 | AR198: 0 | AS198: 0 | AT198: 1 | AU198: 1 | AV198: 31.65005193 | AW198: 0 | AX198: 1 | AY198: 100
A199: 167 | B199: =OFFSET(InputPriceData!B$10,CalculationsAndCharts!$A199+$A$11,0,1,1) -> 2006-03-13 | C199: 2006-03-17 | D199: =OFFSET(InputPriceData!G$10,CalculationsAndCharts!$A199+$A$11,0,1,1) -> 751600 | E199: =OFFSET(InputPriceData!C$10,CalculationsAndCharts!$A199+$A$11,0,1,1) -> 37.1 | F199: =OFFSET(InputPriceData!D$10,CalculationsAndCharts!$A199+$A$11,0,1,1) -> 39.16 | G199: =OFFSET(InputPriceData!E$10,CalculationsAndCharts!$A199+$A$11,0,1,1) -> 37 | H199: =OFFSET(InputPriceData!F$10,CalculationsAndCharts!$A199+$A$11,0,1,1) -> 39.01 | I199: 38.0675 | J199: 38.12439071 | K199: 38.08797268 | L199: 31.62348411 | M199: 26.01635419 | N199: 22.05949474 | O199: 38.8808845 | P199: 31.13545758 | Q199: 25.71159989 | R199: 21.89347637 | S199: 38.16504946 | T199: 39.59671954 | U199: 38.08 | V199: 31.77896384 | W199: 26.16030905 | X199: 22.16367769 | Y199: 39.01964206 | Z199: 31.32872577 | AA199: 25.85276481 | AB199: 21.99509047 | AC199: 38.42297335 | AD199: 39.61631077 | AE199: 1 | AF199: 1 | AG199: 1 | AH199: 1 | AI199: 0 | AJ199: 1 | AK199: 1 | AL199: 0 | AM199: 0 | AN199: 1 | AO199: 1 | AP199: 1 | AQ199: 0 | AR199: 0 | AS199: 0 | AT199: 1 | AU199: 1 | AV199: 31.4178503 | AW199: 0 | AX199: 1 | AY199: 100
A200: 168 | B200: =OFFSET(InputPriceData!B$10,CalculationsAndCharts!$A200+$A$11,0,1,1) -> 2006-03-06 | C200: 2006-03-10 | D200: =OFFSET(InputPriceData!G$10,CalculationsAndCharts!$A200+$A$11,0,1,1) -> 1700000 | E200: =OFFSET(InputPriceData!C$10,CalculationsAndCharts!$A200+$A$11,0,1,1) -> 39.15 | F200: =OFFSET(InputPriceData!D$10,CalculationsAndCharts!$A200+$A$11,0,1,1) -> 39.25 | G200: =OFFSET(InputPriceData!E$10,CalculationsAndCharts!$A200+$A$11,0,1,1) -> 36.08 | H200: =OFFSET(InputPriceData!F$10,CalculationsAndCharts!$A200+$A$11,0,1,1) -> 36.8 | I200: 37.82 | J200: 38.42878143 | K200: 37.89469536 | L200: 31.38405861 | M200: 25.80868271 | N200: 21.91294439 | O200: 38.63907208 | P200: 30.84858992 | Q200: 25.51071627 | R200: 21.75206439 | S200: 37.76568534 | T200: 39.51245882 | U200: 37.665 | V200: 31.54559213 | W200: 25.95221073 | X200: 22.01565431 | Y200: 38.79579853 | Z200: 31.04387702 | AA200: 25.64995144 | AB200: 21.85221365 | AC200: 38.03399038 | AD200: 39.55760667 | AE200: 1 | AF200: 1 | AG200: 1 | AH200: 1 | AI200: 0 | AJ200: 1 | AK200: 1 | AL200: 0 | AM200: 0 | AN200: 1 | AO200: 1 | AP200: 1 | AQ200: 0 | AR200: 0 | AS200: 0 | AT200: 1 | AU200: 1 | AV200: 31.16048929 | AW200: 0 | AX200: 1 | AY200: 100
A201: 169 | B201: =OFFSET(InputPriceData!B$10,CalculationsAndCharts!$A201+$A$11,0,1,1) -> 2006-02-27 | C201: 2006-03-03 | D201: =OFFSET(InputPriceData!G$10,CalculationsAndCharts!$A201+$A$11,0,1,1) -> 688400 | E201: =OFFSET(InputPriceData!C$10,CalculationsAndCharts!$A201+$A$11,0,1,1) -> 39 | F201: =OFFSET(InputPriceData!D$10,CalculationsAndCharts!$A201+$A$11,0,1,1) -> 39.36 | G201: =OFFSET(InputPriceData!E$10,CalculationsAndCharts!$A201+$A$11,0,1,1) -> 37.9 | H201: =OFFSET(InputPriceData!F$10,CalculationsAndCharts!$A201+$A$11,0,1,1) -> 38.8 | I201: 38.765 | J201: 38.09256285 | K201: 38.52939071 | L201: 31.14292391 | M201: 25.60218731 | N201: 21.76865779 | O201: 38.3908676 | P201: 30.56005354 | Q201: 25.31301724 | R201: 21.61285506 | S201: 37.35396395 | T201: 39.42777125 | U201: 38.63 | V201: 31.3189474 | W201: 25.74504845 | X201: 21.86985592 | Y201: 38.59155276 | Z201: 30.75676881 | AA201: 25.45017642 | AB201: 21.71155669 | AC201: 37.63133388 | AD201: 39.55177164 | AE201: 1 | AF201: 1 | AG201: 1 | AH201: 1 | AI201: 1 | AJ201: 1 | AK201: 1 | AL201: 0 | AM201: 1 | AN201: 1 | AO201: 1 | AP201: 1 | AQ201: 0 | AR201: 0 | AS201: 0 | AT201: 1 | AU201: 1 | AV201: 30.96931943 | AW201: 0 | AX201: 1 | AY201: 100
A202: 170 | B202: =OFFSET(InputPriceData!B$10,CalculationsAndCharts!$A202+$A$11,0,1,1) -> 2006-02-21 | C202: 2006-02-25 | D202: =OFFSET(InputPriceData!G$10,CalculationsAndCharts!$A202+$A$11,0,1,1) -> 395400 | E202: =OFFSET(InputPriceData!C$10,CalculationsAndCharts!$A202+$A$11,0,1,1) -> 38.25 | F202: =OFFSET(InputPriceData!D$10,CalculationsAndCharts!$A202+$A$11,0,1,1) -> 39.37 | G202: =OFFSET(InputPriceData!E$10,CalculationsAndCharts!$A202+$A$11,0,1,1) -> 37.77 | H202: =OFFSET(InputPriceData!F$10,CalculationsAndCharts!$A202+$A$11,0,1,1) -> 38.91 | I202: 38.575 | J202: 37.6101257 | K202: 38.29131285 | L202: 30.86935107 | M202: 25.39697484 | N202: 21.62667522 | O202: 38.04380389 | P202: 30.27002339 | Q202: 25.11868257 | R202: 21.47581202 | S202: 36.92983449 | T202: 39.15777329 | U202: 38.57 | V202: 31.04816767 | W202: 25.53860775 | X202: 21.72633027 | Y202: 38.25501003 | Z202: 30.46659163 | AA202: 25.25363596 | AB202: 21.57308929 | AC202: 37.21195631 | AD202: 39.29806376 | AE202: 1 | AF202: 1 | AG202: 1 | AH202: 1 | AI202: 1 | AJ202: 1 | AK202: 1 | AL202: 0 | AM202: 1 | AN202: 1 | AO202: 1 | AP202: 1 | AQ202: 0 | AR202: 0 | AS202: 0 | AT202: 1 | AU202: 1 | AV202: 30.70387264 | AW202: 0 | AX202: 1 | AY202: 100
A203: 171 | B203: =OFFSET(InputPriceData!B$10,CalculationsAndCharts!$A203+$A$11,0,1,1) -> 2006-02-13 | C203: 2006-02-17 | D203: =OFFSET(InputPriceData!G$10,CalculationsAndCharts!$A203+$A$11,0,1,1) -> 783300 | E203: =OFFSET(InputPriceData!C$10,CalculationsAndCharts!$A203+$A$11,0,1,1) -> 37 | F203: =OFFSET(InputPriceData!D$10,CalculationsAndCharts!$A203+$A$11,0,1,1) -> 38.1 | G203: =OFFSET(InputPriceData!E$10,CalculationsAndCharts!$A203+$A$11,0,1,1) -> 35.93 | H203: =OFFSET(InputPriceData!F$10,CalculationsAndCharts!$A203+$A$11,0,1,1) -> 38.04 | I203: 37.2675 | J203: 37.9527514 | K203: 37.31256285 | L203: 30.5944636 | M203: 25.19429424 | N203: 21.48703449 | O203: 37.68754255 | P203: 29.9821056 | Q203: 24.92789217 | R203: 21.34089088 | S203: 36.50353117 | T203: 38.87155392 | U203: 37.015 | V203: 30.76958129 | W203: 25.33454998 | X203: 21.58513481 | Y203: 37.89022875 | Z203: 30.17813169 | AA203: 25.06056353 | AB203: 21.43677275 | AC203: 36.78947724 | AD203: 38.99098026 | AE203: 1 | AF203: 1 | AG203: 1 | AH203: 1 | AI203: 1 | AJ203: 1 | AK203: 1 | AL203: 0 | AM203: 1 | AN203: 1 | AO203: 1 | AP203: 1 | AQ203: 0 | AR203: 0 | AS203: 0 | AT203: 1 | AU203: 1 | AV203: 30.42569883 | AW203: 0 | AX203: 1 | AY203: 100
A204: 172 | B204: =OFFSET(InputPriceData!B$10,CalculationsAndCharts!$A204+$A$11,0,1,1) -> 2006-02-06 | C204: 2006-02-10 | D204: =OFFSET(InputPriceData!G$10,CalculationsAndCharts!$A204+$A$11,0,1,1) -> 937600 | E204: =OFFSET(InputPriceData!C$10,CalculationsAndCharts!$A204+$A$11,0,1,1) -> 38.48 | F204: =OFFSET(InputPriceData!D$10,CalculationsAndCharts!$A204+$A$11,0,1,1) -> 38.59 | G204: =OFFSET(InputPriceData!E$10,CalculationsAndCharts!$A204+$A$11,0,1,1) -> 36.8 | H204: =OFFSET(InputPriceData!F$10,CalculationsAndCharts!$A204+$A$11,0,1,1) -> 37.17 | I204: 37.76 | J204: 38.14550281 | K204: 37.8238757 | L204: 30.3456451 | M204: 24.99428797 | N204: 21.34972857 | O204: 37.40379998 | P204: 29.69671904 | Q204: 24.74069908 | R204: 21.20803898 | S204: 36.07609888 | T204: 38.73150107 | U204: 37.695 | V204: 30.53826949 | W204: 25.13325252 | X204: 21.44626758 | Y204: 37.66131848 | Z204: 29.89249846 | AA204: 24.87102396 | AB204: 21.30255828 | AC204: 36.36698178 | AD204: 38.95565518 | AE204: 1 | AF204: 1 | AG204: 1 | AH204: 1 | AI204: 0 | AJ204: 1 | AK204: 1 | AL204: 0 | AM204: 0 | AN204: 1 | AO204: 1 | AP204: 1 | AQ204: 0 | AR204: 0 | AS204: 0 | AT204: 1 | AU204: 1 | AV204: 30.16758692 | AW204: 0 | AX204: 1 | AY204: 100
A205: 173 | B205: =OFFSET(InputPriceData!B$10,CalculationsAndCharts!$A205+$A$11,0,1,1) -> 2006-01-30 | C205: 2006-02-03 | D205: =OFFSET(InputPriceData!G$10,CalculationsAndCharts!$A205+$A$11,0,1,1) -> 653900 | E205: =OFFSET(InputPriceData!C$10,CalculationsAndCharts!$A205+$A$11,0,1,1) -> 38.98 | F205: =OFFSET(InputPriceData!D$10,CalculationsAndCharts!$A205+$A$11,0,1,1) -> 39.18 | G205: =OFFSET(InputPriceData!E$10,CalculationsAndCharts!$A205+$A$11,0,1,1) -> 37.71 | H205: =OFFSET(InputPriceData!F$10,CalculationsAndCharts!$A205+$A$11,0,1,1) -> 38.15 | I205: 38.505 | J205: 37.78600561 | K205: 38.2952514 | L205: 30.0686736 | M205: 24.79608956 | N205: 21.21474489 | O205: 37.03249702 | P205: 29.4112716 | Q205: 24.55714278 | R205: 21.07719972 | S205: 35.63958618 | T205: 38.42540786 | U205: 38.445 | V205: 30.27320539 | W205: 24.93306671 | X205: 21.30971258 | Y205: 37.33012864 | Z205: 29.60476439 | AA205: 24.68504343 | AB205: 21.17039288 | AC205: 35.92955577 | AD205: 38.73070151 | AE205: 1 | AF205: 1 | AG205: 1 | AH205: 1 | AI205: 0 | AJ205: 1 | AK205: 0 | AL205: 0 | AM205: 0 | AN205: 0 | AO205: 1 | AP205: 1 | AQ205: 0 | AR205: 0 | AS205: 0 | AT205: 1 | AU205: 1 | AV205: 29.93021699 | AW205: 0 | AX205: 1 | AY205: 100
A206: 174 | B206: =OFFSET(InputPriceData!B$10,CalculationsAndCharts!$A206+$A$11,0,1,1) -> 2006-01-23 | C206: 2006-01-27 | D206: =OFFSET(InputPriceData!G$10,CalculationsAndCharts!$A206+$A$11,0,1,1) -> 695600 | E206: =OFFSET(InputPriceData!C$10,CalculationsAndCharts!$A206+$A$11,0,1,1) -> 37.09 | F206: =OFFSET(InputPriceData!D$10,CalculationsAndCharts!$A206+$A$11,0,1,1) -> 39.73 | G206: =OFFSET(InputPriceData!E$10,CalculationsAndCharts!$A206+$A$11,0,1,1) -> 36.91 | H206: =OFFSET(InputPriceData!F$10,CalculationsAndCharts!$A206+$A$11,0,1,1) -> 38.85 | I206: 38.145 | J206: 37.42701122 | K206: 38.05300281 | L206: 29.76398553 | M206: 24.60080867 | N206: 21.0821025 | O206: 36.5716331 | P206: 29.12900399 | Q206: 24.37736023 | R206: 20.94831294 | S206: 35.20324422 | T206: 37.94002197 | U206: 38.32 | V206: 29.97054633 | W206: 24.73528379 | X206: 21.17551428 | Y206: 36.8813019 | Z206: 29.31863979 | AA206: 24.50283154 | AB206: 21.04022064 | AC206: 35.48764538 | AD206: 38.27495843 | AE206: 1 | AF206: 1 | AG206: 1 | AH206: 1 | AI206: 0 | AJ206: 1 | AK206: 0 | AL206: 0 | AM206: 0 | AN206: 0 | AO206: 0 | AP206: 0 | AQ206: 1 | AR206: 0 | AS206: 1 | AT206: 1 | AU206: 1 | AV206: 29.65158028 | AW206: 0 | AX206: 1 | AY206: 100
A207: 175 | B207: =OFFSET(InputPriceData!B$10,CalculationsAndCharts!$A207+$A$11,0,1,1) -> 2006-01-17 | C207: 2006-01-21 | D207: =OFFSET(InputPriceData!G$10,CalculationsAndCharts!$A207+$A$11,0,1,1) -> 654400 | E207: =OFFSET(InputPriceData!C$10,CalculationsAndCharts!$A207+$A$11,0,1,1) -> 38.27 | F207: =OFFSET(InputPriceData!D$10,CalculationsAndCharts!$A207+$A$11,0,1,1) -> 38.5 | G207: =OFFSET(InputPriceData!E$10,CalculationsAndCharts!$A207+$A$11,0,1,1) -> 36.33 | H207: =OFFSET(InputPriceData!F$10,CalculationsAndCharts!$A207+$A$11,0,1,1) -> 37.09 | I207: 37.5475 | J207: 37.30652245 | K207: 37.42100561 | L207: 29.45698489 | M207: 24.40957989 | N207: 20.95178004 | O207: 36.09399505 | P207: 28.85335106 | Q207: 24.20137343 | R207: 20.82131119 | S207: 34.7772441 | T207: 37.41074599 | U207: 37.415 | V207: 29.66130731 | W207: 24.54138518 | X207: 21.04367097 | Y207: 36.40343735 | Z207: 29.03854119 | AA207: 24.32446827 | AB207: 20.91197579 | AC207: 35.05419455 | AD207: 37.75268016 | AE207: 1 | AF207: 1 | AG207: 1 | AH207: 1 | AI207: 0 | AJ207: 1 | AK207: 0 | AL207: 0 | AM207: 0 | AN207: 0 | AO207: 1 | AP207: 1 | AQ207: 0 | AR207: 0 | AS207: 0 | AT207: 1 | AU207: 1 | AV207: 29.33976944 | AW207: 0 | AX207: 1 | AY207: 100
A208: 176 | B208: =OFFSET(InputPriceData!B$10,CalculationsAndCharts!$A208+$A$11,0,1,1) -> 2006-01-09 | C208: 2006-01-13 | D208: =OFFSET(InputPriceData!G$10,CalculationsAndCharts!$A208+$A$11,0,1,1) -> 835200 | E208: =OFFSET(InputPriceData!C$10,CalculationsAndCharts!$A208+$A$11,0,1,1) -> 38.07 | F208: =OFFSET(InputPriceData!D$10,CalculationsAndCharts!$A208+$A$11,0,1,1) -> 38.8 | G208: =OFFSET(InputPriceData!E$10,CalculationsAndCharts!$A208+$A$11,0,1,1) -> 37.77 | H208: =OFFSET(InputPriceData!F$10,CalculationsAndCharts!$A208+$A$11,0,1,1) -> 38.17 | I208: 38.2025 | J208: 36.41054489 | K208: 37.45589745 | L208: 29.16202116 | M208: 24.22263897 | N208: 20.82371338 | O208: 35.64185997 | P208: 28.58517906 | Q208: 24.02907796 | R208: 20.6961237 | S208: 34.36442701 | T208: 36.91929293 | U208: 38.285 | V208: 29.37413351 | W208: 24.35175843 | X208: 20.91412599 | Y208: 35.98125121 | Z208: 28.76576726 | AA208: 24.14987298 | AB208: 20.78558718 | AC208: 34.63327002 | AD208: 37.3292324 | AE208: 1 | AF208: 1 | AG208: 1 | AH208: 1 | AI208: 1 | AJ208: 1 | AK208: 1 | AL208: 0 | AM208: 1 | AN208: 1 | AO208: 1 | AP208: 1 | AQ208: 0 | AR208: 0 | AS208: 0 | AT208: 1 | AU208: 1 | AV208: 29.07704976 | AW208: 0 | AX208: 1 | AY208: 100
A209: 177 | B209: =OFFSET(InputPriceData!B$10,CalculationsAndCharts!$A209+$A$11,0,1,1) -> 2006-01-03 | C209: 2006-01-07 | D209: =OFFSET(InputPriceData!G$10,CalculationsAndCharts!$A209+$A$11,0,1,1) -> 723000 | E209: =OFFSET(InputPriceData!C$10,CalculationsAndCharts!$A209+$A$11,0,1,1) -> 36.3 | F209: =OFFSET(InputPriceData!D$10,CalculationsAndCharts!$A209+$A$11,0,1,1) -> 37.99 | G209: =OFFSET(InputPriceData!E$10,CalculationsAndCharts!$A209+$A$11,0,1,1) -> 36 | H209: =OFFSET(InputPriceData!F$10,CalculationsAndCharts!$A209+$A$11,0,1,1) -> 37.95 | I209: 37.06 | J209: 35.76108979 | K209: 36.64304489 | L209: 28.85484056 | M209: 24.03969889 | N209: 20.69782725 | O209: 35.14325227 | P209: 28.32382051 | Q209: 23.86033347 | R209: 20.57268095 | S209: 33.96314206 | T209: 36.32336248 | U209: 36.995 | V209: 29.04410141 | W209: 24.16574454 | X209: 20.78680627 | Y209: 35.42187689 | Z209: 28.49852711 | AA209: 23.97891393 | AB209: 20.660984 | AC209: 34.21982355 | AD209: 36.62393023 | AE209: 1 | AF209: 1 | AG209: 1 | AH209: 1 | AI209: 0 | AJ209: 1 | AK209: 1 | AL209: 0 | AM209: 0 | AN209: 1 | AO209: 1 | AP209: 1 | AQ209: 0 | AR209: 0 | AS209: 0 | AT209: 1 | AU209: 1 | AV209: 28.76881416 | AW209: 0 | AX209: 1 | AY209: 100
... 664 more rows
